Directorate,Department,Expenditure Type,Ref.Doc.1,Vendor Name,Expenditure Amount (exc VAT),Payment Date
Assurance,Assurance Management,Subscriptions,20008053,LAWYERS IN LOCAL GOVERNMENT,500,16/06/2014
Assurance,Governance,Equipment and Materials Purchase,10002805,PAKFLATT (UK) LIMITED,"2,263.00",20/06/2014
Assurance,Governance,Equipment and Materials Purchase,10002806,PAKFLATT (UK) LIMITED,"1,223.00",20/06/2014
Assurance,Governance,Other Services,10002804,LONDON SITE SERVICES LTD,"9,982.00",20/06/2014
Assurance,Governance,Postage,10000453,ROYAL MAIL GROUP LIMITED,"1,048.05",23/06/2014
Assurance,Governance,Postage,10002146,ROYAL MAIL GROUP LIMITED,"1,232.72",12/06/2014
Assurance,Governance,Postage,10002147,ROYAL MAIL GROUP LIMITED,"17,528.54",12/06/2014
Assurance,Governance,Postage,10002148,ROYAL MAIL GROUP LIMITED,"1,150.22",12/06/2014
Assurance,Governance,Postage,10002149,ROYAL MAIL GROUP LIMITED,"7,804.32",12/06/2014
Assurance,Governance,Postage,10002150,ROYAL MAIL GROUP LIMITED,"1,044.64",12/06/2014
Assurance,Governance,Postage,10002411,ROYAL MAIL GROUP LIMITED,"3,535.58",17/06/2014
Assurance,Governance,Printing-Contract,10002412,GEOGRAPHERS A-Z MAP COMPANY LTD,"2,940.00",19/06/2014
Assurance,Governance,Publications,10002408,D LONG (CONSTRUCTION) LTD,910,17/06/2014
Assurance,Governance,Publications,10002555,REDACTED - PERSONAL DATA,600,18/06/2014
Assurance,Governance,Rents,10002092,10TH FINCHLEY SCOUT GROUP,825,13/06/2014
Assurance,Governance,Rents,10001981,AVENUE HOUSE SERVICES LTD,590,13/06/2014
Assurance,Governance,Rents,10002078,BARNET BOROUGH DISTRICT SCOUT COUNCIL,750,12/06/2014
Assurance,Governance,Rents,10002084,BARNET LAWN TENNIS CLUB,750,13/06/2014
Assurance,Governance,Rents,10002144,EDGWARE PCC-ST PETER'S,975,13/06/2014
Assurance,Governance,Rents,10002145,EDGWARE PCC-ST PETER'S,646,13/06/2014
Assurance,Governance,Rents,10002083,FRIERN BARNET HUT MANAGEMENT COMMIT,750,13/06/2014
Assurance,Governance,Rents,10002085,MANOR DRIVE METHODIST CHURCH,600,13/06/2014
Assurance,Governance,Rents,10002089,ST AGNES CHURCH,750,12/06/2014
Assurance,Governance,Rents,10002090,ST MARY & ARCHANGEL MICHAEL CHURCH,850,13/06/2014
Assurance,Governance,Rents,10003026,THE ROYAL BRITISH LEGION,645,24/06/2014
Assurance,Governance,Stationery,10001232,SHAW & SONS LIMITED,"2,068.50",05/06/2014
Assurance,Governance,Subscriptions,10002190,CIPFA BUSINESS LIMITED,660,12/06/2014
Assurance,Governance,Training,10002770,MODERN MINDSET LTD,650,20/06/2014
Assurance,Governance,Transport Hire Charges,20008273,BARNET MULTICULTURAL COMMUNITY CENTRE,500,20/06/2014
Assurance,Governance,Transport Hire Charges,20008402,FINCHLEY BAPTIST CHURCH,575,20/06/2014
Assurance,Governance,Transport Hire Charges,20008274,HINDU CULTURAL SOCIETY,650,20/06/2014
Assurance,Governance,Transport Hire Charges,20008270,LYONSDOWN HALL,990,19/06/2014
Assurance,Governance,Transport Hire Charges,10002940,SOUTHGATE COACHES LTD,650,25/06/2014
Assurance,Governance,Transport Hire Charges,10002941,SOUTHGATE COACHES LTD,650,25/06/2014
Assurance,Governance,Transport Hire Charges,20008366,ST EDWARD THE CONFESSOR CHURCH,700,20/06/2014
Assurance,Governance,Transport Hire Charges,20008614,ST JUDE-ON-THE-HILL PCC,550,27/06/2014
Assurance,Governance,Transport Hire Charges,20008376,ST MARKS CHURCH BARNET VALE,786,20/06/2014
Assurance,Governance,Transport Hire Charges,20008615,THE ANNUNCIATION CHURCH,550,27/06/2014
Assurance,Governance,Transport Hire Charges,20008375,THE HYDE CHURCHES,790,20/06/2014
Assurance,Governance,Transport Hire Charges,20008369,THE WOODSIDE PARK CLUB,850,20/06/2014
Assurance,Governance,Transport Hire Charges,20008365,TRINITY (METHODIST/URC) CHURCH,803.5,20/06/2014
Assurance,Governance,Transport Hire Charges,20008610,TRINITY CHURCH CENTRE,800,27/06/2014
Assurance,Governance,Transport Hire Charges,20008620,TRINITY CHURCH MILL HILL,606,30/06/2014
Assurance,Internal Audit & CAFT,Other Services,10002743,ITS TRAINING (UK) LTD,550,19/06/2014
Assurance,Internal Audit & CAFT,Other Services,10001667,REDACTED - PERSONAL DATA,"1,020.00",12/06/2014
Assurance,Internal Audit & CAFT,Other Services,10002296,REDACTED - PERSONAL DATA,587.5,26/06/2014
Assurance,Internal Audit & CAFT,Professional Services,20008545,PRICEWATERHOUSE COOPERS,"7,695.00",26/06/2014
Assurance,Internal Audit & CAFT,Professional Services,20008546,PRICEWATERHOUSE COOPERS,"4,104.00",26/06/2014
Assurance,Internal Audit & CAFT,Professional Services,20008547,PRICEWATERHOUSE COOPERS,"5,026.00",26/06/2014
Assurance,Internal Audit & CAFT,Professional Services,20008548,PRICEWATERHOUSE COOPERS,"5,385.00",26/06/2014
Assurance,Internal Audit & CAFT,Professional Services,20008549,PRICEWATERHOUSE COOPERS,"6,412.50",26/06/2014
Assurance,Internal Audit & CAFT,Professional Services,20008550,PRICEWATERHOUSE COOPERS,"5,385.00",26/06/2014
Assurance,Internal Audit & CAFT,Professional Services,20008551,PRICEWATERHOUSE COOPERS,"10,260.00",26/06/2014
Assurance,Internal Audit & CAFT,Professional Services,20008552,PRICEWATERHOUSE COOPERS,"7,695.00",26/06/2014
Assurance,Internal Audit & CAFT,Professional Services,20008553,PRICEWATERHOUSE COOPERS,"7,695.00",26/06/2014
Assurance,Internal Audit & CAFT,Training,10001668,ITS TRAINING (UK) LTD,"2,339.00",06/06/2014
Central Expenses,Central Expenses,Grant Payments,10001517,TRANSPORT FOR LONDON,"127,560.69",06/06/2014
Central Expenses,Central Expenses,Insurance Claims,20007993,ACCIDENT CREDIT GROUP,"18,959.94",13/06/2014
Central Expenses,Central Expenses,Insurance Claims,20007918,ALBANY ASSISTANCE LTD,631.68,13/06/2014
Central Expenses,Central Expenses,Insurance Claims,20007928,ALBANY ASSISTANCE LTD,"1,958.03",13/06/2014
Central Expenses,Central Expenses,Insurance Claims,20008587,ALD LEGAL SOLICITORS,"20,000.00",27/06/2014
Central Expenses,Central Expenses,Insurance Claims,20007994,ALLIANZ INSURANCE PLC,"2,311.84",13/06/2014
Central Expenses,Central Expenses,Insurance Claims,20007413,ASCOT LAWYERS,"3,550.62",04/06/2014
Central Expenses,Central Expenses,Insurance Claims,20008306,BAKER & CO SOLICITORS,"6,000.00",20/06/2014
Central Expenses,Central Expenses,Insurance Claims,20007414,BGR BLOOMER SOLICITORS,"7,500.00",04/06/2014
Central Expenses,Central Expenses,Insurance Claims,10001244,BROWNE JACOBSON SOLS.,570,04/06/2014
Central Expenses,Central Expenses,Insurance Claims,10001290,BROWNE JACOBSON SOLS.,660,04/06/2014
Central Expenses,Central Expenses,Insurance Claims,10001582,BROWNE JACOBSON SOLS.,"4,888.50",09/06/2014
Central Expenses,Central Expenses,Insurance Claims,20007408,CARLSONS SOLICITORS,"9,000.00",04/06/2014
Central Expenses,Central Expenses,Insurance Claims,10001249,CLYDE & CO LLP,"1,221.00",04/06/2014
Central Expenses,Central Expenses,Insurance Claims,10001274,CLYDE & CO LLP,"1,890.00",09/06/2014
Central Expenses,Central Expenses,Insurance Claims,10001339,CLYDE & CO LLP,"4,320.00",04/06/2014
Central Expenses,Central Expenses,Insurance Claims,10001340,CLYDE & CO LLP,675,04/06/2014
Central Expenses,Central Expenses,Insurance Claims,10001347,CLYDE & CO LLP,"1,000.00",06/06/2014
Central Expenses,Central Expenses,Insurance Claims,10001351,CLYDE & CO LLP,"1,020.00",06/06/2014
Central Expenses,Central Expenses,Insurance Claims,10001354,CLYDE & CO LLP,510,06/06/2014
Central Expenses,Central Expenses,Insurance Claims,10001576,CLYDE & CO LLP,"1,208.85",06/06/2014
Central Expenses,Central Expenses,Insurance Claims,10001577,CLYDE & CO LLP,"1,515.00",06/06/2014
Central Expenses,Central Expenses,Insurance Claims,10001578,CLYDE & CO LLP,"3,067.50",06/06/2014
Central Expenses,Central Expenses,Insurance Claims,10001580,CLYDE & CO LLP,609,06/06/2014
Central Expenses,Central Expenses,Insurance Claims,20007415,COMPENSATION SOLICITORS ONLINE,"10,800.00",04/06/2014
Central Expenses,Central Expenses,Insurance Claims,20005833,DAC BEECHCROFT LLP,"5,500.00",13/06/2014
Central Expenses,Central Expenses,Insurance Claims,20007411,DEPARTMENT FOR WORK & PENSIONS,627,04/06/2014
Central Expenses,Central Expenses,Insurance Claims,20007412,DEPARTMENT FOR WORK & PENSIONS,615,04/06/2014
Central Expenses,Central Expenses,Insurance Claims,20007914,DEPARTMENT FOR WORK & PENSIONS,627,13/06/2014
Central Expenses,Central Expenses,Insurance Claims,20007919,DEPARTMENT FOR WORK & PENSIONS,627,13/06/2014
Central Expenses,Central Expenses,Insurance Claims,20008203,DEPARTMENT FOR WORK & PENSIONS,627,17/06/2014
Central Expenses,Central Expenses,Insurance Claims,20008581,DEPARTMENT FOR WORK & PENSIONS,566,27/06/2014
Central Expenses,Central Expenses,Insurance Claims,10001173,JOHNSON AUSTIN PARTNERSHIP LLP,"1,000.00",04/06/2014
Central Expenses,Central Expenses,Insurance Claims,20007992,KEEBLE HAWSON SOLICITORS,"2,768.00",13/06/2014
Central Expenses,Central Expenses,Insurance Claims,20008522,KEEBLE HAWSON SOLICITORS,"3,000.00",24/06/2014
Central Expenses,Central Expenses,Insurance Claims,10001265,KENNEDYS,930,09/06/2014
Central Expenses,Central Expenses,Insurance Claims,10001283,KENNEDYS,861,06/06/2014
Central Expenses,Central Expenses,Insurance Claims,10001284,KENNEDYS,"1,400.00",04/06/2014
Central Expenses,Central Expenses,Insurance Claims,20008201,KPHP LTD,"1,328.65",18/06/2014
Central Expenses,Central Expenses,Insurance Claims,20007995,LAMB BROOKS SOLICITORS,"5,600.00",13/06/2014
Central Expenses,Central Expenses,Insurance Claims,10001172,LEGAL COSTS NEGOTIATORS,"1,310.51",04/06/2014
Central Expenses,Central Expenses,Insurance Claims,10002317,LEGAL COSTS NEGOTIATORS,705.25,17/06/2014
Central Expenses,Central Expenses,Insurance Claims,10002318,LEGAL COSTS NEGOTIATORS,"1,131.40",17/06/2014
Central Expenses,Central Expenses,Insurance Claims,10002319,LEGAL COSTS NEGOTIATORS,758.25,17/06/2014
Central Expenses,Central Expenses,Insurance Claims,20007979,PLEXUS LAW,"15,000.00",13/06/2014
Central Expenses,Central Expenses,Insurance Claims,20008160,PLEXUS LAW,"10,750.00",17/06/2014
Central Expenses,Central Expenses,Insurance Claims,20008521,PLEXUS LAW,"7,000.00",24/06/2014
Central Expenses,Central Expenses,Insurance Claims,20008497,R S A,"2,608.00",24/06/2014
Central Expenses,Central Expenses,Insurance Claims,20007416,REDACTED - PERSONAL DATA,"3,345.00",04/06/2014
Central Expenses,Central Expenses,Insurance Claims,20007687,REDACTED - PERSONAL DATA,770,09/06/2014
Central Expenses,Central Expenses,Insurance Claims,20007689,REDACTED - PERSONAL DATA,"7,800.00",09/06/2014
Central Expenses,Central Expenses,Insurance Claims,20007757,REDACTED - PERSONAL DATA,"3,500.00",11/06/2014
Central Expenses,Central Expenses,Insurance Claims,20007913,REDACTED - PERSONAL DATA,"4,000.00",13/06/2014
Central Expenses,Central Expenses,Insurance Claims,20007915,REDACTED - PERSONAL DATA,552,13/06/2014
Central Expenses,Central Expenses,Insurance Claims,20007931,REDACTED - PERSONAL DATA,"1,200.00",13/06/2014
Central Expenses,Central Expenses,Insurance Claims,20007971,REDACTED - PERSONAL DATA,"18,500.00",13/06/2014
Central Expenses,Central Expenses,Insurance Claims,20007973,REDACTED - PERSONAL DATA,524,13/06/2014
Central Expenses,Central Expenses,Insurance Claims,20007977,REDACTED - PERSONAL DATA,"4,000.00",13/06/2014
Central Expenses,Central Expenses,Insurance Claims,20007996,REDACTED - PERSONAL DATA,"6,000.00",13/06/2014
Central Expenses,Central Expenses,Insurance Claims,20008167,REDACTED - PERSONAL DATA,950,17/06/2014
Central Expenses,Central Expenses,Insurance Claims,20008265,REDACTED - PERSONAL DATA,919.18,19/06/2014
Central Expenses,Central Expenses,Insurance Claims,20008266,REDACTED - PERSONAL DATA,729,19/06/2014
Central Expenses,Central Expenses,Insurance Claims,20008307,REDACTED - PERSONAL DATA,"5,250.00",20/06/2014
Central Expenses,Central Expenses,Insurance Claims,20008499,REDACTED - PERSONAL DATA,"9,500.00",24/06/2014
Central Expenses,Central Expenses,Insurance Claims,20007756,SCOTT REES & CO. SOLICITORS,720,11/06/2014
Central Expenses,Central Expenses,Insurance Claims,20008502,SCOTT REES & CO. SOLICITORS,"4,000.00",24/06/2014
Central Expenses,Central Expenses,Insurance Claims,20007968,TESCO UNDERWRITING LIMITED,529.08,13/06/2014
Central Expenses,Central Expenses,Insurance Claims,20007997,THOMPSON SOLICITORS,"8,850.00",13/06/2014
Central Expenses,Central Expenses,Insurance Claims,10001292,WEIGHTMANS LLP,"1,075.00",04/06/2014
Central Expenses,Central Expenses,Insurance Claims,10001293,WEIGHTMANS LLP,506.5,04/06/2014
Central Expenses,Central Expenses,Insurance Claims,10001319,WEIGHTMANS LLP,625,04/06/2014
Central Expenses,Central Expenses,Insurance Claims,10001336,WEIGHTMANS LLP,"4,175.90",04/06/2014
Central Expenses,Central Expenses,Insurance Claims,10001338,WEIGHTMANS LLP,862.5,04/06/2014
Central Expenses,Central Expenses,Insurance Claims,10001564,WEIGHTMANS LLP,745.83,06/06/2014
Central Expenses,Central Expenses,Insurance Claims,10001567,WEIGHTMANS LLP,657.9,06/06/2014
Central Expenses,Central Expenses,Insurance Claims,10002320,WEIGHTMANS LLP,"1,036.66",17/06/2014
Central Expenses,Central Expenses,Insurance Claims,10002584,WEIGHTMANS LLP,"1,380.00",18/06/2014
Central Expenses,Central Expenses,Joint Authorities - Third Party Payment,10001008,LONDON BOROUGH OF HARINGEY,"25,000.00",02/06/2014
Central Expenses,Central Expenses,Joint Authorities - Third Party Payment,EBX0008143,NORTH LONDON WASTE AUTHORITY,"943,693.00",10/06/2014
Central Expenses,Central Expenses,Miscellaneous Expenses,20007714,PRIORITY ESTATES PROJECT LTD,"1,362.07",23/06/2014
Central Expenses,Central Expenses,Miscellaneous Expenses,20008234,VOLKER HIGHWAYS CROWLEY LIMITED,"8,134.15",19/06/2014
Central Expenses,Central Expenses,Other Establishments - Third Party Payment,10002225,CITY OF LONDON,"207,092.00",16/06/2014
Central Expenses,Central Expenses,Other Establishments - Third Party Payment,EBX0011443,ENVIRONMENT AGENCY,"74,022.75",27/06/2014
Central Expenses,Central Expenses,Other Establishments - Third Party Payment,EBX0009797,LEE VALLEY REGIONAL PARK AUTH.,"33,699.99",19/06/2014
Central Expenses,Central Expenses,Other Establishments - Third Party Payment,10002859,LONDON PENSIONS FUND AUTHORITY,"4,059.60",25/06/2014
Central Expenses,Central Expenses,Other Establishments - Third Party Payment,EBX0007190,TRANSPORT TRADING LIMITED,"3,660,135.00",04/06/2014
Central Expenses,Central Expenses,Pensions To Retired Employees,10002859,LONDON PENSIONS FUND AUTHORITY,"4,057.60",25/06/2014
Central Expenses,Central Expenses,Printing-Contract,10002316,G & H SHEET FED LIMITED,975.6,16/06/2014
Commissioning Group,Commissioning Group,Consultants Fees,10002298,THE INNOVATION UNIT LTD,"18,475.00",16/06/2014
Commissioning Group,Commissioning Group,Equipment and Materials Purchase,10003044,MOUCHEL LTD,"53,428.85",26/06/2014
Commissioning Group,Commissioning Group,Professional Services,10001465,BOND BRYAN ARCHITECTS,"6,000.00",04/06/2014
Commissioning Group,Commissioning Group,Training,10002299,VOICE! BUSINESS ASSOCIATES,525,16/06/2014
Commissioning Group,Commissioning Strategy,Advertising,10002810,NEWSQUEST (LONDON) LIMITED,536.86,23/06/2014
Commissioning Group,Commissioning Strategy,Software Licences & Support,10002457,C A C I LTD,"2,000.00",17/06/2014
Commissioning Group,Deputy Chief Operating Officer,Equipment and Materials Purchase,20007639,EXTERION MEDIA (UK) LIMITED,"5,420.00",06/06/2014
Commissioning Group,Deputy Chief Operating Officer,Grant Payments,20008586,AFRICAN CULTURAL ASSOCIATION,"2,500.00",26/06/2014
Commissioning Group,Deputy Chief Operating Officer,Grant Payments,20008658,ARTS 89,"5,150.00",27/06/2014
Commissioning Group,Deputy Chief Operating Officer,Grant Payments,20008656,COMMUNITY BARNET,"2,500.00",30/06/2014
Commissioning Group,Deputy Chief Operating Officer,Grant Payments,20008012,EAST BARNET COMMUNITY FESTIVAL,"1,500.00",16/06/2014
Commissioning Group,Deputy Chief Operating Officer,Grant Payments,20008602,M & M OUT OF SCHOOL CARE,"1,250.00",27/06/2014
Commissioning Group,Deputy Chief Operating Officer,Grant Payments,20007575,OYA,"7,410.00",06/06/2014
Commissioning Group,Deputy Chief Operating Officer,Grant Payments,20007868,PHOENIX CANOE CLUB LIMITED,"2,125.00",11/06/2014
Commissioning Group,Deputy Chief Operating Officer,Grant Payments,20008198,PROUD2BME,"2,500.00",18/06/2014
Commissioning Group,Deputy Chief Operating Officer,Grant Payments,20007827,STONEGROVE ESTATES' YOUTH PROJECT,"1,350.00",11/06/2014
Commissioning Group,Deputy Chief Operating Officer,Grant Payments,20008158,STREET SPIRIT COMMUNITY INTEREST GR,"2,000.00",17/06/2014
Commissioning Group,Deputy Chief Operating Officer,Grant Payments,20008061,THE READER ORGANISATION,"9,825.00",16/06/2014
Commissioning Group,Deputy Chief Operating Officer,Grants and Donations,10002660,OPEN KNOWLEDGE FOUNDATION,"20,000.00",26/06/2014
Commissioning Group,Deputy Chief Operating Officer,Other Agencies - Third Party Payment,10003004,FAMILY FUND TRADING LTD,"8,225.00",25/06/2014
Commissioning Group,Deputy Chief Operating Officer,Other Agencies - Third Party Payment,10003005,FAMILY FUND TRADING LTD,"8,933.33",25/06/2014
Commissioning Group,Deputy Chief Operating Officer,Other Agencies - Third Party Payment,10003007,FAMILY FUND TRADING LTD,"2,433.33",25/06/2014
Commissioning Group,Deputy Chief Operating Officer,Other Agencies - Third Party Payment,10003008,FAMILY FUND TRADING LTD,"6,637.50",25/06/2014
Commissioning Group,Deputy Chief Operating Officer,Other Agencies - Third Party Payment,10003009,FAMILY FUND TRADING LTD,"1,608.34",25/06/2014
Commissioning Group,Deputy Chief Operating Officer,Other Agencies - Third Party Payment,10003010,FAMILY FUND TRADING LTD,"3,732.50",25/06/2014
Commissioning Group,Deputy Chief Operating Officer,Other Agencies - Third Party Payment,10003011,FAMILY FUND TRADING LTD,"6,891.67",25/06/2014
Commissioning Group,Deputy Chief Operating Officer,Other Agencies - Third Party Payment,10003013,FAMILY FUND TRADING LTD,"4,366.67",25/06/2014
Commissioning Group,Deputy Chief Operating Officer,Other Agencies - Third Party Payment,10003014,FAMILY FUND TRADING LTD,"4,320.83",25/06/2014
Commissioning Group,Deputy Chief Operating Officer,Other Agencies - Third Party Payment,10003015,FAMILY FUND TRADING LTD,"6,187.50",25/06/2014
Commissioning Group,Deputy Chief Operating Officer,Other Agencies - Third Party Payment,10003016,FAMILY FUND TRADING LTD,"1,663.33",25/06/2014
Commissioning Group,Deputy Chief Operating Officer,Other Agencies - Third Party Payment,10003018,FAMILY FUND TRADING LTD,"3,233.33",25/06/2014
Commissioning Group,Deputy Chief Operating Officer,Other Agencies - Third Party Payment,20007484,FAMILY FUND TRADING LTD,"30,000.00",04/06/2014
Commissioning Group,Deputy Chief Operating Officer,Other Agencies - Third Party Payment,20008181,FAMILY FUND TRADING LTD,"50,000.00",18/06/2014
Commissioning Group,Deputy Chief Operating Officer,Printing-Contract,10002274,LONDON LETTERBOX MARKETING,"6,682.50",16/06/2014
Commissioning Group,Deputy Chief Operating Officer,Professional Services,10003062,EDENRED,"2,577.25",26/06/2014
Commissioning Group,Deputy Chief Operating Officer,Publications,10002273,PERSONALISED BUSINESS MARKETING (UK) LTD,810,25/06/2014
Commissioning Group,Deputy Chief Operating Officer,Publications,10001735,REDACTED - PERSONAL DATA,"1,625.00",09/06/2014
Commissioning Group,Deputy Chief Operating Officer,Subscriptions,10000558,CIPFA BUSINESS LIMITED,"10,782.00",12/06/2014
Commissioning Group,Deputy Chief Operating Officer,Subscriptions,10001625,CIPFA BUSINESS LIMITED,"3,550.00",05/06/2014
Commissioning Group,Deputy Chief Operating Officer,Subscriptions,10002424,CIPFA BUSINESS LIMITED,"3,785.00",17/06/2014
Commissioning Group,Deputy Chief Operating Officer,Subscriptions,10001702,COPYRIGHT LICENSING AGENCY LTD,"20,448.01",06/06/2014
Commissioning Group,Deputy Chief Operating Officer,Ttl IT & Comms,10002409,TXTTOOLS - BLACKBOARD UK LTD,"3,000.00",19/06/2014
Commissioning Group,Legal,Subscriptions,20005803,MANCHESTER CITY COUNCIL,"1,350.00",13/06/2014
Corporate Accounting,Control Accounts,Government departments - Third Party Payment,20008495,GREATER LONDON AUTHORITY,"-73,204.49",26/06/2014
Corporate Accounting,Control Accounts,Other Agencies - Third Party Payment,10001030,CITIBANK NA LONDON,731.8,02/06/2014
Corporate Accounting,Control Accounts,Other Agencies - Third Party Payment,10001031,CITIBANK NA LONDON,"1,225.05",02/06/2014
Corporate Accounting,Control Accounts,Other Agencies - Third Party Payment,10001220,CITIBANK NA LONDON,"2,377.70",04/06/2014
Corporate Accounting,Control Accounts,Other Agencies - Third Party Payment,10001222,CITIBANK NA LONDON,"1,164.80",06/06/2014
Corporate Accounting,Control Accounts,Other Agencies - Third Party Payment,10001223,CITIBANK NA LONDON,"1,992.56",04/06/2014
Corporate Accounting,Control Accounts,Other Agencies - Third Party Payment,10001379,CITIBANK NA LONDON,"1,106.40",06/06/2014
Corporate Accounting,Control Accounts,Other Agencies - Third Party Payment,10001381,CITIBANK NA LONDON,740.71,06/06/2014
Corporate Accounting,Control Accounts,Other Agencies - Third Party Payment,10001627,CITIBANK NA LONDON,"12,512.31",06/06/2014
Corporate Accounting,Control Accounts,Other Agencies - Third Party Payment,10001691,CITIBANK NA LONDON,"2,124.42",09/06/2014
Corporate Accounting,Control Accounts,Other Agencies - Third Party Payment,10001952,CITIBANK NA LONDON,592,13/06/2014
Corporate Accounting,Control Accounts,Other Agencies - Third Party Payment,10001960,CITIBANK NA LONDON,"1,361.50",13/06/2014
Corporate Accounting,Control Accounts,Other Agencies - Third Party Payment,10001961,CITIBANK NA LONDON,560.75,13/06/2014
Corporate Accounting,Control Accounts,Other Agencies - Third Party Payment,10002303,CITIBANK NA LONDON,"2,341.87",17/06/2014
Corporate Accounting,Control Accounts,Other Agencies - Third Party Payment,10002418,CITIBANK NA LONDON,564.65,18/06/2014
Corporate Accounting,Control Accounts,Other Agencies - Third Party Payment,10002421,CITIBANK NA LONDON,881.2,18/06/2014
Corporate Accounting,Control Accounts,Other Agencies - Third Party Payment,10002582,CITIBANK NA LONDON,645.85,19/06/2014
Corporate Accounting,Control Accounts,Other Agencies - Third Party Payment,10002649,CITIBANK NA LONDON,"2,031.99",20/06/2014
Corporate Accounting,Control Accounts,Other Agencies - Third Party Payment,10002954,THE BARNETGROUP LIMITED,"122,000.00",26/06/2014
Corporate Accounting,Control Accounts,Other Local Authorities - Third Party Payment,EBX0011131,GREATER LONDON AUTHORITY,"2,499,009.51",26/06/2014
Delivery Units,Adults and Communities,Consultants Fees,20007574,KAZOU CONSULTANCY LTD,"1,100.21",17/06/2014
Delivery Units,Adults and Communities,Consultants Fees,10002283,VBA PARTNERS LTD,"1,527.00",13/06/2014
Delivery Units,Adults and Communities,Consultants Fees,10002331,VOICEABILITY,"1,604.00",17/06/2014
Delivery Units,Adults and Communities,Direct Transfer Payments to Social Service Clients,20007985,CITIBANK NA LONDON,"15,000.00",17/06/2014
Delivery Units,Adults and Communities,Electricity,10001602,E-ON ENERGY,846.05,05/06/2014
Delivery Units,Adults and Communities,Equipment and Materials Purchase,10000744,MEDEQUIP ASSISTIVE TECHNOLOGY LTD,"196,554.13",25/06/2014
Delivery Units,Adults and Communities,Equipment and Materials Purchase,10000745,MEDEQUIP ASSISTIVE TECHNOLOGY LTD,"-44,582.03",25/06/2014
Delivery Units,Adults and Communities,Equipment and Materials Purchase,10001096,MEDEQUIP ASSISTIVE TECHNOLOGY LTD,"259,015.77",25/06/2014
Delivery Units,Adults and Communities,Equipment and Materials Purchase,10001097,MEDEQUIP ASSISTIVE TECHNOLOGY LTD,"-45,987.66",25/06/2014
Delivery Units,Adults and Communities,Equipment and Materials Purchase,10001707,OAKLEIGH PHARMACY,"1,229.63",20/06/2014
Delivery Units,Adults and Communities,Equipment and Materials Purchase,10001634,REDLAND HEALTHCARE LTD,"1,773.59",06/06/2014
Delivery Units,Adults and Communities,Equipment and Materials Purchase,10002349,SOLON SECURITY,"3,259.00",16/06/2014
Delivery Units,Adults and Communities,Gas,10002732,BRITISH GAS BUSINESS,754.47,19/06/2014
Delivery Units,Adults and Communities,Gas,10001600,BRITISH GAS BUSINESS(ELEC),"1,257.11",05/06/2014
Delivery Units,Adults and Communities,Gas,10002920,BRITISH GAS BUSINESS(ELEC),"1,205.25",23/06/2014
Delivery Units,Adults and Communities,Gas,10002921,BRITISH GAS BUSINESS(ELEC),"1,906.52",23/06/2014
Delivery Units,Adults and Communities,Grant Payments,20008524,AMWELL CONSTRUCTION LTD,"1,450.54",25/06/2014
Delivery Units,Adults and Communities,Other Agencies - Third Party Payment,30011763,ABBEY RAVENSCROFT PARK NURSING HOME,"2,570.70",04/06/2014
Delivery Units,Adults and Communities,Other Agencies - Third Party Payment,30011764,ABBEY RAVENSCROFT PARK NURSING HOME,"2,570.70",04/06/2014
Delivery Units,Adults and Communities,Other Agencies - Third Party Payment,30011765,ABBEY RAVENSCROFT PARK NURSING HOME,"2,318.93",04/06/2014
Delivery Units,Adults and Communities,Other Agencies - Third Party Payment,30011766,ABBEY RAVENSCROFT PARK NURSING HOME,-548.92,04/06/2014
Delivery Units,Adults and Communities,Other Agencies - Third Party Payment,30011767,ABBEY RAVENSCROFT PARK NURSING HOME,"2,657.14",04/06/2014
Delivery Units,Adults and Communities,Other Agencies - Third Party Payment,30011769,ABBEY RAVENSCROFT PARK NURSING HOME,"2,570.70",04/06/2014
Delivery Units,Adults and Communities,Other Agencies - Third Party Payment,30011770,ABBEY RAVENSCROFT PARK NURSING HOME,"2,570.70",04/06/2014
Delivery Units,Adults and Communities,Other Agencies - Third Party Payment,30011771,ABBEY RAVENSCROFT PARK NURSING HOME,"2,570.70",04/06/2014
Delivery Units,Adults and Communities,Other Agencies - Third Party Payment,30011772,ABBEY RAVENSCROFT PARK NURSING HOME,"-1,364.18",04/06/2014
Delivery Units,Adults and Communities,Other Agencies - Third Party Payment,30011773,ABBEY RAVENSCROFT PARK NURSING HOME,"2,570.83",04/06/2014
Delivery Units,Adults and Communities,Other Agencies - Third Party Payment,30011774,ABBEY RAVENSCROFT PARK NURSING HOME,"-1,161.04",04/06/2014
Delivery Units,Adults and Communities,Other Agencies - Third Party Payment,30011775,ABBEY RAVENSCROFT PARK NURSING HOME,"2,570.70",04/06/2014
Delivery Units,Adults and Communities,Other Agencies - Third Party Payment,30011777,ABBEY RAVENSCROFT PARK NURSING HOME,"2,570.70",04/06/2014
Delivery Units,Adults and Communities,Other Agencies - Third Party Payment,30011778,ABBEY RAVENSCROFT PARK NURSING HOME,"2,878.57",04/06/2014
Delivery Units,Adults and Communities,Other Agencies - Third Party Payment,30011779,ABBEY RAVENSCROFT PARK NURSING HOME,"2,570.70",04/06/2014
Delivery Units,Adults and Communities,Other Agencies - Third Party Payment,30011780,ABBEY RAVENSCROFT PARK NURSING HOME,"2,318.93",04/06/2014
Delivery Units,Adults and Communities,Other Agencies - Third Party Payment,30011781,ABBEY RAVENSCROFT PARK NURSING HOME,"2,570.70",04/06/2014
Delivery Units,Adults and Communities,Other Agencies - Third Party Payment,30011782,ABBEY RAVENSCROFT PARK NURSING HOME,"2,318.93",04/06/2014
Delivery Units,Adults and Communities,Other Agencies - Third Party Payment,30018564,ABBOTS CARE LIMITED,"9,170.68",30/06/2014
Delivery Units,Adults and Communities,Other Agencies - Third Party Payment,30013116,ABOUT ME CARE & SUPPORT LTD,"1,365.84",05/06/2014
Delivery Units,Adults and Communities,Other Agencies - Third Party Payment,30016522,ABOUT ME CARE & SUPPORT LTD,"1,365.84",23/06/2014
Delivery Units,Adults and Communities,Other Agencies - Third Party Payment,30014670,ACTION ON HEARING LOSS,"3,028.80",16/06/2014
Delivery Units,Adults and Communities,Other Agencies - Third Party Payment,30014671,ACTION ON HEARING LOSS,-583.6,16/06/2014
Delivery Units,Adults and Communities,Other Agencies - Third Party Payment,30014672,ACTION ON HEARING LOSS,"4,169.68",16/06/2014
Delivery Units,Adults and Communities,Other Agencies - Third Party Payment,30016609,ACTION ON HEARING LOSS,"2,969.44",23/06/2014
Delivery Units,Adults and Communities,Other Agencies - Third Party Payment,30013283,AGUDAS ISRAEL HOUSING ASSCTN LTD,"3,321.43",12/06/2014
Delivery Units,Adults and Communities,Other Agencies - Third Party Payment,30013284,AGUDAS ISRAEL HOUSING ASSCTN LTD,-548.92,12/06/2014
Delivery Units,Adults and Communities,Other Agencies - Third Party Payment,30013285,AGUDAS ISRAEL HOUSING ASSCTN LTD,"4,207.14",12/06/2014
Delivery Units,Adults and Communities,Other Agencies - Third Party Payment,30013286,AGUDAS ISRAEL HOUSING ASSCTN LTD,"2,527.83",12/06/2014
Delivery Units,Adults and Communities,Other Agencies - Third Party Payment,30013287,AGUDAS ISRAEL HOUSING ASSCTN LTD,"3,720.00",12/06/2014
Delivery Units,Adults and Communities,Other Agencies - Third Party Payment,30012697,ALL ABOUT CARE,"1,958.01",04/06/2014
Delivery Units,Adults and Communities,Other Agencies - Third Party Payment,30012699,ALL ABOUT CARE,"2,023.28",04/06/2014
Delivery Units,Adults and Communities,Other Agencies - Third Party Payment,30011641,ALWYCK HOUSING GROUP,"2,216.41",04/06/2014
Delivery Units,Adults and Communities,Other Agencies - Third Party Payment,30011846,ANCASTER COURT NURSING HOME,"2,570.70",04/06/2014
Delivery Units,Adults and Communities,Other Agencies - Third Party Payment,30011811,ANCHOR TRUST,"2,232.64",04/06/2014
Delivery Units,Adults and Communities,Other Agencies - Third Party Payment,30016587,ANCHOR TRUST,"2,232.64",23/06/2014
Delivery Units,Adults and Communities,Other Agencies - Third Party Payment,30016619,APEX CARE HOME LTD,"3,999.50",23/06/2014
Delivery Units,Adults and Communities,Other Agencies - Third Party Payment,30016621,APEX CARE HOME LTD,"4,132.74",23/06/2014
Delivery Units,Adults and Communities,Other Agencies - Third Party Payment,30013239,ARBOURS ASSOCIATION LTD,"1,412.04",06/06/2014
Delivery Units,Adults and Communities,Other Agencies - Third Party Payment,30012693,AREA 51 EDUCATION LTD,"1,422.00",04/06/2014
Delivery Units,Adults and Communities,Other Agencies - Third Party Payment,30012694,AREA 51 EDUCATION LTD,790,04/06/2014
Delivery Units,Adults and Communities,Other Agencies - Third Party Payment,30014965,ARUNDEL CARE SERVICES LTD,"4,256.00",17/06/2014
Delivery Units,Adults and Communities,Other Agencies - Third Party Payment,30011840,ASHBROOKE CARE HOME,"2,435.71",04/06/2014
Delivery Units,Adults and Communities,Other Agencies - Third Party Payment,30012695,ASHDOWN RESIDENTIAL HOME,"4,173.71",04/06/2014
Delivery Units,Adults and Communities,Other Agencies - Third Party Payment,30012696,ASHDOWN RESIDENTIAL HOME,-513.51,04/06/2014
Delivery Units,Adults and Communities,Other Agencies - Third Party Payment,20007865,ASHFIELSD RESIDENTIAL CARE HOME,"3,002.88",25/06/2014
Delivery Units,Adults and Communities,Other Agencies - Third Party Payment,30012690,ASHGALE HOUSE,"4,729.98",04/06/2014
Delivery Units,Adults and Communities,Other Agencies - Third Party Payment,30011863,ASHTON LODGE CARE CENTRE,"2,570.70",04/06/2014
Delivery Units,Adults and Communities,Other Agencies - Third Party Payment,30011864,ASHTON LODGE CARE CENTRE,"2,367.07",04/06/2014
Delivery Units,Adults and Communities,Other Agencies - Third Party Payment,30011868,ASHTON LODGE CARE CENTRE,"2,489.74",04/06/2014
Delivery Units,Adults and Communities,Other Agencies - Third Party Payment,30011890,ASHTON LODGE CARE CENTRE,"2,320.53",04/06/2014
Delivery Units,Adults and Communities,Other Agencies - Third Party Payment,30011909,ASHTON LODGE CARE CENTRE,"2,318.94",04/06/2014
Delivery Units,Adults and Communities,Other Agencies - Third Party Payment,30011910,ASHTON LODGE CARE CENTRE,-738.38,04/06/2014
Delivery Units,Adults and Communities,Other Agencies - Third Party Payment,30011937,ASHTON LODGE CARE CENTRE,"2,320.52",04/06/2014
Delivery Units,Adults and Communities,Other Agencies - Third Party Payment,30011938,ASHTON LODGE CARE CENTRE,-572.7,04/06/2014
Delivery Units,Adults and Communities,Other Agencies - Third Party Payment,30015945,ASHTON LODGE CARE CENTRE,"4,758.09",18/06/2014
Delivery Units,Adults and Communities,Other Agencies - Third Party Payment,30015946,ASHTON LODGE CARE CENTRE,"-1,349.67",18/06/2014
Delivery Units,Adults and Communities,Other Agencies - Third Party Payment,30011882,ASPEN VILLAGES LTD,"2,216.41",04/06/2014
Delivery Units,Adults and Communities,Other Agencies - Third Party Payment,30011883,ASPEN VILLAGES LTD,"2,570.70",04/06/2014
Delivery Units,Adults and Communities,Other Agencies - Third Party Payment,30011884,ASPEN VILLAGES LTD,"3,321.43",04/06/2014
Delivery Units,Adults and Communities,Other Agencies - Third Party Payment,30012713,AUTUMN GARDENS,"2,700.00",04/06/2014
Delivery Units,Adults and Communities,Other Agencies - Third Party Payment,30013291,AUTUMN GARDENS,"2,184.04",09/06/2014
Delivery Units,Adults and Communities,Other Agencies - Third Party Payment,30017644,AUTUMN GARDENS,"2,184.04",25/06/2014
Delivery Units,Adults and Communities,Other Agencies - Third Party Payment,30011888,B & M CARE,"2,418.00",04/06/2014
Delivery Units,Adults and Communities,Other Agencies - Third Party Payment,30011889,B & M CARE,-571.91,04/06/2014
Delivery Units,Adults and Communities,Other Agencies - Third Party Payment,30016342,BARNET HOMES LIMITED,"1,097.61",23/06/2014
Delivery Units,Adults and Communities,Other Agencies - Third Party Payment,30013356,BARNET MENCAP,"17,935.19",09/06/2014
Delivery Units,Adults and Communities,Other Agencies - Third Party Payment,30013357,BARNET MENCAP,"17,935.19",09/06/2014
Delivery Units,Adults and Communities,Other Agencies - Third Party Payment,30013290,BENSLOW MANAGEMENT COMPANY LIMITED,"2,418.04",09/06/2014
Delivery Units,Adults and Communities,Other Agencies - Third Party Payment,30013351,BIRCHWOOD GRANGE CARE HOME,"2,657.14",09/06/2014
Delivery Units,Adults and Communities,Other Agencies - Third Party Payment,30011838,BRADBURY HOUSE ORGANISATION,"3,460.71",06/06/2014
Delivery Units,Adults and Communities,Other Agencies - Third Party Payment,30018080,BRADBURY HOUSE ORGANISATION,"3,349.07",27/06/2014
Delivery Units,Adults and Communities,Other Agencies - Third Party Payment,30011626,BROOKDALE HEALTHCARE,"9,300.00",04/06/2014
Delivery Units,Adults and Communities,Other Agencies - Third Party Payment,30011627,BROOKDALE HEALTHCARE,"9,610.00",04/06/2014
Delivery Units,Adults and Communities,Other Agencies - Third Party Payment,30011628,BROOKDALE HEALTHCARE,"9,673.86",04/06/2014
Delivery Units,Adults and Communities,Other Agencies - Third Party Payment,30011629,BROOKDALE HEALTHCARE,"7,806.73",04/06/2014
Delivery Units,Adults and Communities,Other Agencies - Third Party Payment,30014610,BROOKDALE HEALTHCARE,"4,699.40",16/06/2014
Delivery Units,Adults and Communities,Other Agencies - Third Party Payment,30013465,BRUNSWICK SUPPORTED LIVING SERVICES,"2,372.12",12/06/2014
Delivery Units,Adults and Communities,Other Agencies - Third Party Payment,30013488,BRUNSWICK SUPPORTED LIVING SERVICES,"1,321.60",12/06/2014
Delivery Units,Adults and Communities,Other Agencies - Third Party Payment,30013495,BRUNSWICK SUPPORTED LIVING SERVICES,"1,942.84",12/06/2014
Delivery Units,Adults and Communities,Other Agencies - Third Party Payment,30013508,BRUNSWICK SUPPORTED LIVING SERVICES,"1,400.00",12/06/2014
Delivery Units,Adults and Communities,Other Agencies - Third Party Payment,30011875,BUPA CARE HOMES,"2,216.41",04/06/2014
Delivery Units,Adults and Communities,Other Agencies - Third Party Payment,30011876,BUPA CARE HOMES,-526.78,04/06/2014
Delivery Units,Adults and Communities,Other Agencies - Third Party Payment,30011877,BUPA CARE HOMES,"2,318.18",04/06/2014
Delivery Units,Adults and Communities,Other Agencies - Third Party Payment,30011878,BUPA CARE HOMES,"2,442.67",04/06/2014
Delivery Units,Adults and Communities,Other Agencies - Third Party Payment,30011879,BUPA CARE HOMES,"2,570.70",04/06/2014
Delivery Units,Adults and Communities,Other Agencies - Third Party Payment,30011893,BUPA CARE HOMES,"2,570.70",04/06/2014
Delivery Units,Adults and Communities,Other Agencies - Third Party Payment,30011894,BUPA CARE HOMES,"3,258.81",04/06/2014
Delivery Units,Adults and Communities,Other Agencies - Third Party Payment,30011895,BUPA CARE HOMES,"3,258.81",04/06/2014
Delivery Units,Adults and Communities,Other Agencies - Third Party Payment,30011896,BUPA CARE HOMES,"3,321.43",04/06/2014
Delivery Units,Adults and Communities,Other Agencies - Third Party Payment,30011897,BUPA CARE HOMES,"3,321.43",04/06/2014
Delivery Units,Adults and Communities,Other Agencies - Third Party Payment,30011898,BUPA CARE HOMES,"2,318.93",04/06/2014
Delivery Units,Adults and Communities,Other Agencies - Third Party Payment,30011899,BUPA CARE HOMES,-548.92,04/06/2014
Delivery Units,Adults and Communities,Other Agencies - Third Party Payment,30011900,BUPA CARE HOMES,"2,418.04",04/06/2014
Delivery Units,Adults and Communities,Other Agencies - Third Party Payment,30011901,BUPA CARE HOMES,"2,216.41",04/06/2014
Delivery Units,Adults and Communities,Other Agencies - Third Party Payment,30011980,BUPA CARE HOMES,"2,318.93",04/06/2014
Delivery Units,Adults and Communities,Other Agencies - Third Party Payment,30011981,BUPA CARE HOMES,"2,318.93",04/06/2014
Delivery Units,Adults and Communities,Other Agencies - Third Party Payment,30011993,BUPA CARE HOMES,"5,535.71",04/06/2014
Delivery Units,Adults and Communities,Other Agencies - Third Party Payment,30012745,BUPA CARE HOMES,"2,325.66",04/06/2014
Delivery Units,Adults and Communities,Other Agencies - Third Party Payment,30013487,BUPA CARE HOMES,746.33,19/06/2014
Delivery Units,Adults and Communities,Other Agencies - Third Party Payment,30013489,BUPA CARE HOMES,"2,318.93",11/06/2014
Delivery Units,Adults and Communities,Other Agencies - Third Party Payment,30013490,BUPA CARE HOMES,"5,668.57",11/06/2014
Delivery Units,Adults and Communities,Other Agencies - Third Party Payment,30013491,BUPA CARE HOMES,"2,318.93",12/06/2014
Delivery Units,Adults and Communities,Other Agencies - Third Party Payment,30013492,BUPA CARE HOMES,"2,318.93",16/06/2014
Delivery Units,Adults and Communities,Other Agencies - Third Party Payment,30013493,BUPA CARE HOMES,"2,924.05",16/06/2014
Delivery Units,Adults and Communities,Other Agencies - Third Party Payment,30013494,BUPA CARE HOMES,"2,302.06",16/06/2014
Delivery Units,Adults and Communities,Other Agencies - Third Party Payment,30014282,BUPA CARE HOMES,"2,318.93",12/06/2014
Delivery Units,Adults and Communities,Other Agencies - Third Party Payment,30017716,BUPA CARE HOMES,"2,318.93",25/06/2014
Delivery Units,Adults and Communities,Other Agencies - Third Party Payment,30013466,BUPA NURSING HOMES LTD - ARKLEY,"2,800.00",11/06/2014
Delivery Units,Adults and Communities,Other Agencies - Third Party Payment,30013467,BUPA NURSING HOMES LTD - ARKLEY,"2,094.52",11/06/2014
Delivery Units,Adults and Communities,Other Agencies - Third Party Payment,30013468,BUPA NURSING HOMES LTD - ARKLEY,"2,094.52",11/06/2014
Delivery Units,Adults and Communities,Other Agencies - Third Party Payment,30013469,BUPA NURSING HOMES LTD - ARKLEY,"2,096.33",11/06/2014
Delivery Units,Adults and Communities,Other Agencies - Third Party Payment,30013471,BUPA NURSING HOMES LTD - ARKLEY,"2,600.00",11/06/2014
Delivery Units,Adults and Communities,Other Agencies - Third Party Payment,30013472,BUPA NURSING HOMES LTD - ARKLEY,"2,094.52",11/06/2014
Delivery Units,Adults and Communities,Other Agencies - Third Party Payment,30013473,BUPA NURSING HOMES LTD - ARKLEY,"2,019.72",11/06/2014
Delivery Units,Adults and Communities,Other Agencies - Third Party Payment,30013474,BUPA NURSING HOMES LTD - ARKLEY,"2,001.92",11/06/2014
Delivery Units,Adults and Communities,Other Agencies - Third Party Payment,30014270,BUPA NURSING HOMES LTD - ARKLEY,"2,094.52",12/06/2014
Delivery Units,Adults and Communities,Other Agencies - Third Party Payment,30018087,BUPA NURSING HOMES LTD - ARKLEY,"1,604.52",27/06/2014
Delivery Units,Adults and Communities,Other Agencies - Third Party Payment,30011719,CAMPHILL DEVON COMMUNITY LIMITED,"4,508.00",04/06/2014
Delivery Units,Adults and Communities,Other Agencies - Third Party Payment,30017638,CAMPHILL DEVON COMMUNITY LIMITED,"4,508.00",25/06/2014
Delivery Units,Adults and Communities,Other Agencies - Third Party Payment,30011665,CANDLE COURT NURSING HOME,"3,764.29",04/06/2014
Delivery Units,Adults and Communities,Other Agencies - Third Party Payment,30012744,CARE ASSIST LIMITED,"4,207.14",04/06/2014
Delivery Units,Adults and Communities,Other Agencies - Third Party Payment,30013246,CARE ASSIST LIMITED,"4,207.14",06/06/2014
Delivery Units,Adults and Communities,Other Agencies - Third Party Payment,30012689,CARE WORLDWIDE (LONDON) LTD,"2,641.32",04/06/2014
Delivery Units,Adults and Communities,Other Agencies - Third Party Payment,30012716,CARE WORLDWIDE (LONDON) LTD,"2,680.88",04/06/2014
Delivery Units,Adults and Communities,Other Agencies - Third Party Payment,30012717,CARE WORLDWIDE (LONDON) LTD,"2,680.88",04/06/2014
Delivery Units,Adults and Communities,Other Agencies - Third Party Payment,30012718,CARE WORLDWIDE (LONDON) LTD,"3,440.10",04/06/2014
Delivery Units,Adults and Communities,Other Agencies - Third Party Payment,30015116,CARE WORLDWIDE (LONDON) LTD,"4,246.53",17/06/2014
Delivery Units,Adults and Communities,Other Agencies - Third Party Payment,30011783,CAREBASE BURNT OAK 2006 LIMITED,"2,318.93",04/06/2014
Delivery Units,Adults and Communities,Other Agencies - Third Party Payment,30011784,CAREBASE BURNT OAK 2006 LIMITED,"2,570.70",04/06/2014
Delivery Units,Adults and Communities,Other Agencies - Third Party Payment,30011785,CAREBASE BURNT OAK 2006 LIMITED,"2,318.93",04/06/2014
Delivery Units,Adults and Communities,Other Agencies - Third Party Payment,30011786,CAREBASE BURNT OAK 2006 LIMITED,"2,570.70",04/06/2014
Delivery Units,Adults and Communities,Other Agencies - Third Party Payment,30011787,CAREBASE BURNT OAK 2006 LIMITED,"2,588.50",04/06/2014
Delivery Units,Adults and Communities,Other Agencies - Third Party Payment,30011788,CAREBASE BURNT OAK 2006 LIMITED,"2,570.70",04/06/2014
Delivery Units,Adults and Communities,Other Agencies - Third Party Payment,30011789,CAREBASE BURNT OAK 2006 LIMITED,"2,318.93",04/06/2014
Delivery Units,Adults and Communities,Other Agencies - Third Party Payment,30011790,CAREBASE BURNT OAK 2006 LIMITED,"2,302.06",04/06/2014
Delivery Units,Adults and Communities,Other Agencies - Third Party Payment,30011791,CAREBASE BURNT OAK 2006 LIMITED,"2,320.53",04/06/2014
Delivery Units,Adults and Communities,Other Agencies - Third Party Payment,30011792,CAREBASE BURNT OAK 2006 LIMITED,"2,570.70",04/06/2014
Delivery Units,Adults and Communities,Other Agencies - Third Party Payment,30011793,CAREBASE BURNT OAK 2006 LIMITED,"2,418.04",04/06/2014
Delivery Units,Adults and Communities,Other Agencies - Third Party Payment,30011794,CAREBASE BURNT OAK 2006 LIMITED,"2,435.71",04/06/2014
Delivery Units,Adults and Communities,Other Agencies - Third Party Payment,30014226,CAREBASE BURNT OAK 2006 LIMITED,"1,243.89",12/06/2014
Delivery Units,Adults and Communities,Other Agencies - Third Party Payment,30016476,CAREBASE BURNT OAK 2006 LIMITED,"-1,570.89",23/06/2014
Delivery Units,Adults and Communities,Other Agencies - Third Party Payment,30016569,CAREBASE BURNT OAK 2006 LIMITED,"4,395.06",23/06/2014
Delivery Units,Adults and Communities,Other Agencies - Third Party Payment,30017641,CAREBASE BURNT OAK 2006 LIMITED,"2,886.05",25/06/2014
Delivery Units,Adults and Communities,Other Agencies - Third Party Payment,30012804,CARETECH COMMUNITY SERVICES LTD,919.15,04/06/2014
Delivery Units,Adults and Communities,Other Agencies - Third Party Payment,30012805,CARETECH COMMUNITY SERVICES LTD,919.15,04/06/2014
Delivery Units,Adults and Communities,Other Agencies - Third Party Payment,30013171,CARETECH COMMUNITY SERVICES LTD,"5,711.58",25/06/2014
Delivery Units,Adults and Communities,Other Agencies - Third Party Payment,30015933,CARETECH COMMUNITY SERVICES LTD,"8,957.14",27/06/2014
Delivery Units,Adults and Communities,Other Agencies - Third Party Payment,30011812,CARLTON COURT (TLC GROUP),"2,318.93",04/06/2014
Delivery Units,Adults and Communities,Other Agencies - Third Party Payment,30011813,CARLTON COURT (TLC GROUP),"2,318.93",04/06/2014
Delivery Units,Adults and Communities,Other Agencies - Third Party Payment,30011814,CARLTON COURT (TLC GROUP),-630.45,04/06/2014
Delivery Units,Adults and Communities,Other Agencies - Third Party Payment,30011815,CARLTON COURT (TLC GROUP),"2,570.70",04/06/2014
Delivery Units,Adults and Communities,Other Agencies - Third Party Payment,30011816,CARLTON COURT (TLC GROUP),"2,570.70",04/06/2014
Delivery Units,Adults and Communities,Other Agencies - Third Party Payment,30011817,CARLTON COURT (TLC GROUP),"2,318.93",04/06/2014
Delivery Units,Adults and Communities,Other Agencies - Third Party Payment,30011818,CARLTON COURT (TLC GROUP),"2,318.93",04/06/2014
Delivery Units,Adults and Communities,Other Agencies - Third Party Payment,30011819,CARLTON COURT (TLC GROUP),"2,570.70",04/06/2014
Delivery Units,Adults and Communities,Other Agencies - Third Party Payment,30011820,CARLTON COURT (TLC GROUP),"2,318.93",04/06/2014
Delivery Units,Adults and Communities,Other Agencies - Third Party Payment,30011821,CARLTON COURT (TLC GROUP),"2,570.70",04/06/2014
Delivery Units,Adults and Communities,Other Agencies - Third Party Payment,30011822,CARLTON COURT (TLC GROUP),"2,570.70",04/06/2014
Delivery Units,Adults and Communities,Other Agencies - Third Party Payment,30011823,CARLTON COURT (TLC GROUP),"2,216.41",04/06/2014
Delivery Units,Adults and Communities,Other Agencies - Third Party Payment,30011824,CARLTON COURT (TLC GROUP),"2,216.41",04/06/2014
Delivery Units,Adults and Communities,Other Agencies - Third Party Payment,30011825,CARLTON COURT (TLC GROUP),"2,418.04",04/06/2014
Delivery Units,Adults and Communities,Other Agencies - Third Party Payment,30011826,CARLTON COURT (TLC GROUP),-548.92,04/06/2014
Delivery Units,Adults and Communities,Other Agencies - Third Party Payment,30011827,CARLTON COURT (TLC GROUP),"2,570.70",04/06/2014
Delivery Units,Adults and Communities,Other Agencies - Third Party Payment,30011828,CARLTON COURT (TLC GROUP),"2,216.41",04/06/2014
Delivery Units,Adults and Communities,Other Agencies - Third Party Payment,30011829,CARLTON COURT (TLC GROUP),"2,318.93",04/06/2014
Delivery Units,Adults and Communities,Other Agencies - Third Party Payment,30011830,CARLTON COURT (TLC GROUP),"2,318.93",04/06/2014
Delivery Units,Adults and Communities,Other Agencies - Third Party Payment,30011831,CARLTON COURT (TLC GROUP),"2,570.70",04/06/2014
Delivery Units,Adults and Communities,Other Agencies - Third Party Payment,30011832,CARLTON COURT (TLC GROUP),-557.16,04/06/2014
Delivery Units,Adults and Communities,Other Agencies - Third Party Payment,30011833,CARLTON COURT (TLC GROUP),"2,570.70",04/06/2014
Delivery Units,Adults and Communities,Other Agencies - Third Party Payment,30011834,CARLTON COURT (TLC GROUP),"2,570.70",04/06/2014
Delivery Units,Adults and Communities,Other Agencies - Third Party Payment,30011835,CARLTON COURT (TLC GROUP),"2,570.69",04/06/2014
Delivery Units,Adults and Communities,Other Agencies - Third Party Payment,30011836,CARLTON COURT (TLC GROUP),-883.94,04/06/2014
Delivery Units,Adults and Communities,Other Agencies - Third Party Payment,30011837,CARLTON COURT (TLC GROUP),"2,570.70",04/06/2014
Delivery Units,Adults and Communities,Other Agencies - Third Party Payment,30011686,CARMEN LODGE RESIDENTIAL HOME,"2,739.47",04/06/2014
Delivery Units,Adults and Communities,Other Agencies - Third Party Payment,30013117,CATHERINE LODGE,"2,184.04",05/06/2014
Delivery Units,Adults and Communities,Other Agencies - Third Party Payment,30013321,CATHERINE LODGE,"2,184.04",09/06/2014
Delivery Units,Adults and Communities,Other Agencies - Third Party Payment,30014263,CATHERINE LODGE,"2,184.04",12/06/2014
Delivery Units,Adults and Communities,Other Agencies - Third Party Payment,30014264,CATHERINE LODGE,"2,660.00",12/06/2014
Delivery Units,Adults and Communities,Other Agencies - Third Party Payment,30014265,CATHERINE LODGE,"2,184.04",12/06/2014
Delivery Units,Adults and Communities,Other Agencies - Third Party Payment,30015148,CEDARS NURSING HOME,"2,094.52",17/06/2014
Delivery Units,Adults and Communities,Other Agencies - Third Party Payment,30015149,CEDARS NURSING HOME,"4,726.77",17/06/2014
Delivery Units,Adults and Communities,Other Agencies - Third Party Payment,30015150,CEDARS NURSING HOME,"2,570.70",17/06/2014
Delivery Units,Adults and Communities,Other Agencies - Third Party Payment,30015151,CEDARS NURSING HOME,"2,570.70",17/06/2014
Delivery Units,Adults and Communities,Other Agencies - Third Party Payment,30015152,CEDARS NURSING HOME,"2,570.70",17/06/2014
Delivery Units,Adults and Communities,Other Agencies - Third Party Payment,30015153,CEDARS NURSING HOME,"2,318.93",17/06/2014
Delivery Units,Adults and Communities,Other Agencies - Third Party Payment,30015154,CEDARS NURSING HOME,"2,358.17",17/06/2014
Delivery Units,Adults and Communities,Other Agencies - Third Party Payment,30015155,CEDARS NURSING HOME,"2,570.70",17/06/2014
Delivery Units,Adults and Communities,Other Agencies - Third Party Payment,30015156,CEDARS NURSING HOME,"2,570.70",17/06/2014
Delivery Units,Adults and Communities,Other Agencies - Third Party Payment,30015157,CEDARS NURSING HOME,"2,318.93",17/06/2014
Delivery Units,Adults and Communities,Other Agencies - Third Party Payment,30015158,CEDARS NURSING HOME,"2,570.70",17/06/2014
Delivery Units,Adults and Communities,Other Agencies - Third Party Payment,30015159,CEDARS NURSING HOME,"2,358.17",17/06/2014
Delivery Units,Adults and Communities,Other Agencies - Third Party Payment,30015160,CEDARS NURSING HOME,"2,570.70",17/06/2014
Delivery Units,Adults and Communities,Other Agencies - Third Party Payment,30015161,CEDARS NURSING HOME,"2,418.04",17/06/2014
Delivery Units,Adults and Communities,Other Agencies - Third Party Payment,30015162,CEDARS NURSING HOME,"-2,487.77",17/06/2014
Delivery Units,Adults and Communities,Other Agencies - Third Party Payment,30015911,CEDARS NURSING HOME,"3,560.84",18/06/2014
Delivery Units,Adults and Communities,Other Agencies - Third Party Payment,30015912,CEDARS NURSING HOME,"3,942.36",18/06/2014
Delivery Units,Adults and Communities,Other Agencies - Third Party Payment,30015913,CEDARS NURSING HOME,"1,243.89",18/06/2014
Delivery Units,Adults and Communities,Other Agencies - Third Party Payment,30015914,CEDARS NURSING HOME,"2,487.77",18/06/2014
Delivery Units,Adults and Communities,Other Agencies - Third Party Payment,30015915,CEDARS NURSING HOME,"2,318.93",18/06/2014
Delivery Units,Adults and Communities,Other Agencies - Third Party Payment,30015916,CEDARS NURSING HOME,"2,094.52",18/06/2014
Delivery Units,Adults and Communities,Other Agencies - Third Party Payment,30015917,CEDARS NURSING HOME,"2,244.13",18/06/2014
Delivery Units,Adults and Communities,Other Agencies - Third Party Payment,30015918,CEDARS NURSING HOME,"2,570.70",18/06/2014
Delivery Units,Adults and Communities,Other Agencies - Third Party Payment,30015919,CEDARS NURSING HOME,"2,570.70",18/06/2014
Delivery Units,Adults and Communities,Other Agencies - Third Party Payment,30015920,CEDARS NURSING HOME,"2,570.70",18/06/2014
Delivery Units,Adults and Communities,Other Agencies - Third Party Payment,30015921,CEDARS NURSING HOME,"3,942.36",18/06/2014
Delivery Units,Adults and Communities,Other Agencies - Third Party Payment,30015922,CEDARS NURSING HOME,"3,291.39",18/06/2014
Delivery Units,Adults and Communities,Other Agencies - Third Party Payment,30015923,CEDARS NURSING HOME,"2,318.93",18/06/2014
Delivery Units,Adults and Communities,Other Agencies - Third Party Payment,30018088,CEDARS NURSING HOME,"2,393.74",27/06/2014
Delivery Units,Adults and Communities,Other Agencies - Third Party Payment,30016373,CENTRAL LONDONCOMMUNITY HEALTHCARE,"4,166.00",23/06/2014
Delivery Units,Adults and Communities,Other Agencies - Third Party Payment,30016461,CENTRAL MIDDLESEX SKILLS,904.6,23/06/2014
Delivery Units,Adults and Communities,Other Agencies - Third Party Payment,30016462,CENTRAL MIDDLESEX SKILLS,904.6,23/06/2014
Delivery Units,Adults and Communities,Other Agencies - Third Party Payment,20007866,CHARING GARDENS LTD,"12,199.36",11/06/2014
Delivery Units,Adults and Communities,Other Agencies - Third Party Payment,30011720,CHATSWORTH CARE,"10,606.43",04/06/2014
Delivery Units,Adults and Communities,Other Agencies - Third Party Payment,30013440,CHEQUERS TRANSPORT LIMITED,771.32,11/06/2014
Delivery Units,Adults and Communities,Other Agencies - Third Party Payment,30013441,CHEQUERS TRANSPORT LIMITED,887.76,11/06/2014
Delivery Units,Adults and Communities,Other Agencies - Third Party Payment,30013331,CLARE HOUSE NURSING HOME,"2,094.52",09/06/2014
Delivery Units,Adults and Communities,Other Agencies - Third Party Payment,30018090,CLARE HOUSE NURSING HOME,"2,094.52",27/06/2014
Delivery Units,Adults and Communities,Other Agencies - Third Party Payment,30013324,CLOVELLY HOUSE RESID. HOME LTD,"2,600.00",09/06/2014
Delivery Units,Adults and Communities,Other Agencies - Third Party Payment,30013325,CLOVELLY HOUSE RESID. HOME LTD,"2,184.04",09/06/2014
Delivery Units,Adults and Communities,Other Agencies - Third Party Payment,30013326,CLOVELLY HOUSE RESID. HOME LTD,"2,184.04",09/06/2014
Delivery Units,Adults and Communities,Other Agencies - Third Party Payment,30013327,CLOVELLY HOUSE RESID. HOME LTD,"2,184.04",09/06/2014
Delivery Units,Adults and Communities,Other Agencies - Third Party Payment,30013328,CLOVELLY HOUSE RESID. HOME LTD,"2,184.04",09/06/2014
Delivery Units,Adults and Communities,Other Agencies - Third Party Payment,30013330,CLOVELLY HOUSE RESID. HOME LTD,-713.04,09/06/2014
Delivery Units,Adults and Communities,Other Agencies - Third Party Payment,30018089,CLOVELLY HOUSE RESID. HOME LTD,"1,872.64",27/06/2014
Delivery Units,Adults and Communities,Other Agencies - Third Party Payment,30014613,CMG HOMES LTD,"2,097.96",16/06/2014
Delivery Units,Adults and Communities,Other Agencies - Third Party Payment,30014615,CMG HOMES LTD,"2,097.96",16/06/2014
Delivery Units,Adults and Communities,Other Agencies - Third Party Payment,30014617,CMG HOMES LTD,"3,990.12",16/06/2014
Delivery Units,Adults and Communities,Other Agencies - Third Party Payment,30014619,CMG HOMES LTD,"2,888.56",16/06/2014
Delivery Units,Adults and Communities,Other Agencies - Third Party Payment,30015843,CMG HOMES LTD,"4,752.00",18/06/2014
Delivery Units,Adults and Communities,Other Agencies - Third Party Payment,30017578,CMG HOMES LTD,710.88,25/06/2014
Delivery Units,Adults and Communities,Other Agencies - Third Party Payment,30017579,CMG HOMES LTD,710.88,25/06/2014
Delivery Units,Adults and Communities,Other Agencies - Third Party Payment,30017580,CMG HOMES LTD,592.4,25/06/2014
Delivery Units,Adults and Communities,Other Agencies - Third Party Payment,30017581,CMG HOMES LTD,592.4,25/06/2014
Delivery Units,Adults and Communities,Other Agencies - Third Party Payment,30011666,COMPLETE CARE SERVICES LTD,"5,426.86",04/06/2014
Delivery Units,Adults and Communities,Other Agencies - Third Party Payment,30011944,CONNIFERS CARE LTD,"8,546.43",04/06/2014
Delivery Units,Adults and Communities,Other Agencies - Third Party Payment,20007090,CO-OPERATIVE FUNERALCARE,"1,404.00",03/06/2014
Delivery Units,Adults and Communities,Other Agencies - Third Party Payment,30011952,COURTLANDS,"2,878.66",04/06/2014
Delivery Units,Adults and Communities,Other Agencies - Third Party Payment,30011721,CRAEGMOOR,"3,787.36",04/06/2014
Delivery Units,Adults and Communities,Other Agencies - Third Party Payment,30011701,CRESWICK HOUSE,"3,608.24",04/06/2014
Delivery Units,Adults and Communities,Other Agencies - Third Party Payment,30011703,CRESWICK HOUSE,"6,091.28",04/06/2014
Delivery Units,Adults and Communities,Other Agencies - Third Party Payment,30011705,CRESWICK HOUSE,"7,123.12",04/06/2014
Delivery Units,Adults and Communities,Other Agencies - Third Party Payment,30017626,CRESWICK HOUSE,"3,608.24",25/06/2014
Delivery Units,Adults and Communities,Other Agencies - Third Party Payment,30017628,CRESWICK HOUSE,"6,091.28",25/06/2014
Delivery Units,Adults and Communities,Other Agencies - Third Party Payment,30017630,CRESWICK HOUSE,"7,123.12",25/06/2014
Delivery Units,Adults and Communities,Other Agencies - Third Party Payment,30014353,DABB PAA,"1,152.36",13/06/2014
Delivery Units,Adults and Communities,Other Agencies - Third Party Payment,30011659,DANA CARE LIMITED,"4,951.27",04/06/2014
Delivery Units,Adults and Communities,Other Agencies - Third Party Payment,30011663,DANA CARE LIMITED,"10,101.57",04/06/2014
Delivery Units,Adults and Communities,Other Agencies - Third Party Payment,30011743,DANA CARE LIMITED,"8,176.07",04/06/2014
Delivery Units,Adults and Communities,Other Agencies - Third Party Payment,30011768,DANA CARE LIMITED,"9,902.29",04/06/2014
Delivery Units,Adults and Communities,Other Agencies - Third Party Payment,30018571,DANA CARE LIMITED,"4,791.55",30/06/2014
Delivery Units,Adults and Communities,Other Agencies - Third Party Payment,30018573,DANA CARE LIMITED,"9,775.71",30/06/2014
Delivery Units,Adults and Communities,Other Agencies - Third Party Payment,30018605,DANA CARE LIMITED,"7,912.32",30/06/2014
Delivery Units,Adults and Communities,Other Agencies - Third Party Payment,30018610,DANA CARE LIMITED,"9,582.86",30/06/2014
Delivery Units,Adults and Communities,Other Agencies - Third Party Payment,30014229,DEVELOPMENT AND LEARNING OPPORTUNITY,908.28,12/06/2014
Delivery Units,Adults and Communities,Other Agencies - Third Party Payment,30014230,DEVELOPMENT AND LEARNING OPPORTUNITY,652.4,12/06/2014
Delivery Units,Adults and Communities,Other Agencies - Third Party Payment,30014233,DEVELOPMENT AND LEARNING OPPORTUNITY,500,12/06/2014
Delivery Units,Adults and Communities,Other Agencies - Third Party Payment,30014234,DEVELOPMENT AND LEARNING OPPORTUNITY,"1,056.00",12/06/2014
Delivery Units,Adults and Communities,Other Agencies - Third Party Payment,30014235,DEVELOPMENT AND LEARNING OPPORTUNITY,"1,056.00",12/06/2014
Delivery Units,Adults and Communities,Other Agencies - Third Party Payment,30016492,DEVELOPMENT AND LEARNING OPPORTUNITY,908.28,23/06/2014
Delivery Units,Adults and Communities,Other Agencies - Third Party Payment,30016494,DEVELOPMENT AND LEARNING OPPORTUNITY,"1,056.00",23/06/2014
Delivery Units,Adults and Communities,Other Agencies - Third Party Payment,30016495,DEVELOPMENT AND LEARNING OPPORTUNITY,500,23/06/2014
Delivery Units,Adults and Communities,Other Agencies - Third Party Payment,30016497,DEVELOPMENT AND LEARNING OPPORTUNITY,652.4,23/06/2014
Delivery Units,Adults and Communities,Other Agencies - Third Party Payment,30013151,DIMENSIONS UK,"2,128.00",05/06/2014
Delivery Units,Adults and Communities,Other Agencies - Third Party Payment,30013157,DIMENSIONS UK,"1,541.00",05/06/2014
Delivery Units,Adults and Communities,Other Agencies - Third Party Payment,30013164,DIMENSIONS UK,"1,047.20",05/06/2014
Delivery Units,Adults and Communities,Other Agencies - Third Party Payment,30013166,DIMENSIONS UK,748,05/06/2014
Delivery Units,Adults and Communities,Other Agencies - Third Party Payment,30013167,DIMENSIONS UK,"1,570.80",05/06/2014
Delivery Units,Adults and Communities,Other Agencies - Third Party Payment,30013358,DIMENSIONS UK,"7,950.68",09/06/2014
Delivery Units,Adults and Communities,Other Agencies - Third Party Payment,30013245,DR FRENCH MEMORIAL HOME LTD,"2,418.04",06/06/2014
Delivery Units,Adults and Communities,Other Agencies - Third Party Payment,30013483,DR FRENCH MEMORIAL HOME LTD,"1,092.02",12/06/2014
Delivery Units,Adults and Communities,Other Agencies - Third Party Payment,30013484,DR FRENCH MEMORIAL HOME LTD,936.02,12/06/2014
Delivery Units,Adults and Communities,Other Agencies - Third Party Payment,30017710,DR FRENCH MEMORIAL HOME LTD,"1,193.43",26/06/2014
Delivery Units,Adults and Communities,Other Agencies - Third Party Payment,30011562,DYNAMIC PEOPLE LTD,940,02/06/2014
Delivery Units,Adults and Communities,Other Agencies - Third Party Payment,30011646,EASTSIDE HOUSE RESIDENTIAL CARE HOME,"2,001.92",04/06/2014
Delivery Units,Adults and Communities,Other Agencies - Third Party Payment,30012708,ELEANOR PALMER TRUST NO 2 A/C.,"1,501.44",04/06/2014
Delivery Units,Adults and Communities,Other Agencies - Third Party Payment,30013433,ELIZA HOUSE,"2,216.41",11/06/2014
Delivery Units,Adults and Communities,Other Agencies - Third Party Payment,30011902,ELIZABETH HOUSE,"2,418.04",04/06/2014
Delivery Units,Adults and Communities,Other Agencies - Third Party Payment,30018093,ELIZABETH HOUSE,"2,340.04",27/06/2014
Delivery Units,Adults and Communities,Other Agencies - Third Party Payment,30012770,ELM PARK LODGE,"2,550.00",04/06/2014
Delivery Units,Adults and Communities,Other Agencies - Third Party Payment,30016123,ELM PARK LODGE,"3,652.91",20/06/2014
Delivery Units,Adults and Communities,Other Agencies - Third Party Payment,30016125,ELM PARK LODGE,"3,520.71",20/06/2014
Delivery Units,Adults and Communities,Other Agencies - Third Party Payment,30016134,ELM PARK LODGE,"3,612.87",20/06/2014
Delivery Units,Adults and Communities,Other Agencies - Third Party Payment,30016135,ELM PARK LODGE,"3,100.00",20/06/2014
Delivery Units,Adults and Communities,Other Agencies - Third Party Payment,30016136,ELM PARK LODGE,"2,161.85",20/06/2014
Delivery Units,Adults and Communities,Other Agencies - Third Party Payment,30016137,ELM PARK LODGE,"5,029.00",27/06/2014
Delivery Units,Adults and Communities,Other Agencies - Third Party Payment,30016141,ELM PARK LODGE,"3,299.29",20/06/2014
Delivery Units,Adults and Communities,Other Agencies - Third Party Payment,30016143,ELM PARK LODGE,"3,387.86",20/06/2014
Delivery Units,Adults and Communities,Other Agencies - Third Party Payment,30016145,ELM PARK LODGE,"3,210.71",20/06/2014
Delivery Units,Adults and Communities,Other Agencies - Third Party Payment,30016146,ELM PARK LODGE,"3,387.86",20/06/2014
Delivery Units,Adults and Communities,Other Agencies - Third Party Payment,30016147,ELM PARK LODGE,"3,455.61",20/06/2014
Delivery Units,Adults and Communities,Other Agencies - Third Party Payment,30016148,ELM PARK LODGE,"3,612.87",20/06/2014
Delivery Units,Adults and Communities,Other Agencies - Third Party Payment,30016604,ELM PARK LODGE,"3,166.43",20/06/2014
Delivery Units,Adults and Communities,Other Agencies - Third Party Payment,30016605,ELM PARK LODGE,-548.92,20/06/2014
Delivery Units,Adults and Communities,Other Agencies - Third Party Payment,30016623,ELM PARK LODGE,"2,103.31",20/06/2014
Delivery Units,Adults and Communities,Other Agencies - Third Party Payment,30016624,ELM PARK LODGE,-548.92,20/06/2014
Delivery Units,Adults and Communities,Other Agencies - Third Party Payment,30011874,EMMAUS HOUSE,"2,184.04",04/06/2014
Delivery Units,Adults and Communities,Other Agencies - Third Party Payment,30016129,EMMAUS HOUSE,"2,184.04",19/06/2014
Delivery Units,Adults and Communities,Other Agencies - Third Party Payment,30011753,FERNBANK NURSING HOME.,"2,318.80",04/06/2014
Delivery Units,Adults and Communities,Other Agencies - Third Party Payment,30011754,FERNBANK NURSING HOME.,"2,318.80",04/06/2014
Delivery Units,Adults and Communities,Other Agencies - Third Party Payment,30011755,FERNBANK NURSING HOME.,"2,318.80",04/06/2014
Delivery Units,Adults and Communities,Other Agencies - Third Party Payment,30011756,FERNBANK NURSING HOME.,"2,318.80",04/06/2014
Delivery Units,Adults and Communities,Other Agencies - Third Party Payment,30011757,FERNBANK NURSING HOME.,"2,318.80",04/06/2014
Delivery Units,Adults and Communities,Other Agencies - Third Party Payment,30011758,FERNBANK NURSING HOME.,"2,318.80",04/06/2014
Delivery Units,Adults and Communities,Other Agencies - Third Party Payment,30011759,FERNBANK NURSING HOME.,"1,658.40",04/06/2014
Delivery Units,Adults and Communities,Other Agencies - Third Party Payment,30014987,FERNBANK NURSING HOME.,"1,720.40",17/06/2014
Delivery Units,Adults and Communities,Other Agencies - Third Party Payment,30015865,FERNBANK NURSING HOME.,551.57,18/06/2014
Delivery Units,Adults and Communities,Other Agencies - Third Party Payment,30015892,FERNBANK NURSING HOME.,"1,181.85",18/06/2014
Delivery Units,Adults and Communities,Other Agencies - Third Party Payment,30011776,FINBOND LIMITED,"2,216.41",04/06/2014
Delivery Units,Adults and Communities,Other Agencies - Third Party Payment,30011949,FLAGSWAN TWO LTD,"2,546.43",04/06/2014
Delivery Units,Adults and Communities,Other Agencies - Third Party Payment,30018094,FLAGSWAN TWO LTD,"1,980.94",27/06/2014
Delivery Units,Adults and Communities,Other Agencies - Third Party Payment,20007864,FOCUS 12,"2,200.00",11/06/2014
Delivery Units,Adults and Communities,Other Agencies - Third Party Payment,30013348,FOUNDATION 66,"1,354.40",09/06/2014
Delivery Units,Adults and Communities,Other Agencies - Third Party Payment,30013496,FOUR SEASONS HEALTH CARE,"10,309.33",11/06/2014
Delivery Units,Adults and Communities,Other Agencies - Third Party Payment,30013497,FOUR SEASONS HEALTH CARE,673.24,11/06/2014
Delivery Units,Adults and Communities,Other Agencies - Third Party Payment,30013498,FOUR SEASONS HEALTH CARE,"1,196.87",11/06/2014
Delivery Units,Adults and Communities,Other Agencies - Third Party Payment,30013499,FOUR SEASONS HEALTH CARE,"2,447.76",11/06/2014
Delivery Units,Adults and Communities,Other Agencies - Third Party Payment,30013500,FOUR SEASONS HEALTH CARE,"2,090.12",11/06/2014
Delivery Units,Adults and Communities,Other Agencies - Third Party Payment,30013501,FOUR SEASONS HEALTH CARE,"2,127.92",11/06/2014
Delivery Units,Adults and Communities,Other Agencies - Third Party Payment,30013502,FOUR SEASONS HEALTH CARE,"2,317.52",11/06/2014
Delivery Units,Adults and Communities,Other Agencies - Third Party Payment,30013503,FOUR SEASONS HEALTH CARE,"2,317.52",11/06/2014
Delivery Units,Adults and Communities,Other Agencies - Third Party Payment,30014285,FOUR SEASONS HEALTH CARE,"2,090.12",12/06/2014
Delivery Units,Adults and Communities,Other Agencies - Third Party Payment,30014286,FOUR SEASONS HEALTH CARE,"2,317.52",12/06/2014
Delivery Units,Adults and Communities,Other Agencies - Third Party Payment,30014287,FOUR SEASONS HEALTH CARE,"2,090.12",12/06/2014
Delivery Units,Adults and Communities,Other Agencies - Third Party Payment,30014288,FOUR SEASONS HEALTH CARE,"2,074.88",12/06/2014
Delivery Units,Adults and Communities,Other Agencies - Third Party Payment,30014289,FOUR SEASONS HEALTH CARE,"2,090.12",12/06/2014
Delivery Units,Adults and Communities,Other Agencies - Third Party Payment,30014290,FOUR SEASONS HEALTH CARE,"2,184.23",12/06/2014
Delivery Units,Adults and Communities,Other Agencies - Third Party Payment,30014674,FOUR SEASONS HEALTH CARE,"2,090.12",16/06/2014
Delivery Units,Adults and Communities,Other Agencies - Third Party Payment,30014675,FOUR SEASONS HEALTH CARE,"2,331.81",16/06/2014
Delivery Units,Adults and Communities,Other Agencies - Third Party Payment,30017708,FOUR SEASONS HEALTH CARE,"-2,446.75",25/06/2014
Delivery Units,Adults and Communities,Other Agencies - Third Party Payment,30017726,FOUR SEASONS HEALTH CARE,"1,719.28",25/06/2014
Delivery Units,Adults and Communities,Other Agencies - Third Party Payment,30017727,FOUR SEASONS HEALTH CARE,"1,085.86",25/06/2014
Delivery Units,Adults and Communities,Other Agencies - Third Party Payment,30017728,FOUR SEASONS HEALTH CARE,"2,533.68",25/06/2014
Delivery Units,Adults and Communities,Other Agencies - Third Party Payment,30017729,FOUR SEASONS HEALTH CARE,"2,533.68",25/06/2014
Delivery Units,Adults and Communities,Other Agencies - Third Party Payment,30017730,FOUR SEASONS HEALTH CARE,"16,210.74",25/06/2014
Delivery Units,Adults and Communities,Other Agencies - Third Party Payment,30017731,FOUR SEASONS HEALTH CARE,"2,533.68",25/06/2014
Delivery Units,Adults and Communities,Other Agencies - Third Party Payment,30017732,FOUR SEASONS HEALTH CARE,"2,533.68",25/06/2014
Delivery Units,Adults and Communities,Other Agencies - Third Party Payment,30017754,FOUR SEASONS HEALTH CARE,"1,010.22",25/06/2014
Delivery Units,Adults and Communities,Other Agencies - Third Party Payment,30013360,FREEWAYS TRUST LIMITED,"2,979.76",09/06/2014
Delivery Units,Adults and Communities,Other Agencies - Third Party Payment,30013361,FREEWAYS TRUST LIMITED,-871.35,09/06/2014
Delivery Units,Adults and Communities,Other Agencies - Third Party Payment,30013362,FREEWAYS TRUST LIMITED,829.8,09/06/2014
Delivery Units,Adults and Communities,Other Agencies - Third Party Payment,10000247,FREMANTLE TRUST,"436,045.92",16/06/2014
Delivery Units,Adults and Communities,Other Agencies - Third Party Payment,30013131,FREMANTLE TRUST,"5,106.02",05/06/2014
Delivery Units,Adults and Communities,Other Agencies - Third Party Payment,30013133,FREMANTLE TRUST,"24,470.36",05/06/2014
Delivery Units,Adults and Communities,Other Agencies - Third Party Payment,30013134,FREMANTLE TRUST,"-2,350.80",05/06/2014
Delivery Units,Adults and Communities,Other Agencies - Third Party Payment,30013135,FREMANTLE TRUST,"32,996.45",05/06/2014
Delivery Units,Adults and Communities,Other Agencies - Third Party Payment,30013136,FREMANTLE TRUST,"-3,405.10",05/06/2014
Delivery Units,Adults and Communities,Other Agencies - Third Party Payment,30016142,FREMANTLE TRUST,"2,156.57",19/06/2014
Delivery Units,Adults and Communities,Other Agencies - Third Party Payment,30011685,FRIARY LODGE,"2,418.04",04/06/2014
Delivery Units,Adults and Communities,Other Agencies - Third Party Payment,30011692,FRIARY LODGE,"2,216.41",05/06/2014
Delivery Units,Adults and Communities,Other Agencies - Third Party Payment,30011740,FRIARY LODGE,"2,418.04",04/06/2014
Delivery Units,Adults and Communities,Other Agencies - Third Party Payment,30011760,FRIARY LODGE,"2,216.41",05/06/2014
Delivery Units,Adults and Communities,Other Agencies - Third Party Payment,30012727,FRIERN RESIDENTIAL CARE HOME,"2,103.31",04/06/2014
Delivery Units,Adults and Communities,Other Agencies - Third Party Payment,30012741,FRIERN RESIDENTIAL CARE HOME,"1,260.37",04/06/2014
Delivery Units,Adults and Communities,Other Agencies - Third Party Payment,30012742,FRIERN RESIDENTIAL CARE HOME,-548.92,04/06/2014
Delivery Units,Adults and Communities,Other Agencies - Third Party Payment,30012762,FRIERN RESIDENTIAL CARE HOME,"2,216.41",04/06/2014
Delivery Units,Adults and Communities,Other Agencies - Third Party Payment,30012763,FRIERN RESIDENTIAL CARE HOME,-548.92,04/06/2014
Delivery Units,Adults and Communities,Other Agencies - Third Party Payment,30012771,FRIERN RESIDENTIAL CARE HOME,"2,103.30",04/06/2014
Delivery Units,Adults and Communities,Other Agencies - Third Party Payment,30012785,FRIERN RESIDENTIAL CARE HOME,"1,366.74",04/06/2014
Delivery Units,Adults and Communities,Other Agencies - Third Party Payment,30012825,FRIERN RESIDENTIAL CARE HOME,"2,216.41",04/06/2014
Delivery Units,Adults and Communities,Other Agencies - Third Party Payment,30012826,FRIERN RESIDENTIAL CARE HOME,-548.92,04/06/2014
Delivery Units,Adults and Communities,Other Agencies - Third Party Payment,30014281,GENTLE HANDS CARE AGENCY,"1,400.00",12/06/2014
Delivery Units,Adults and Communities,Other Agencies - Third Party Payment,30016608,GENTLE HANDS CARE HOMES LIMITED,"4,394.00",23/06/2014
Delivery Units,Adults and Communities,Other Agencies - Third Party Payment,30011638,GLEBELANDS,"12,000.00",04/06/2014
Delivery Units,Adults and Communities,Other Agencies - Third Party Payment,30011652,GLOUCESTERSHIRE GROUP HOMES,"4,189.16",04/06/2014
Delivery Units,Adults and Communities,Other Agencies - Third Party Payment,30011653,GLOUCESTERSHIRE GROUP HOMES,-814.41,04/06/2014
Delivery Units,Adults and Communities,Other Agencies - Third Party Payment,30012749,GRATWICK HOUSE CARE HOME,"2,001.92",04/06/2014
Delivery Units,Adults and Communities,Other Agencies - Third Party Payment,30012830,GRATWICK HOUSE CARE HOME,"2,001.92",04/06/2014
Delivery Units,Adults and Communities,Other Agencies - Third Party Payment,30014647,GREENFIELDS RESIDENTIAL HOME,"2,144.91",16/06/2014
Delivery Units,Adults and Communities,Other Agencies - Third Party Payment,30014648,GREENFIELDS RESIDENTIAL HOME,-819.57,16/06/2014
Delivery Units,Adults and Communities,Other Agencies - Third Party Payment,30014649,GREENFIELDS RESIDENTIAL HOME,"2,216.41",16/06/2014
Delivery Units,Adults and Communities,Other Agencies - Third Party Payment,30014650,GREENFIELDS RESIDENTIAL HOME,-851.61,16/06/2014
Delivery Units,Adults and Communities,Other Agencies - Third Party Payment,30011661,H.C.S. (ENFIELD) LTD,"5,271.77",04/06/2014
Delivery Units,Adults and Communities,Other Agencies - Third Party Payment,30011887,HALLMARK CARE (KINGS LYNN) LTD,"2,890.31",04/06/2014
Delivery Units,Adults and Communities,Other Agencies - Third Party Payment,10002394,HANDS FREE COMPUTING LTD,995,27/06/2014
Delivery Units,Adults and Communities,Other Agencies - Third Party Payment,30013139,HARDEN,"4,343.12",05/06/2014
Delivery Units,Adults and Communities,Other Agencies - Third Party Payment,30017739,HARDEN,"4,343.12",25/06/2014
Delivery Units,Adults and Communities,Other Agencies - Third Party Payment,30011521,HARTWIG CARE LIMITED,"1,911.94",02/06/2014
Delivery Units,Adults and Communities,Other Agencies - Third Party Payment,30011523,HARTWIG CARE LIMITED,944,02/06/2014
Delivery Units,Adults and Communities,Other Agencies - Third Party Payment,30011525,HARTWIG CARE LIMITED,789.92,02/06/2014
Delivery Units,Adults and Communities,Other Agencies - Third Party Payment,30011528,HARTWIG CARE LIMITED,812.08,02/06/2014
Delivery Units,Adults and Communities,Other Agencies - Third Party Payment,30011529,HARTWIG CARE LIMITED,678.78,02/06/2014
Delivery Units,Adults and Communities,Other Agencies - Third Party Payment,30011530,HARTWIG CARE LIMITED,933.71,02/06/2014
Delivery Units,Adults and Communities,Other Agencies - Third Party Payment,30011531,HARTWIG CARE LIMITED,"1,037.00",02/06/2014
Delivery Units,Adults and Communities,Other Agencies - Third Party Payment,30011532,HARTWIG CARE LIMITED,814.72,02/06/2014
Delivery Units,Adults and Communities,Other Agencies - Third Party Payment,30011534,HARTWIG CARE LIMITED,977.77,02/06/2014
Delivery Units,Adults and Communities,Other Agencies - Third Party Payment,30011536,HARTWIG CARE LIMITED,877.18,02/06/2014
Delivery Units,Adults and Communities,Other Agencies - Third Party Payment,30011539,HARTWIG CARE LIMITED,814.72,02/06/2014
Delivery Units,Adults and Communities,Other Agencies - Third Party Payment,30011540,HARTWIG CARE LIMITED,727.92,02/06/2014
Delivery Units,Adults and Communities,Other Agencies - Third Party Payment,30011541,HARTWIG CARE LIMITED,715.52,02/06/2014
Delivery Units,Adults and Communities,Other Agencies - Third Party Payment,30011542,HARTWIG CARE LIMITED,"2,479.52",02/06/2014
Delivery Units,Adults and Communities,Other Agencies - Third Party Payment,30011543,HARTWIG CARE LIMITED,854.49,02/06/2014
Delivery Units,Adults and Communities,Other Agencies - Third Party Payment,30011548,HARTWIG CARE LIMITED,993.6,02/06/2014
Delivery Units,Adults and Communities,Other Agencies - Third Party Payment,30011551,HARTWIG CARE LIMITED,731.02,02/06/2014
Delivery Units,Adults and Communities,Other Agencies - Third Party Payment,30011552,HARTWIG CARE LIMITED,682,02/06/2014
Delivery Units,Adults and Communities,Other Agencies - Third Party Payment,30012701,HARTWIG CARE LIMITED,947.1,04/06/2014
Delivery Units,Adults and Communities,Other Agencies - Third Party Payment,30013105,HARTWIG CARE LIMITED,863.4,05/06/2014
Delivery Units,Adults and Communities,Other Agencies - Third Party Payment,30013108,HARTWIG CARE LIMITED,"2,448.04",05/06/2014
Delivery Units,Adults and Communities,Other Agencies - Third Party Payment,30013207,HARTWIG CARE LIMITED,"1,900.53",06/06/2014
Delivery Units,Adults and Communities,Other Agencies - Third Party Payment,30013208,HARTWIG CARE LIMITED,568.75,06/06/2014
Delivery Units,Adults and Communities,Other Agencies - Third Party Payment,30013209,HARTWIG CARE LIMITED,860.76,06/06/2014
Delivery Units,Adults and Communities,Other Agencies - Third Party Payment,30013210,HARTWIG CARE LIMITED,917.48,06/06/2014
Delivery Units,Adults and Communities,Other Agencies - Third Party Payment,30013211,HARTWIG CARE LIMITED,774.12,06/06/2014
Delivery Units,Adults and Communities,Other Agencies - Third Party Payment,30013212,HARTWIG CARE LIMITED,532.68,06/06/2014
Delivery Units,Adults and Communities,Other Agencies - Third Party Payment,30013213,HARTWIG CARE LIMITED,656.09,06/06/2014
Delivery Units,Adults and Communities,Other Agencies - Third Party Payment,30013215,HARTWIG CARE LIMITED,663.54,06/06/2014
Delivery Units,Adults and Communities,Other Agencies - Third Party Payment,30013275,HARTWIG CARE LIMITED,"1,795.46",09/06/2014
Delivery Units,Adults and Communities,Other Agencies - Third Party Payment,30013276,HARTWIG CARE LIMITED,"1,747.95",09/06/2014
Delivery Units,Adults and Communities,Other Agencies - Third Party Payment,30013280,HARTWIG CARE LIMITED,765.12,09/06/2014
Delivery Units,Adults and Communities,Other Agencies - Third Party Payment,30015839,HARTWIG CARE LIMITED,659.88,18/06/2014
Delivery Units,Adults and Communities,Other Agencies - Third Party Payment,30017590,HARTWIG CARE LIMITED,595.2,25/06/2014
Delivery Units,Adults and Communities,Other Agencies - Third Party Payment,30017592,HARTWIG CARE LIMITED,669.6,25/06/2014
Delivery Units,Adults and Communities,Other Agencies - Third Party Payment,30017594,HARTWIG CARE LIMITED,793.6,25/06/2014
Delivery Units,Adults and Communities,Other Agencies - Third Party Payment,30017595,HARTWIG CARE LIMITED,793.6,25/06/2014
Delivery Units,Adults and Communities,Other Agencies - Third Party Payment,30017599,HARTWIG CARE LIMITED,793.6,25/06/2014
Delivery Units,Adults and Communities,Other Agencies - Third Party Payment,30017600,HARTWIG CARE LIMITED,744,25/06/2014
Delivery Units,Adults and Communities,Other Agencies - Third Party Payment,30017601,HARTWIG CARE LIMITED,"2,506.36",25/06/2014
Delivery Units,Adults and Communities,Other Agencies - Third Party Payment,30017602,HARTWIG CARE LIMITED,"1,797.70",25/06/2014
Delivery Units,Adults and Communities,Other Agencies - Third Party Payment,30017607,HARTWIG CARE LIMITED,793.6,25/06/2014
Delivery Units,Adults and Communities,Other Agencies - Third Party Payment,30017608,HARTWIG CARE LIMITED,"2,512.76",25/06/2014
Delivery Units,Adults and Communities,Other Agencies - Third Party Payment,30017609,HARTWIG CARE LIMITED,"2,144.38",25/06/2014
Delivery Units,Adults and Communities,Other Agencies - Third Party Payment,30017849,HARTWIG CARE LIMITED,"1,880.81",26/06/2014
Delivery Units,Adults and Communities,Other Agencies - Third Party Payment,30017851,HARTWIG CARE LIMITED,823.56,26/06/2014
Delivery Units,Adults and Communities,Other Agencies - Third Party Payment,30017852,HARTWIG CARE LIMITED,666.64,26/06/2014
Delivery Units,Adults and Communities,Other Agencies - Third Party Payment,30017856,HARTWIG CARE LIMITED,956.4,26/06/2014
Delivery Units,Adults and Communities,Other Agencies - Third Party Payment,30018058,HARTWIG CARE LIMITED,595.54,27/06/2014
Delivery Units,Adults and Communities,Other Agencies - Third Party Payment,30018060,HARTWIG CARE LIMITED,"1,921.18",27/06/2014
Delivery Units,Adults and Communities,Other Agencies - Third Party Payment,30018062,HARTWIG CARE LIMITED,568.76,27/06/2014
Delivery Units,Adults and Communities,Other Agencies - Third Party Payment,30014347,HELPING HANDS,"1,763.96",13/06/2014
Delivery Units,Adults and Communities,Other Agencies - Third Party Payment,30011423,HENRY NIHILL HOUSE,"2,321.92",05/06/2014
Delivery Units,Adults and Communities,Other Agencies - Third Party Payment,30014217,HENRY NIHILL HOUSE,"2,001.92",12/06/2014
Delivery Units,Adults and Communities,Other Agencies - Third Party Payment,30014219,HENRY NIHILL HOUSE,"2,001.92",12/06/2014
Delivery Units,Adults and Communities,Other Agencies - Third Party Payment,30014220,HENRY NIHILL HOUSE,"1,824.37",12/06/2014
Delivery Units,Adults and Communities,Other Agencies - Third Party Payment,30014221,HENRY NIHILL HOUSE,"2,001.92",12/06/2014
Delivery Units,Adults and Communities,Other Agencies - Third Party Payment,30014223,HENRY NIHILL HOUSE,"2,001.92",12/06/2014
Delivery Units,Adults and Communities,Other Agencies - Third Party Payment,30014224,HENRY NIHILL HOUSE,"2,094.52",12/06/2014
Delivery Units,Adults and Communities,Other Agencies - Third Party Payment,30014225,HENRY NIHILL HOUSE,"2,321.92",12/06/2014
Delivery Units,Adults and Communities,Other Agencies - Third Party Payment,30014227,HENRY NIHILL HOUSE,"2,321.92",19/06/2014
Delivery Units,Adults and Communities,Other Agencies - Third Party Payment,30013218,HILLVIEW COURT NURSING HOME,"4,200.00",06/06/2014
Delivery Units,Adults and Communities,Other Agencies - Third Party Payment,30013220,HILLVIEW COURT NURSING HOME,"4,200.00",06/06/2014
Delivery Units,Adults and Communities,Other Agencies - Third Party Payment,30018073,HILLVIEW COURT NURSING HOME,"4,200.00",27/06/2014
Delivery Units,Adults and Communities,Other Agencies - Third Party Payment,30012735,HILTON LODGE LTD.,"2,184.04",04/06/2014
Delivery Units,Adults and Communities,Other Agencies - Third Party Payment,30012736,HILTON LODGE LTD.,-581.32,04/06/2014
Delivery Units,Adults and Communities,Other Agencies - Third Party Payment,30012737,HILTON LODGE LTD.,"2,184.04",04/06/2014
Delivery Units,Adults and Communities,Other Agencies - Third Party Payment,30012738,HILTON LODGE LTD.,-783.2,04/06/2014
Delivery Units,Adults and Communities,Other Agencies - Third Party Payment,30013137,HILTON LODGE LTD.,"2,256.04",05/06/2014
Delivery Units,Adults and Communities,Other Agencies - Third Party Payment,30013140,HILTON LODGE LTD.,"2,184.04",05/06/2014
Delivery Units,Adults and Communities,Other Agencies - Third Party Payment,30013175,HILTON LODGE LTD.,"2,184.04",05/06/2014
Delivery Units,Adults and Communities,Other Agencies - Third Party Payment,30013176,HILTON LODGE LTD.,"2,184.04",05/06/2014
Delivery Units,Adults and Communities,Other Agencies - Third Party Payment,30013255,HILTON LODGE LTD.,"2,184.04",06/06/2014
Delivery Units,Adults and Communities,Other Agencies - Third Party Payment,30015924,HILTON LODGE LTD.,"2,184.04",18/06/2014
Delivery Units,Adults and Communities,Other Agencies - Third Party Payment,30015925,HILTON LODGE LTD.,-581.32,18/06/2014
Delivery Units,Adults and Communities,Other Agencies - Third Party Payment,30015926,HILTON LODGE LTD.,"2,184.04",18/06/2014
Delivery Units,Adults and Communities,Other Agencies - Third Party Payment,30015927,HILTON LODGE LTD.,-783.2,18/06/2014
Delivery Units,Adults and Communities,Other Agencies - Third Party Payment,30015928,HILTON LODGE LTD.,"2,256.04",18/06/2014
Delivery Units,Adults and Communities,Other Agencies - Third Party Payment,30015929,HILTON LODGE LTD.,"2,184.04",18/06/2014
Delivery Units,Adults and Communities,Other Agencies - Third Party Payment,30015930,HILTON LODGE LTD.,"2,184.04",18/06/2014
Delivery Units,Adults and Communities,Other Agencies - Third Party Payment,30015941,HILTON LODGE LTD.,"2,184.04",18/06/2014
Delivery Units,Adults and Communities,Other Agencies - Third Party Payment,30015942,HILTON LODGE LTD.,"2,184.04",18/06/2014
Delivery Units,Adults and Communities,Other Agencies - Third Party Payment,30011954,HOLLY HOUSE RESIDENTIAL CARE HOME,"3,535.06",04/06/2014
Delivery Units,Adults and Communities,Other Agencies - Third Party Payment,30013118,HOME FARM TRUST LTD,"3,787.00",10/06/2014
Delivery Units,Adults and Communities,Other Agencies - Third Party Payment,30013240,HOME FARM TRUST LTD,"3,787.00",06/06/2014
Delivery Units,Adults and Communities,Other Agencies - Third Party Payment,30014266,HOME FARM TRUST LTD,"8,034.76",12/06/2014
Delivery Units,Adults and Communities,Other Agencies - Third Party Payment,30014268,HOME FARM TRUST LTD,"2,657.40",12/06/2014
Delivery Units,Adults and Communities,Other Agencies - Third Party Payment,30015943,HOME FROM HOME CARE LTD,"9,769.00",18/06/2014
Delivery Units,Adults and Communities,Other Agencies - Third Party Payment,30011416,HOUSE MARTINS CARE LTD,"4,652.48",05/06/2014
Delivery Units,Adults and Communities,Other Agencies - Third Party Payment,30011418,HOUSE MARTINS CARE LTD,"4,202.24",05/06/2014
Delivery Units,Adults and Communities,Other Agencies - Third Party Payment,30011420,HOUSE MARTINS CARE LTD,"4,652.48",05/06/2014
Delivery Units,Adults and Communities,Other Agencies - Third Party Payment,30011982,HUSKARDS NEW CARE LTD,"2,216.50",04/06/2014
Delivery Units,Adults and Communities,Other Agencies - Third Party Payment,30014620,INDEPENDENCE HOMES LIMITED,"5,400.00",16/06/2014
Delivery Units,Adults and Communities,Other Agencies - Third Party Payment,30012683,INDIVIDUALISED CARE LIMITED,"1,800.00",04/06/2014
Delivery Units,Adults and Communities,Other Agencies - Third Party Payment,30012684,INDIVIDUALISED CARE LIMITED,"2,430.00",04/06/2014
Delivery Units,Adults and Communities,Other Agencies - Third Party Payment,30012685,INDIVIDUALISED CARE LIMITED,870,04/06/2014
Delivery Units,Adults and Communities,Other Agencies - Third Party Payment,30012686,INDIVIDUALISED CARE LIMITED,"2,100.00",04/06/2014
Delivery Units,Adults and Communities,Other Agencies - Third Party Payment,30012687,INDIVIDUALISED CARE LIMITED,"2,200.00",04/06/2014
Delivery Units,Adults and Communities,Other Agencies - Third Party Payment,30012688,INDIVIDUALISED CARE LIMITED,900,04/06/2014
Delivery Units,Adults and Communities,Other Agencies - Third Party Payment,30013081,INDIVIDUALISED CARE LIMITED,824,05/06/2014
Delivery Units,Adults and Communities,Other Agencies - Third Party Payment,30013082,INDIVIDUALISED CARE LIMITED,800,05/06/2014
Delivery Units,Adults and Communities,Other Agencies - Third Party Payment,30013083,INDIVIDUALISED CARE LIMITED,700,05/06/2014
Delivery Units,Adults and Communities,Other Agencies - Third Party Payment,30013084,INDIVIDUALISED CARE LIMITED,642,05/06/2014
Delivery Units,Adults and Communities,Other Agencies - Third Party Payment,30013085,INDIVIDUALISED CARE LIMITED,800,05/06/2014
Delivery Units,Adults and Communities,Other Agencies - Third Party Payment,30014307,INDIVIDUALISED CARE LIMITED,"2,400.00",13/06/2014
Delivery Units,Adults and Communities,Other Agencies - Third Party Payment,30018565,INDIVIDUALISED CARE LIMITED,"2,400.00",30/06/2014
Delivery Units,Adults and Communities,Other Agencies - Third Party Payment,30018566,INDIVIDUALISED CARE LIMITED,"1,800.00",30/06/2014
Delivery Units,Adults and Communities,Other Agencies - Third Party Payment,30018567,INDIVIDUALISED CARE LIMITED,"2,200.00",30/06/2014
Delivery Units,Adults and Communities,Other Agencies - Third Party Payment,30018568,INDIVIDUALISED CARE LIMITED,800,30/06/2014
Delivery Units,Adults and Communities,Other Agencies - Third Party Payment,30018569,INDIVIDUALISED CARE LIMITED,700,30/06/2014
Delivery Units,Adults and Communities,Other Agencies - Third Party Payment,30014646,INSIGHT SPECIALIST BEHAVIOURAL,"5,944.08",16/06/2014
Delivery Units,Adults and Communities,Other Agencies - Third Party Payment,30016612,ISLINGTON OUTLOOK (ST JOHNS),769.65,23/06/2014
Delivery Units,Adults and Communities,Other Agencies - Third Party Payment,30016613,ISLINGTON OUTLOOK (ST JOHNS),879.6,23/06/2014
Delivery Units,Adults and Communities,Other Agencies - Third Party Payment,30018071,IVER HOUSE LTD,"3,824.27",27/06/2014
Delivery Units,Adults and Communities,Other Agencies - Third Party Payment,30011678,JANITH HOMES LTD,"2,650.19",04/06/2014
Delivery Units,Adults and Communities,Other Agencies - Third Party Payment,30013261,JEAN JUGAN RESIDENCE,"2,094.52",09/06/2014
Delivery Units,Adults and Communities,Other Agencies - Third Party Payment,30014609,JEMINI RESPONSE,"9,400.00",23/06/2014
Delivery Units,Adults and Communities,Other Agencies - Third Party Payment,30011796,JEWISH CARE,"2,001.92",04/06/2014
Delivery Units,Adults and Communities,Other Agencies - Third Party Payment,30011797,JEWISH CARE,"3,200.00",04/06/2014
Delivery Units,Adults and Communities,Other Agencies - Third Party Payment,30011800,JEWISH CARE,"5,000.00",04/06/2014
Delivery Units,Adults and Communities,Other Agencies - Third Party Payment,30011801,JEWISH CARE,"3,800.00",04/06/2014
Delivery Units,Adults and Communities,Other Agencies - Third Party Payment,30011804,JEWISH CARE,"2,094.52",04/06/2014
Delivery Units,Adults and Communities,Other Agencies - Third Party Payment,30011805,JEWISH CARE,"3,360.00",04/06/2014
Delivery Units,Adults and Communities,Other Agencies - Third Party Payment,30011808,JEWISH CARE,"2,133.84",04/06/2014
Delivery Units,Adults and Communities,Other Agencies - Third Party Payment,30012722,JEWISH CARE,936.02,04/06/2014
Delivery Units,Adults and Communities,Other Agencies - Third Party Payment,30013464,JEWISH CARE,"2,318.93",11/06/2014
Delivery Units,Adults and Communities,Other Agencies - Third Party Payment,30016097,JEWISH CARE,"3,200.00",19/06/2014
Delivery Units,Adults and Communities,Other Agencies - Third Party Payment,30016098,JEWISH CARE,"5,000.00",19/06/2014
Delivery Units,Adults and Communities,Other Agencies - Third Party Payment,30016100,JEWISH CARE,"1,196.87",19/06/2014
Delivery Units,Adults and Communities,Other Agencies - Third Party Payment,30016102,JEWISH CARE,857.97,19/06/2014
Delivery Units,Adults and Communities,Other Agencies - Third Party Payment,30016106,JEWISH CARE,"2,001.92",19/06/2014
Delivery Units,Adults and Communities,Other Agencies - Third Party Payment,30016107,JEWISH CARE,"3,200.00",19/06/2014
Delivery Units,Adults and Communities,Other Agencies - Third Party Payment,30016112,JEWISH CARE,"2,094.52",19/06/2014
Delivery Units,Adults and Communities,Other Agencies - Third Party Payment,30016113,JEWISH CARE,"3,360.00",19/06/2014
Delivery Units,Adults and Communities,Other Agencies - Third Party Payment,30016581,JEWISH CARE,"3,800.00",23/06/2014
Delivery Units,Adults and Communities,Other Agencies - Third Party Payment,30017694,JEWISH CARE,"3,214.28",25/06/2014
Delivery Units,Adults and Communities,Other Agencies - Third Party Payment,30017696,JEWISH CARE,"2,133.84",25/06/2014
Delivery Units,Adults and Communities,Other Agencies - Third Party Payment,30017698,JEWISH CARE,"3,276.06",25/06/2014
Delivery Units,Adults and Communities,Other Agencies - Third Party Payment,30017699,JEWISH CARE,"-2,964.05",25/06/2014
Delivery Units,Adults and Communities,Other Agencies - Third Party Payment,30018078,JEWISH CARE,-714.97,27/06/2014
Delivery Units,Adults and Communities,Other Agencies - Third Party Payment,30018079,JEWISH CARE,772.57,27/06/2014
Delivery Units,Adults and Communities,Other Agencies - Third Party Payment,30018612,JEWISH CARE,-673.24,30/06/2014
Delivery Units,Adults and Communities,Other Agencies - Third Party Payment,30013086,JIGSAW CREATIVE CARE LIMITED,"2,998.68",05/06/2014
Delivery Units,Adults and Communities,Other Agencies - Third Party Payment,30013087,JIGSAW CREATIVE CARE LIMITED,"1,412.00",05/06/2014
Delivery Units,Adults and Communities,Other Agencies - Third Party Payment,30013088,JIGSAW CREATIVE CARE LIMITED,"2,783.00",05/06/2014
Delivery Units,Adults and Communities,Other Agencies - Third Party Payment,30014314,JIGSAW CREATIVE CARE LIMITED,"2,998.68",13/06/2014
Delivery Units,Adults and Communities,Other Agencies - Third Party Payment,30014315,JIGSAW CREATIVE CARE LIMITED,"1,412.00",13/06/2014
Delivery Units,Adults and Communities,Other Agencies - Third Party Payment,30014316,JIGSAW CREATIVE CARE LIMITED,"2,783.00",13/06/2014
Delivery Units,Adults and Communities,Other Agencies - Third Party Payment,30015820,JIGSAW CREATIVE CARE LIMITED,"2,998.68",18/06/2014
Delivery Units,Adults and Communities,Other Agencies - Third Party Payment,30015821,JIGSAW CREATIVE CARE LIMITED,"1,412.00",18/06/2014
Delivery Units,Adults and Communities,Other Agencies - Third Party Payment,30015823,JIGSAW CREATIVE CARE LIMITED,"2,783.00",18/06/2014
Delivery Units,Adults and Communities,Other Agencies - Third Party Payment,30018040,JIGSAW CREATIVE CARE LIMITED,"2,998.68",27/06/2014
Delivery Units,Adults and Communities,Other Agencies - Third Party Payment,30018041,JIGSAW CREATIVE CARE LIMITED,"1,412.00",27/06/2014
Delivery Units,Adults and Communities,Other Agencies - Third Party Payment,30018042,JIGSAW CREATIVE CARE LIMITED,"2,783.00",27/06/2014
Delivery Units,Adults and Communities,Other Agencies - Third Party Payment,30012671,KEMBLE HOUSE,"8,192.99",04/06/2014
Delivery Units,Adults and Communities,Other Agencies - Third Party Payment,30014283,KIRKLEY MANOR,"2,001.92",12/06/2014
Delivery Units,Adults and Communities,Other Agencies - Third Party Payment,20007576,KISHARON DAY SCHOOL,733.72,26/06/2014
Delivery Units,Adults and Communities,Other Agencies - Third Party Payment,30014638,KISHARON DAY SCHOOL,"3,098.05",16/06/2014
Delivery Units,Adults and Communities,Other Agencies - Third Party Payment,30014640,KISHARON DAY SCHOOL,"5,044.23",16/06/2014
Delivery Units,Adults and Communities,Other Agencies - Third Party Payment,30014642,KISHARON DAY SCHOOL,"3,098.05",16/06/2014
Delivery Units,Adults and Communities,Other Agencies - Third Party Payment,30014644,KISHARON DAY SCHOOL,"3,098.05",16/06/2014
Delivery Units,Adults and Communities,Other Agencies - Third Party Payment,30014958,KISHARON DAY SCHOOL,"1,133.60",17/06/2014
Delivery Units,Adults and Communities,Other Agencies - Third Party Payment,30018584,KISHARON DAY SCHOOL,"1,464.03",30/06/2014
Delivery Units,Adults and Communities,Other Agencies - Third Party Payment,30018585,KISHARON DAY SCHOOL,"2,144.10",30/06/2014
Delivery Units,Adults and Communities,Other Agencies - Third Party Payment,30018586,KISHARON DAY SCHOOL,"2,284.24",30/06/2014
Delivery Units,Adults and Communities,Other Agencies - Third Party Payment,30018587,KISHARON DAY SCHOOL,"1,373.68",30/06/2014
Delivery Units,Adults and Communities,Other Agencies - Third Party Payment,30018588,KISHARON DAY SCHOOL,"1,373.49",30/06/2014
Delivery Units,Adults and Communities,Other Agencies - Third Party Payment,30018589,KISHARON DAY SCHOOL,794.08,30/06/2014
Delivery Units,Adults and Communities,Other Agencies - Third Party Payment,30018591,KISHARON DAY SCHOOL,"1,373.49",30/06/2014
Delivery Units,Adults and Communities,Other Agencies - Third Party Payment,30018593,KISHARON DAY SCHOOL,"1,679.87",30/06/2014
Delivery Units,Adults and Communities,Other Agencies - Third Party Payment,30018594,KISHARON DAY SCHOOL,"1,340.18",30/06/2014
Delivery Units,Adults and Communities,Other Agencies - Third Party Payment,30018595,KISHARON DAY SCHOOL,"1,241.16",30/06/2014
Delivery Units,Adults and Communities,Other Agencies - Third Party Payment,30018596,KISHARON DAY SCHOOL,"1,369.23",30/06/2014
Delivery Units,Adults and Communities,Other Agencies - Third Party Payment,30018597,KISHARON DAY SCHOOL,"1,373.68",30/06/2014
Delivery Units,Adults and Communities,Other Agencies - Third Party Payment,30018598,KISHARON DAY SCHOOL,733.72,30/06/2014
Delivery Units,Adults and Communities,Other Agencies - Third Party Payment,30018600,KISHARON DAY SCHOOL,"1,275.96",30/06/2014
Delivery Units,Adults and Communities,Other Agencies - Third Party Payment,30018603,KISHARON DAY SCHOOL,"1,133.60",30/06/2014
Delivery Units,Adults and Communities,Other Agencies - Third Party Payment,30011974,LANCASTER COURT,"2,257.11",04/06/2014
Delivery Units,Adults and Communities,Other Agencies - Third Party Payment,30011975,LANCASTER COURT,"2,615.38",04/06/2014
Delivery Units,Adults and Communities,Other Agencies - Third Party Payment,30017725,LEEMING BAR CARE HOME,"1,939.32",25/06/2014
Delivery Units,Adults and Communities,Other Agencies - Third Party Payment,30014209,LEO BAECK HOUSING ASSOC. LTD,"4,361.32",19/06/2014
Delivery Units,Adults and Communities,Other Agencies - Third Party Payment,30014210,LEO BAECK HOUSING ASSOC. LTD,"4,758.00",19/06/2014
Delivery Units,Adults and Communities,Other Agencies - Third Party Payment,30014211,LEO BAECK HOUSING ASSOC. LTD,"4,361.32",19/06/2014
Delivery Units,Adults and Communities,Other Agencies - Third Party Payment,30006623,LEWIS.W.HAMMERSON MEMORIAL HOME,"2,216.41",04/06/2014
Delivery Units,Adults and Communities,Other Agencies - Third Party Payment,30006624,LEWIS.W.HAMMERSON MEMORIAL HOME,"2,144.91",04/06/2014
Delivery Units,Adults and Communities,Other Agencies - Third Party Payment,30006646,LEWIS.W.HAMMERSON MEMORIAL HOME,"-10,510.08",04/06/2014
Delivery Units,Adults and Communities,Other Agencies - Third Party Payment,30012814,LEWIS.W.HAMMERSON MEMORIAL HOME,"2,216.41",04/06/2014
Delivery Units,Adults and Communities,Other Agencies - Third Party Payment,30012815,LEWIS.W.HAMMERSON MEMORIAL HOME,-539.44,04/06/2014
Delivery Units,Adults and Communities,Other Agencies - Third Party Payment,30012816,LEWIS.W.HAMMERSON MEMORIAL HOME,"2,318.93",04/06/2014
Delivery Units,Adults and Communities,Other Agencies - Third Party Payment,30012817,LEWIS.W.HAMMERSON MEMORIAL HOME,-538.07,04/06/2014
Delivery Units,Adults and Communities,Other Agencies - Third Party Payment,30012818,LEWIS.W.HAMMERSON MEMORIAL HOME,"2,216.41",04/06/2014
Delivery Units,Adults and Communities,Other Agencies - Third Party Payment,30012819,LEWIS.W.HAMMERSON MEMORIAL HOME,"2,216.42",04/06/2014
Delivery Units,Adults and Communities,Other Agencies - Third Party Payment,30012820,LEWIS.W.HAMMERSON MEMORIAL HOME,-880.98,04/06/2014
Delivery Units,Adults and Communities,Other Agencies - Third Party Payment,30012821,LEWIS.W.HAMMERSON MEMORIAL HOME,"2,216.42",04/06/2014
Delivery Units,Adults and Communities,Other Agencies - Third Party Payment,30012822,LEWIS.W.HAMMERSON MEMORIAL HOME,-651.27,04/06/2014
Delivery Units,Adults and Communities,Other Agencies - Third Party Payment,30012823,LEWIS.W.HAMMERSON MEMORIAL HOME,"2,216.41",04/06/2014
Delivery Units,Adults and Communities,Other Agencies - Third Party Payment,30012824,LEWIS.W.HAMMERSON MEMORIAL HOME,"2,216.41",04/06/2014
Delivery Units,Adults and Communities,Other Agencies - Third Party Payment,30018672,LEWIS.W.HAMMERSON MEMORIAL HOME,"2,144.91",30/06/2014
Delivery Units,Adults and Communities,Other Agencies - Third Party Payment,30018673,LEWIS.W.HAMMERSON MEMORIAL HOME,-852.55,30/06/2014
Delivery Units,Adults and Communities,Other Agencies - Third Party Payment,30018674,LEWIS.W.HAMMERSON MEMORIAL HOME,"2,144.91",30/06/2014
Delivery Units,Adults and Communities,Other Agencies - Third Party Payment,30018675,LEWIS.W.HAMMERSON MEMORIAL HOME,-630.25,30/06/2014
Delivery Units,Adults and Communities,Other Agencies - Third Party Payment,30018676,LEWIS.W.HAMMERSON MEMORIAL HOME,"2,144.91",30/06/2014
Delivery Units,Adults and Communities,Other Agencies - Third Party Payment,30018677,LEWIS.W.HAMMERSON MEMORIAL HOME,-522.04,30/06/2014
Delivery Units,Adults and Communities,Other Agencies - Third Party Payment,30018706,LEWIS.W.HAMMERSON MEMORIAL HOME,"2,244.12",30/06/2014
Delivery Units,Adults and Communities,Other Agencies - Third Party Payment,30018707,LEWIS.W.HAMMERSON MEMORIAL HOME,-520.71,30/06/2014
Delivery Units,Adults and Communities,Other Agencies - Third Party Payment,30014291,LIFESTYLE CARE 2011 PLC,"2,138.00",12/06/2014
Delivery Units,Adults and Communities,Other Agencies - Third Party Payment,30011918,LIFESTYLE CARE PLC,"2,318.93",04/06/2014
Delivery Units,Adults and Communities,Other Agencies - Third Party Payment,30011919,LIFESTYLE CARE PLC,"2,318.93",04/06/2014
Delivery Units,Adults and Communities,Other Agencies - Third Party Payment,30011920,LIFESTYLE CARE PLC,"2,318.93",04/06/2014
Delivery Units,Adults and Communities,Other Agencies - Third Party Payment,30011921,LIFESTYLE CARE PLC,"2,318.93",04/06/2014
Delivery Units,Adults and Communities,Other Agencies - Third Party Payment,30011922,LIFESTYLE CARE PLC,"2,570.39",04/06/2014
Delivery Units,Adults and Communities,Other Agencies - Third Party Payment,30011923,LIFESTYLE CARE PLC,"2,418.04",04/06/2014
Delivery Units,Adults and Communities,Other Agencies - Third Party Payment,30011925,LIFESTYLE CARE PLC,"2,570.39",04/06/2014
Delivery Units,Adults and Communities,Other Agencies - Third Party Payment,30011926,LIFESTYLE CARE PLC,"1,645.69",04/06/2014
Delivery Units,Adults and Communities,Other Agencies - Third Party Payment,30011927,LIFESTYLE CARE PLC,"1,645.69",04/06/2014
Delivery Units,Adults and Communities,Other Agencies - Third Party Payment,30011928,LIFESTYLE CARE PLC,"-1,492.48",04/06/2014
Delivery Units,Adults and Communities,Other Agencies - Third Party Payment,30013138,LIFEWAYS,"1,317.46",05/06/2014
Delivery Units,Adults and Communities,Other Agencies - Third Party Payment,30013332,LIFEWAYS,"3,145.24",09/06/2014
Delivery Units,Adults and Communities,Other Agencies - Third Party Payment,30013333,LIFEWAYS,"6,930.00",09/06/2014
Delivery Units,Adults and Communities,Other Agencies - Third Party Payment,30013335,LIFEWAYS,"5,037.40",09/06/2014
Delivery Units,Adults and Communities,Other Agencies - Third Party Payment,30013336,LIFEWAYS,"5,943.00",09/06/2014
Delivery Units,Adults and Communities,Other Agencies - Third Party Payment,30013341,LIFEWAYS,"3,656.00",09/06/2014
Delivery Units,Adults and Communities,Other Agencies - Third Party Payment,30013342,LIFEWAYS,"5,766.44",09/06/2014
Delivery Units,Adults and Communities,Other Agencies - Third Party Payment,30013344,LIFEWAYS,"2,377.20",09/06/2014
Delivery Units,Adults and Communities,Other Agencies - Third Party Payment,30013345,LIFEWAYS,"4,828.24",09/06/2014
Delivery Units,Adults and Communities,Other Agencies - Third Party Payment,30011693,LILAS HOUSE,"2,574.32",04/06/2014
Delivery Units,Adults and Communities,Other Agencies - Third Party Payment,30017618,LILAS HOUSE,"2,574.32",25/06/2014
Delivery Units,Adults and Communities,Other Agencies - Third Party Payment,30011855,LIVABILITY,"3,672.00",04/06/2014
Delivery Units,Adults and Communities,Other Agencies - Third Party Payment,30011942,LIVABILITY,"4,891.20",04/06/2014
Delivery Units,Adults and Communities,Other Agencies - Third Party Payment,30011943,LIVABILITY,"5,279.24",04/06/2014
Delivery Units,Adults and Communities,Other Agencies - Third Party Payment,30012729,LIVABILITY,"3,942.52",04/06/2014
Delivery Units,Adults and Communities,Other Agencies - Third Party Payment,30012731,LIVABILITY,"3,424.00",04/06/2014
Delivery Units,Adults and Communities,Other Agencies - Third Party Payment,30012732,LIVABILITY,"2,766.88",04/06/2014
Delivery Units,Adults and Communities,Other Agencies - Third Party Payment,30014271,LIVABILITY,"3,942.52",12/06/2014
Delivery Units,Adults and Communities,Other Agencies - Third Party Payment,30014273,LIVABILITY,"3,189.32",12/06/2014
Delivery Units,Adults and Communities,Other Agencies - Third Party Payment,30014275,LIVABILITY,"3,424.00",12/06/2014
Delivery Units,Adults and Communities,Other Agencies - Third Party Payment,30014276,LIVABILITY,"2,766.88",12/06/2014
Delivery Units,Adults and Communities,Other Agencies - Third Party Payment,30014278,LIVABILITY,"3,672.00",12/06/2014
Delivery Units,Adults and Communities,Other Agencies - Third Party Payment,30011725,LONG FURROWS RESIDENTIAL CARE HOME,"4,242.08",04/06/2014
Delivery Units,Adults and Communities,Other Agencies - Third Party Payment,30011726,LONG FURROWS RESIDENTIAL CARE HOME,-548.92,04/06/2014
Delivery Units,Adults and Communities,Other Agencies - Third Party Payment,30011930,M D HOMES,"3,542.86",04/06/2014
Delivery Units,Adults and Communities,Other Agencies - Third Party Payment,30014679,MACINTYRE CARE,"4,015.72",16/06/2014
Delivery Units,Adults and Communities,Other Agencies - Third Party Payment,30014681,MACINTYRE CARE,"2,332.48",16/06/2014
Delivery Units,Adults and Communities,Other Agencies - Third Party Payment,30014683,MACINTYRE CARE,750.4,16/06/2014
Delivery Units,Adults and Communities,Other Agencies - Third Party Payment,30014684,MACINTYRE CARE,"3,812.84",16/06/2014
Delivery Units,Adults and Communities,Other Agencies - Third Party Payment,30014686,MACINTYRE CARE,"3,570.16",16/06/2014
Delivery Units,Adults and Communities,Other Agencies - Third Party Payment,30014688,MACINTYRE CARE,"2,326.48",16/06/2014
Delivery Units,Adults and Communities,Other Agencies - Third Party Payment,30013359,MADELAYNE COURT,"2,216.41",09/06/2014
Delivery Units,Adults and Communities,Other Agencies - Third Party Payment,30013438,MAISON MOTI LTD,"3,260.00",11/06/2014
Delivery Units,Adults and Communities,Other Agencies - Third Party Payment,30013444,MAISON MOTI LTD,"1,642.48",11/06/2014
Delivery Units,Adults and Communities,Other Agencies - Third Party Payment,30013446,MAISON MOTI LTD,"2,240.00",11/06/2014
Delivery Units,Adults and Communities,Other Agencies - Third Party Payment,30013447,MAISON MOTI LTD,"2,500.00",11/06/2014
Delivery Units,Adults and Communities,Other Agencies - Third Party Payment,30013448,MAISON MOTI LTD,"2,500.00",11/06/2014
Delivery Units,Adults and Communities,Other Agencies - Third Party Payment,30013449,MAISON MOTI LTD,"1,026.00",11/06/2014
Delivery Units,Adults and Communities,Other Agencies - Third Party Payment,30011695,MANDELA HOUSE,"4,050.36",04/06/2014
Delivery Units,Adults and Communities,Other Agencies - Third Party Payment,30011710,MANDELA HOUSE,"3,541.84",04/06/2014
Delivery Units,Adults and Communities,Other Agencies - Third Party Payment,30017620,MANDELA HOUSE,"4,050.36",25/06/2014
Delivery Units,Adults and Communities,Other Agencies - Third Party Payment,30018066,MANDELA HOUSE,"3,541.84",27/06/2014
Delivery Units,Adults and Communities,Other Agencies - Third Party Payment,30014676,MARRILYNE LODGE,"2,554.16",16/06/2014
Delivery Units,Adults and Communities,Other Agencies - Third Party Payment,30014677,MARRILYNE LODGE,"2,235.12",16/06/2014
Delivery Units,Adults and Communities,Other Agencies - Third Party Payment,30011734,MARYVILLE CARE HOME,"2,318.93",04/06/2014
Delivery Units,Adults and Communities,Other Agencies - Third Party Payment,30011735,MARYVILLE CARE HOME,-548.92,04/06/2014
Delivery Units,Adults and Communities,Other Agencies - Third Party Payment,30011736,MARYVILLE CARE HOME,"2,512.73",04/06/2014
Delivery Units,Adults and Communities,Other Agencies - Third Party Payment,30011737,MARYVILLE CARE HOME,-548.92,04/06/2014
Delivery Units,Adults and Communities,Other Agencies - Third Party Payment,30012812,MCCH SOCIETY LIMITED,"4,280.00",23/06/2014
Delivery Units,Adults and Communities,Other Agencies - Third Party Payment,30011851,MEERA NURSING HOME LIMITED,"2,318.93",04/06/2014
Delivery Units,Adults and Communities,Other Agencies - Third Party Payment,30011913,MEERA NURSING HOME LIMITED,"2,320.57",04/06/2014
Delivery Units,Adults and Communities,Other Agencies - Third Party Payment,30011945,MEERA NURSING HOME LIMITED,"2,318.93",04/06/2014
Delivery Units,Adults and Communities,Other Agencies - Third Party Payment,30011953,MEERA NURSING HOME LIMITED,"2,318.93",04/06/2014
Delivery Units,Adults and Communities,Other Agencies - Third Party Payment,30011957,MEERA NURSING HOME LIMITED,"2,531.42",04/06/2014
Delivery Units,Adults and Communities,Other Agencies - Third Party Payment,30011958,MEERA NURSING HOME LIMITED,"2,318.93",04/06/2014
Delivery Units,Adults and Communities,Other Agencies - Third Party Payment,30011959,MEERA NURSING HOME LIMITED,"2,320.53",04/06/2014
Delivery Units,Adults and Communities,Other Agencies - Third Party Payment,30011973,MEERA NURSING HOME LIMITED,"2,318.93",04/06/2014
Delivery Units,Adults and Communities,Other Agencies - Third Party Payment,30011984,MEERA NURSING HOME LIMITED,"2,318.93",04/06/2014
Delivery Units,Adults and Communities,Other Agencies - Third Party Payment,30011939,METHODIST HOMES FOR THE AGED,"2,001.92",04/06/2014
Delivery Units,Adults and Communities,Other Agencies - Third Party Payment,30011950,METHODIST HOMES FOR THE AGED,"2,500.00",04/06/2014
Delivery Units,Adults and Communities,Other Agencies - Third Party Payment,30018664,METHODIST HOMES FOR THE AGED,"2,001.92",30/06/2014
Delivery Units,Adults and Communities,Other Agencies - Third Party Payment,30018666,METHODIST HOMES FOR THE AGED,"2,500.00",30/06/2014
Delivery Units,Adults and Communities,Other Agencies - Third Party Payment,30011986,MILBURY,"6,235.00",04/06/2014
Delivery Units,Adults and Communities,Other Agencies - Third Party Payment,30016658,MILBURY,"6,235.00",23/06/2014
Delivery Units,Adults and Communities,Other Agencies - Third Party Payment,30018647,ML HOMES LTD,"2,118.36",27/06/2014
Delivery Units,Adults and Communities,Other Agencies - Third Party Payment,30018650,ML HOMES LTD,"1,751.16",27/06/2014
Delivery Units,Adults and Communities,Other Agencies - Third Party Payment,30018653,ML HOMES LTD,"2,118.36",27/06/2014
Delivery Units,Adults and Communities,Other Agencies - Third Party Payment,30018654,ML HOMES LTD,"1,955.84",27/06/2014
Delivery Units,Adults and Communities,Other Agencies - Third Party Payment,30018656,ML HOMES LTD,"1,765.80",27/06/2014
Delivery Units,Adults and Communities,Other Agencies - Third Party Payment,30018663,ML HOMES LTD,"1,751.16",27/06/2014
Delivery Units,Adults and Communities,Other Agencies - Third Party Payment,30018667,ML HOMES LTD,"1,767.40",27/06/2014
Delivery Units,Adults and Communities,Other Agencies - Third Party Payment,30018703,ML HOMES LTD,"1,820.00",27/06/2014
Delivery Units,Adults and Communities,Other Agencies - Third Party Payment,30018704,ML HOMES LTD,"1,780.00",27/06/2014
Delivery Units,Adults and Communities,Other Agencies - Third Party Payment,20008580,MONREAD LODGE NURSING HOME LTD,"1,940.68",26/06/2014
Delivery Units,Adults and Communities,Other Agencies - Third Party Payment,30011843,NAS SERVICES LTD,"3,666.96",04/06/2014
Delivery Units,Adults and Communities,Other Agencies - Third Party Payment,30017704,NAS SERVICES LTD,"3,666.96",25/06/2014
Delivery Units,Adults and Communities,Other Agencies - Third Party Payment,30011891,NAZARETH HOUSE,"2,216.41",04/06/2014
Delivery Units,Adults and Communities,Other Agencies - Third Party Payment,30013349,NAZARETH HOUSE,"2,216.01",09/06/2014
Delivery Units,Adults and Communities,Other Agencies - Third Party Payment,30012681,NEEM TREE CARE CENTRE,628.57,04/06/2014
Delivery Units,Adults and Communities,Other Agencies - Third Party Payment,30012682,NEEM TREE CARE CENTRE,"2,697.00",04/06/2014
Delivery Units,Adults and Communities,Other Agencies - Third Party Payment,30011636,NEWCENTURY CARE LTD,"2,618.61",04/06/2014
Delivery Units,Adults and Communities,Other Agencies - Third Party Payment,30013201,NEWCENTURY CARE LTD,"2,288.00",06/06/2014
Delivery Units,Adults and Communities,Other Agencies - Third Party Payment,30014665,NEXT STEP SUPPORT LIMITED,"2,240.00",16/06/2014
Delivery Units,Adults and Communities,Other Agencies - Third Party Payment,30014694,NEXT STEP SUPPORT LIMITED,"2,000.00",16/06/2014
Delivery Units,Adults and Communities,Other Agencies - Third Party Payment,30014690,NIGHTINGALE HOUSE,"2,442.86",13/06/2014
Delivery Units,Adults and Communities,Other Agencies - Third Party Payment,30014691,NIGHTINGALE HOUSE,"2,524.29",13/06/2014
Delivery Units,Adults and Communities,Other Agencies - Third Party Payment,30018679,NIGHTINGALE HOUSE,"2,239.41",27/06/2014
Delivery Units,Adults and Communities,Other Agencies - Third Party Payment,30018680,NIGHTINGALE HOUSE,"2,314.06",27/06/2014
Delivery Units,Adults and Communities,Other Agencies - Third Party Payment,30018681,NIGHTINGALE HOUSE,"2,239.41",27/06/2014
Delivery Units,Adults and Communities,Other Agencies - Third Party Payment,30018682,NIGHTINGALE HOUSE,"2,232.90",27/06/2014
Delivery Units,Adults and Communities,Other Agencies - Third Party Payment,30018683,NIGHTINGALE HOUSE,-535.76,27/06/2014
Delivery Units,Adults and Communities,Other Agencies - Third Party Payment,30018684,NIGHTINGALE HOUSE,"2,314.06",27/06/2014
Delivery Units,Adults and Communities,Other Agencies - Third Party Payment,30018685,NIGHTINGALE HOUSE,-560.35,27/06/2014
Delivery Units,Adults and Communities,Other Agencies - Third Party Payment,30018686,NIGHTINGALE HOUSE,"2,239.41",27/06/2014
Delivery Units,Adults and Communities,Other Agencies - Third Party Payment,30018687,NIGHTINGALE HOUSE,-542.27,27/06/2014
Delivery Units,Adults and Communities,Other Agencies - Third Party Payment,30011712,NORTH LONDON CARE SERVICES LTD,"6,260.84",04/06/2014
Delivery Units,Adults and Communities,Other Agencies - Third Party Payment,30013514,NORWOOD RAVENSWOOD SCHOOLS LTD,"4,500.00",11/06/2014
Delivery Units,Adults and Communities,Other Agencies - Third Party Payment,30013515,NORWOOD RAVENSWOOD SCHOOLS LTD,"7,650.00",11/06/2014
Delivery Units,Adults and Communities,Other Agencies - Third Party Payment,30013516,NORWOOD RAVENSWOOD SCHOOLS LTD,"5,850.00",11/06/2014
Delivery Units,Adults and Communities,Other Agencies - Third Party Payment,30013527,NORWOOD RAVENSWOOD SCHOOLS LTD,"8,224.00",11/06/2014
Delivery Units,Adults and Communities,Other Agencies - Third Party Payment,30013531,NORWOOD RAVENSWOOD SCHOOLS LTD,"8,224.00",11/06/2014
Delivery Units,Adults and Communities,Other Agencies - Third Party Payment,30016626,NORWOOD RAVENSWOOD SCHOOLS LTD,"5,732.00",23/06/2014
Delivery Units,Adults and Communities,Other Agencies - Third Party Payment,30016628,NORWOOD RAVENSWOOD SCHOOLS LTD,"6,528.00",23/06/2014
Delivery Units,Adults and Communities,Other Agencies - Third Party Payment,30016632,NORWOOD RAVENSWOOD SCHOOLS LTD,"7,788.00",23/06/2014
Delivery Units,Adults and Communities,Other Agencies - Third Party Payment,30016640,NORWOOD RAVENSWOOD SCHOOLS LTD,"4,748.00",23/06/2014
Delivery Units,Adults and Communities,Other Agencies - Third Party Payment,30016642,NORWOOD RAVENSWOOD SCHOOLS LTD,"4,924.00",23/06/2014
Delivery Units,Adults and Communities,Other Agencies - Third Party Payment,30016646,NORWOOD RAVENSWOOD SCHOOLS LTD,"7,148.00",23/06/2014
Delivery Units,Adults and Communities,Other Agencies - Third Party Payment,30016652,NORWOOD RAVENSWOOD SCHOOLS LTD,"4,656.00",23/06/2014
Delivery Units,Adults and Communities,Other Agencies - Third Party Payment,30017744,NORWOOD RAVENSWOOD SCHOOLS LTD,"5,936.71",25/06/2014
Delivery Units,Adults and Communities,Other Agencies - Third Party Payment,30017745,NORWOOD RAVENSWOOD SCHOOLS LTD,-503.36,25/06/2014
Delivery Units,Adults and Communities,Other Agencies - Third Party Payment,30017746,NORWOOD RAVENSWOOD SCHOOLS LTD,"5,998.86",25/06/2014
Delivery Units,Adults and Communities,Other Agencies - Third Party Payment,30017750,NORWOOD RAVENSWOOD SCHOOLS LTD,"5,540.00",25/06/2014
Delivery Units,Adults and Communities,Other Agencies - Third Party Payment,30017755,NORWOOD RAVENSWOOD SCHOOLS LTD,"4,924.00",25/06/2014
Delivery Units,Adults and Communities,Other Agencies - Third Party Payment,30018099,NORWOOD RAVENSWOOD SCHOOLS LTD,608,27/06/2014
Delivery Units,Adults and Communities,Other Agencies - Third Party Payment,30018100,NORWOOD RAVENSWOOD SCHOOLS LTD,"1,520.00",27/06/2014
Delivery Units,Adults and Communities,Other Agencies - Third Party Payment,30018101,NORWOOD RAVENSWOOD SCHOOLS LTD,729.6,27/06/2014
Delivery Units,Adults and Communities,Other Agencies - Third Party Payment,30018104,NORWOOD RAVENSWOOD SCHOOLS LTD,790.4,27/06/2014
Delivery Units,Adults and Communities,Other Agencies - Third Party Payment,30018693,NORWOOD RAVENSWOOD SCHOOLS LTD,"1,021.44",30/06/2014
Delivery Units,Adults and Communities,Other Agencies - Third Party Payment,30018697,NORWOOD RAVENSWOOD SCHOOLS LTD,"1,021.44",30/06/2014
Delivery Units,Adults and Communities,Other Agencies - Third Party Payment,30011603,NOTTING HILL HOUSING TRUST,"19,136.25",02/06/2014
Delivery Units,Adults and Communities,Other Agencies - Third Party Payment,30017571,OAKHOUSE,"3,047.48",26/06/2014
Delivery Units,Adults and Communities,Other Agencies - Third Party Payment,30017573,OAKHOUSE,"2,657.68",26/06/2014
Delivery Units,Adults and Communities,Other Agencies - Third Party Payment,30012806,ONE STEP (SUPPORT) LTD,"1,084.60",04/06/2014
Delivery Units,Adults and Communities,Other Agencies - Third Party Payment,30011738,OPTIMAL LIVING (LUTON) LTD,"4,776.70",04/06/2014
Delivery Units,Adults and Communities,Other Agencies - Third Party Payment,30011739,OPTIMAL LIVING (LUTON) LTD,-548.92,04/06/2014
Delivery Units,Adults and Communities,Other Agencies - Third Party Payment,30015938,ORIGIN HOUSING LIMITED,"1,728.00",18/06/2014
Delivery Units,Adults and Communities,Other Agencies - Third Party Payment,30015939,ORIGIN HOUSING LIMITED,"1,324.80",18/06/2014
Delivery Units,Adults and Communities,Other Agencies - Third Party Payment,30015940,ORIGIN HOUSING LIMITED,"1,065.60",18/06/2014
Delivery Units,Adults and Communities,Other Agencies - Third Party Payment,30011680,P J CARE LTD,"7,517.50",04/06/2014
Delivery Units,Adults and Communities,Other Agencies - Third Party Payment,30011688,PARKCARE HOMES (NO2) LIMITED,"5,486.91",04/06/2014
Delivery Units,Adults and Communities,Other Agencies - Third Party Payment,30011690,PARKCARE HOMES (NO2) LIMITED,"4,796.41",04/06/2014
Delivery Units,Adults and Communities,Other Agencies - Third Party Payment,30011727,PARKCARE HOMES (NO2) LIMITED,"4,813.41",04/06/2014
Delivery Units,Adults and Communities,Other Agencies - Third Party Payment,30011729,PARKCARE HOMES (NO2) LIMITED,"5,155.03",04/06/2014
Delivery Units,Adults and Communities,Other Agencies - Third Party Payment,30011731,PARKCARE HOMES (NO2) LIMITED,"5,155.03",04/06/2014
Delivery Units,Adults and Communities,Other Agencies - Third Party Payment,30013121,PILLARCARE,"6,774.40",05/06/2014
Delivery Units,Adults and Communities,Other Agencies - Third Party Payment,30013475,PILLARCARE,"1,332.00",11/06/2014
Delivery Units,Adults and Communities,Other Agencies - Third Party Payment,30011866,PLATINUM HEALTH RESOURCES LTD,"4,949.11",04/06/2014
Delivery Units,Adults and Communities,Other Agencies - Third Party Payment,30011917,PLATINUM HEALTH RESOURCES LTD,"3,764.29",04/06/2014
Delivery Units,Adults and Communities,Other Agencies - Third Party Payment,30013123,PLATINUM HEALTH RESOURCES LTD,"1,597.84",06/06/2014
Delivery Units,Adults and Communities,Other Agencies - Third Party Payment,20007492,PRT BARNET CARERS CENTRE,"2,125.00",04/06/2014
Delivery Units,Adults and Communities,Other Agencies - Third Party Payment,30013432,PRT BARNET CARERS CENTRE,685.04,11/06/2014
Delivery Units,Adults and Communities,Other Agencies - Third Party Payment,30018570,PRT BARNET CARERS CENTRE,777.3,30/06/2014
Delivery Units,Adults and Communities,Other Agencies - Third Party Payment,30011946,PURBECK CARE LTD,"7,891.71",04/06/2014
Delivery Units,Adults and Communities,Other Agencies - Third Party Payment,30011947,PURBECK CARE LTD,-548.92,04/06/2014
Delivery Units,Adults and Communities,Other Agencies - Third Party Payment,30015164,QUALITY HOUSING & SOCIAL CARE LTD,835.71,17/06/2014
Delivery Units,Adults and Communities,Other Agencies - Third Party Payment,30015165,QUALITY HOUSING & SOCIAL CARE LTD,"2,785.71",17/06/2014
Delivery Units,Adults and Communities,Other Agencies - Third Party Payment,30015166,QUALITY HOUSING & SOCIAL CARE LTD,"2,879.28",17/06/2014
Delivery Units,Adults and Communities,Other Agencies - Third Party Payment,30013115,QUANTUM CARE LIMITED,"2,288.53",05/06/2014
Delivery Units,Adults and Communities,Other Agencies - Third Party Payment,30015855,QUANTUM CARE LIMITED,"2,320.53",18/06/2014
Delivery Units,Adults and Communities,Other Agencies - Third Party Payment,30015857,QUANTUM CARE LIMITED,"2,321.90",18/06/2014
Delivery Units,Adults and Communities,Other Agencies - Third Party Payment,30015858,QUANTUM CARE LIMITED,"2,418.04",18/06/2014
Delivery Units,Adults and Communities,Other Agencies - Third Party Payment,30015859,QUANTUM CARE LIMITED,-548.92,18/06/2014
Delivery Units,Adults and Communities,Other Agencies - Third Party Payment,30011932,QUEEN ANN CARE,"3,985.71",04/06/2014
Delivery Units,Adults and Communities,Other Agencies - Third Party Payment,30011654,RAINBOW HOMES LONDON LTD,"4,110.60",04/06/2014
Delivery Units,Adults and Communities,Other Agencies - Third Party Payment,30011655,RAINBOW HOMES LONDON LTD,"3,306.46",04/06/2014
Delivery Units,Adults and Communities,Other Agencies - Third Party Payment,30018083,REAL LIFE OPTIONS,"5,252.28",27/06/2014
Delivery Units,Adults and Communities,Other Agencies - Third Party Payment,30011751,REDACTED - PERSONAL DATA,"4,862.75",04/06/2014
Delivery Units,Adults and Communities,Other Agencies - Third Party Payment,30017588,REHABILITATION EDUCATION AND,"2,961.76",25/06/2014
Delivery Units,Adults and Communities,Other Agencies - Third Party Payment,30017711,RESIDENTIAL CARE PROVIDERS LTD,"7,800.00",25/06/2014
Delivery Units,Adults and Communities,Other Agencies - Third Party Payment,30011657,ROBERT OWEN COMMUNITIES (ROC),"5,912.14",04/06/2014
Delivery Units,Adults and Communities,Other Agencies - Third Party Payment,30011929,ROLAND RESIDENTIAL CARE HOMES,"4,049.44",04/06/2014
Delivery Units,Adults and Communities,Other Agencies - Third Party Payment,30011845,ROLAND RESIDENTIAL CARE HOMES LTD,"3,225.24",04/06/2014
Delivery Units,Adults and Communities,Other Agencies - Third Party Payment,30011865,ROLAND RESIDENTIAL CARE HOMES LTD,"3,274.93",04/06/2014
Delivery Units,Adults and Communities,Other Agencies - Third Party Payment,30011906,ROLAND RESIDENTIAL CARE HOMES LTD,"4,196.51",04/06/2014
Delivery Units,Adults and Communities,Other Agencies - Third Party Payment,30012773,ROSEACRES CARE HOME LIMITED,"2,184.04",04/06/2014
Delivery Units,Adults and Communities,Other Agencies - Third Party Payment,30012774,ROSEACRES CARE HOME LIMITED,"2,418.04",04/06/2014
Delivery Units,Adults and Communities,Other Agencies - Third Party Payment,30012775,ROSEACRES CARE HOME LIMITED,"2,418.04",04/06/2014
Delivery Units,Adults and Communities,Other Agencies - Third Party Payment,30012776,ROSEACRES CARE HOME LIMITED,"2,574.05",04/06/2014
Delivery Units,Adults and Communities,Other Agencies - Third Party Payment,30012777,ROSEACRES CARE HOME LIMITED,"2,418.04",04/06/2014
Delivery Units,Adults and Communities,Other Agencies - Third Party Payment,30012778,ROSEACRES CARE HOME LIMITED,"2,418.04",04/06/2014
Delivery Units,Adults and Communities,Other Agencies - Third Party Payment,30012779,ROSEACRES CARE HOME LIMITED,"2,418.04",04/06/2014
Delivery Units,Adults and Communities,Other Agencies - Third Party Payment,30012780,ROSEACRES CARE HOME LIMITED,"2,418.04",04/06/2014
Delivery Units,Adults and Communities,Other Agencies - Third Party Payment,30012781,ROSEACRES CARE HOME LIMITED,"2,418.04",04/06/2014
Delivery Units,Adults and Communities,Other Agencies - Third Party Payment,30012782,ROSEACRES CARE HOME LIMITED,"2,418.04",04/06/2014
Delivery Units,Adults and Communities,Other Agencies - Third Party Payment,30012783,ROSEACRES CARE HOME LIMITED,"2,418.04",04/06/2014
Delivery Units,Adults and Communities,Other Agencies - Third Party Payment,30012784,ROSEACRES CARE HOME LIMITED,"2,418.04",04/06/2014
Delivery Units,Adults and Communities,Other Agencies - Third Party Payment,30013509,ROSEACRES CARE HOME LIMITED,"2,184.04",11/06/2014
Delivery Units,Adults and Communities,Other Agencies - Third Party Payment,30015168,ROSEACRES CARE HOME LIMITED,546.01,17/06/2014
Delivery Units,Adults and Communities,Other Agencies - Third Party Payment,30015931,ROSEACRES CARE HOME LIMITED,546.01,18/06/2014
Delivery Units,Adults and Communities,Other Agencies - Third Party Payment,30016615,ROSEACRES CARE HOME LIMITED,"2,418.04",23/06/2014
Delivery Units,Adults and Communities,Other Agencies - Third Party Payment,30011912,ROWAN HOUSE,"4,422.28",04/06/2014
Delivery Units,Adults and Communities,Other Agencies - Third Party Payment,30013124,ROWAN HOUSE,"4,422.28",05/06/2014
Delivery Units,Adults and Communities,Other Agencies - Third Party Payment,30014338,ROYAL MENCAP SOCIETY,-821.76,13/06/2014
Delivery Units,Adults and Communities,Other Agencies - Third Party Payment,30014340,ROYAL MENCAP SOCIETY,"1,722.60",13/06/2014
Delivery Units,Adults and Communities,Other Agencies - Third Party Payment,30014341,ROYAL MENCAP SOCIETY,"1,722.60",13/06/2014
Delivery Units,Adults and Communities,Other Agencies - Third Party Payment,30014342,ROYAL MENCAP SOCIETY,"1,722.60",13/06/2014
Delivery Units,Adults and Communities,Other Agencies - Third Party Payment,30014343,ROYAL MENCAP SOCIETY,"1,722.60",13/06/2014
Delivery Units,Adults and Communities,Other Agencies - Third Party Payment,30014344,ROYAL MENCAP SOCIETY,"1,722.60",13/06/2014
Delivery Units,Adults and Communities,Other Agencies - Third Party Payment,30014345,ROYAL MENCAP SOCIETY,"1,722.60",13/06/2014
Delivery Units,Adults and Communities,Other Agencies - Third Party Payment,30014631,ROYAL MENCAP SOCIETY,"1,595.00",16/06/2014
Delivery Units,Adults and Communities,Other Agencies - Third Party Payment,30014632,ROYAL MENCAP SOCIETY,"1,595.00",16/06/2014
Delivery Units,Adults and Communities,Other Agencies - Third Party Payment,30014633,ROYAL MENCAP SOCIETY,"1,595.00",16/06/2014
Delivery Units,Adults and Communities,Other Agencies - Third Party Payment,30014634,ROYAL MENCAP SOCIETY,"1,722.60",16/06/2014
Delivery Units,Adults and Communities,Other Agencies - Third Party Payment,20008258,SAGE NURSING HOME,"2,244.30",19/06/2014
Delivery Units,Adults and Communities,Other Agencies - Third Party Payment,30015844,SAGE NURSING HOME,972.53,18/06/2014
Delivery Units,Adults and Communities,Other Agencies - Third Party Payment,30015846,SAGE NURSING HOME,"2,319.11",18/06/2014
Delivery Units,Adults and Communities,Other Agencies - Third Party Payment,30015847,SAGE NURSING HOME,"2,244.30",18/06/2014
Delivery Units,Adults and Communities,Other Agencies - Third Party Payment,30015848,SAGE NURSING HOME,"2,319.11",18/06/2014
Delivery Units,Adults and Communities,Other Agencies - Third Party Payment,30015849,SAGE NURSING HOME,"2,319.11",18/06/2014
Delivery Units,Adults and Communities,Other Agencies - Third Party Payment,30015850,SAGE NURSING HOME,"2,094.72",18/06/2014
Delivery Units,Adults and Communities,Other Agencies - Third Party Payment,30015851,SAGE NURSING HOME,"2,319.11",18/06/2014
Delivery Units,Adults and Communities,Other Agencies - Third Party Payment,30011892,SANCTUARY CARE LTD,"2,418.04",04/06/2014
Delivery Units,Adults and Communities,Other Agencies - Third Party Payment,30011622,SAXON COURT,"2,434.07",04/06/2014
Delivery Units,Adults and Communities,Other Agencies - Third Party Payment,30011623,SAXON COURT,-548.92,04/06/2014
Delivery Units,Adults and Communities,Other Agencies - Third Party Payment,30011624,SAXON COURT,"2,434.08",04/06/2014
Delivery Units,Adults and Communities,Other Agencies - Third Party Payment,30011625,SAXON COURT,-548.92,04/06/2014
Delivery Units,Adults and Communities,Other Agencies - Third Party Payment,30010417,SCIMITAR CARE HOTELS PLC,543,12/06/2014
Delivery Units,Adults and Communities,Other Agencies - Third Party Payment,30011885,SCIMITAR CARE HOTELS PLC,"2,754.57",04/06/2014
Delivery Units,Adults and Communities,Other Agencies - Third Party Payment,30011886,SCIMITAR CARE HOTELS PLC,-531.21,04/06/2014
Delivery Units,Adults and Communities,Other Agencies - Third Party Payment,30011935,SCIMITAR CARE HOTELS PLC,"2,418.04",04/06/2014
Delivery Units,Adults and Communities,Other Agencies - Third Party Payment,30011630,SCOPE,"3,368.05",04/06/2014
Delivery Units,Adults and Communities,Other Agencies - Third Party Payment,30011631,SCOPE,-548.92,04/06/2014
Delivery Units,Adults and Communities,Other Agencies - Third Party Payment,30011632,SCOPE,"3,000.68",04/06/2014
Delivery Units,Adults and Communities,Other Agencies - Third Party Payment,30011634,SCOPE,"4,000.00",04/06/2014
Delivery Units,Adults and Communities,Other Agencies - Third Party Payment,30013256,SCOPE,"8,232.00",09/06/2014
Delivery Units,Adults and Communities,Other Agencies - Third Party Payment,30014884,SCOPE,"4,000.00",25/06/2014
Delivery Units,Adults and Communities,Other Agencies - Third Party Payment,30017569,SCOPE,"8,674.60",25/06/2014
Delivery Units,Adults and Communities,Other Agencies - Third Party Payment,30017570,SCOPE,"1,764.00",27/06/2014
Delivery Units,Adults and Communities,Other Agencies - Third Party Payment,30018561,SCOPE,"4,000.00",30/06/2014
Delivery Units,Adults and Communities,Other Agencies - Third Party Payment,30016458,SCOTTISH SOCIETY FOR AUTISM,"1,172.08",23/06/2014
Delivery Units,Adults and Communities,Other Agencies - Third Party Payment,30017636,SCOTTISH SOCIETY FOR AUTISM,"5,781.64",25/06/2014
Delivery Units,Adults and Communities,Other Agencies - Third Party Payment,30011867,SEAFORTH LODGE,"2,418.04",04/06/2014
Delivery Units,Adults and Communities,Other Agencies - Third Party Payment,30011911,SEAFORTH LODGE,"2,216.41",04/06/2014
Delivery Units,Adults and Communities,Other Agencies - Third Party Payment,30011948,SEAFORTH LODGE,"2,418.04",04/06/2014
Delivery Units,Adults and Communities,Other Agencies - Third Party Payment,30011951,SEAFORTH LODGE,"2,418.04",04/06/2014
Delivery Units,Adults and Communities,Other Agencies - Third Party Payment,30011978,SEAFORTH LODGE,"2,418.04",04/06/2014
Delivery Units,Adults and Communities,Other Agencies - Third Party Payment,30016606,SEAFORTH LODGE,"2,340.04",23/06/2014
Delivery Units,Adults and Communities,Other Agencies - Third Party Payment,30016607,SEAFORTH LODGE,"2,418.04",23/06/2014
Delivery Units,Adults and Communities,Other Agencies - Third Party Payment,30011841,SELF UNLIMITED,"3,301.85",04/06/2014
Delivery Units,Adults and Communities,Other Agencies - Third Party Payment,30018085,SELF UNLIMITED,"2,291.16",27/06/2014
Delivery Units,Adults and Communities,Other Agencies - Third Party Payment,20007577,SELF UNLIMITED-LONDON REGION,"1,177.20",06/06/2014
Delivery Units,Adults and Communities,Other Agencies - Third Party Payment,30011564,SELF UNLIMITED-LONDON REGION,"1,921.28",02/06/2014
Delivery Units,Adults and Communities,Other Agencies - Third Party Payment,30011565,SELF UNLIMITED-LONDON REGION,"1,695.12",02/06/2014
Delivery Units,Adults and Communities,Other Agencies - Third Party Payment,30011566,SELF UNLIMITED-LONDON REGION,"4,221.36",02/06/2014
Delivery Units,Adults and Communities,Other Agencies - Third Party Payment,30011567,SELF UNLIMITED-LONDON REGION,"1,520.00",02/06/2014
Delivery Units,Adults and Communities,Other Agencies - Third Party Payment,30011568,SELF UNLIMITED-LONDON REGION,"3,947.12",02/06/2014
Delivery Units,Adults and Communities,Other Agencies - Third Party Payment,30011569,SELF UNLIMITED-LONDON REGION,"1,781.44",02/06/2014
Delivery Units,Adults and Communities,Other Agencies - Third Party Payment,30011570,SELF UNLIMITED-LONDON REGION,"1,690.24",02/06/2014
Delivery Units,Adults and Communities,Other Agencies - Third Party Payment,30011571,SELF UNLIMITED-LONDON REGION,"4,025.56",02/06/2014
Delivery Units,Adults and Communities,Other Agencies - Third Party Payment,30011572,SELF UNLIMITED-LONDON REGION,"3,279.56",02/06/2014
Delivery Units,Adults and Communities,Other Agencies - Third Party Payment,30011573,SELF UNLIMITED-LONDON REGION,"1,459.20",02/06/2014
Delivery Units,Adults and Communities,Other Agencies - Third Party Payment,30011574,SELF UNLIMITED-LONDON REGION,"1,155.20",02/06/2014
Delivery Units,Adults and Communities,Other Agencies - Third Party Payment,30011575,SELF UNLIMITED-LONDON REGION,"6,157.84",02/06/2014
Delivery Units,Adults and Communities,Other Agencies - Third Party Payment,30011576,SELF UNLIMITED-LONDON REGION,"3,240.64",02/06/2014
Delivery Units,Adults and Communities,Other Agencies - Third Party Payment,30011577,SELF UNLIMITED-LONDON REGION,"2,783.44",02/06/2014
Delivery Units,Adults and Communities,Other Agencies - Third Party Payment,30011578,SELF UNLIMITED-LONDON REGION,"1,701.20",02/06/2014
Delivery Units,Adults and Communities,Other Agencies - Third Party Payment,30011579,SELF UNLIMITED-LONDON REGION,"2,145.04",02/06/2014
Delivery Units,Adults and Communities,Other Agencies - Third Party Payment,30011580,SELF UNLIMITED-LONDON REGION,"3,554.36",02/06/2014
Delivery Units,Adults and Communities,Other Agencies - Third Party Payment,30011581,SELF UNLIMITED-LONDON REGION,"4,496.16",02/06/2014
Delivery Units,Adults and Communities,Other Agencies - Third Party Payment,30011582,SELF UNLIMITED-LONDON REGION,"6,157.84",02/06/2014
Delivery Units,Adults and Communities,Other Agencies - Third Party Payment,30011583,SELF UNLIMITED-LONDON REGION,"3,947.12",02/06/2014
Delivery Units,Adults and Communities,Other Agencies - Third Party Payment,30011584,SELF UNLIMITED-LONDON REGION,"3,149.44",02/06/2014
Delivery Units,Adults and Communities,Other Agencies - Third Party Payment,30011585,SELF UNLIMITED-LONDON REGION,"1,094.40",02/06/2014
Delivery Units,Adults and Communities,Other Agencies - Third Party Payment,30011586,SELF UNLIMITED-LONDON REGION,"4,859.12",02/06/2014
Delivery Units,Adults and Communities,Other Agencies - Third Party Payment,30011587,SELF UNLIMITED-LONDON REGION,"1,921.28",02/06/2014
Delivery Units,Adults and Communities,Other Agencies - Third Party Payment,30011588,SELF UNLIMITED-LONDON REGION,"1,914.00",02/06/2014
Delivery Units,Adults and Communities,Other Agencies - Third Party Payment,30011589,SELF UNLIMITED-LONDON REGION,"2,926.32",02/06/2014
Delivery Units,Adults and Communities,Other Agencies - Third Party Payment,30011590,SELF UNLIMITED-LONDON REGION,"2,110.96",02/06/2014
Delivery Units,Adults and Communities,Other Agencies - Third Party Payment,30013241,SELF UNLIMITED-LONDON REGION,"1,088.32",06/06/2014
Delivery Units,Adults and Communities,Other Agencies - Third Party Payment,30018615,SELF UNLIMITED-LONDON REGION,"1,921.28",30/06/2014
Delivery Units,Adults and Communities,Other Agencies - Third Party Payment,30018616,SELF UNLIMITED-LONDON REGION,"1,695.12",30/06/2014
Delivery Units,Adults and Communities,Other Agencies - Third Party Payment,30018617,SELF UNLIMITED-LONDON REGION,"1,520.00",30/06/2014
Delivery Units,Adults and Communities,Other Agencies - Third Party Payment,30018618,SELF UNLIMITED-LONDON REGION,"3,947.12",30/06/2014
Delivery Units,Adults and Communities,Other Agencies - Third Party Payment,30018619,SELF UNLIMITED-LONDON REGION,"1,781.44",30/06/2014
Delivery Units,Adults and Communities,Other Agencies - Third Party Payment,30018620,SELF UNLIMITED-LONDON REGION,"1,690.24",30/06/2014
Delivery Units,Adults and Communities,Other Agencies - Third Party Payment,30018621,SELF UNLIMITED-LONDON REGION,"1,088.32",30/06/2014
Delivery Units,Adults and Communities,Other Agencies - Third Party Payment,30018622,SELF UNLIMITED-LONDON REGION,"4,025.56",30/06/2014
Delivery Units,Adults and Communities,Other Agencies - Third Party Payment,30018623,SELF UNLIMITED-LONDON REGION,"3,279.56",30/06/2014
Delivery Units,Adults and Communities,Other Agencies - Third Party Payment,30018624,SELF UNLIMITED-LONDON REGION,"1,155.20",30/06/2014
Delivery Units,Adults and Communities,Other Agencies - Third Party Payment,30018625,SELF UNLIMITED-LONDON REGION,"6,157.84",30/06/2014
Delivery Units,Adults and Communities,Other Agencies - Third Party Payment,30018626,SELF UNLIMITED-LONDON REGION,"3,240.64",30/06/2014
Delivery Units,Adults and Communities,Other Agencies - Third Party Payment,30018627,SELF UNLIMITED-LONDON REGION,"2,783.44",30/06/2014
Delivery Units,Adults and Communities,Other Agencies - Third Party Payment,30018628,SELF UNLIMITED-LONDON REGION,"1,701.20",30/06/2014
Delivery Units,Adults and Communities,Other Agencies - Third Party Payment,30018629,SELF UNLIMITED-LONDON REGION,"2,145.04",30/06/2014
Delivery Units,Adults and Communities,Other Agencies - Third Party Payment,30018630,SELF UNLIMITED-LONDON REGION,"3,554.36",30/06/2014
Delivery Units,Adults and Communities,Other Agencies - Third Party Payment,30018631,SELF UNLIMITED-LONDON REGION,"4,496.16",30/06/2014
Delivery Units,Adults and Communities,Other Agencies - Third Party Payment,30018632,SELF UNLIMITED-LONDON REGION,"3,947.12",30/06/2014
Delivery Units,Adults and Communities,Other Agencies - Third Party Payment,30018633,SELF UNLIMITED-LONDON REGION,"3,149.44",30/06/2014
Delivery Units,Adults and Communities,Other Agencies - Third Party Payment,30018634,SELF UNLIMITED-LONDON REGION,"1,094.40",30/06/2014
Delivery Units,Adults and Communities,Other Agencies - Third Party Payment,30018635,SELF UNLIMITED-LONDON REGION,"4,859.12",30/06/2014
Delivery Units,Adults and Communities,Other Agencies - Third Party Payment,30018636,SELF UNLIMITED-LONDON REGION,"1,921.28",30/06/2014
Delivery Units,Adults and Communities,Other Agencies - Third Party Payment,30018637,SELF UNLIMITED-LONDON REGION,"1,914.00",30/06/2014
Delivery Units,Adults and Communities,Other Agencies - Third Party Payment,30018638,SELF UNLIMITED-LONDON REGION,"2,926.32",30/06/2014
Delivery Units,Adults and Communities,Other Agencies - Third Party Payment,30018639,SELF UNLIMITED-LONDON REGION,"2,110.96",30/06/2014
Delivery Units,Adults and Communities,Other Agencies - Third Party Payment,30018648,SELF UNLIMITED-LONDON REGION,"1,459.20",30/06/2014
Delivery Units,Adults and Communities,Other Agencies - Third Party Payment,30011441,SENSE CAS FINANCE TEAM,"8,206.94",02/06/2014
Delivery Units,Adults and Communities,Other Agencies - Third Party Payment,30011442,SENSE CAS FINANCE TEAM,-548.92,02/06/2014
Delivery Units,Adults and Communities,Other Agencies - Third Party Payment,30011443,SENSE CAS FINANCE TEAM,"6,511.68",02/06/2014
Delivery Units,Adults and Communities,Other Agencies - Third Party Payment,30011445,SENSE CAS FINANCE TEAM,"6,773.28",02/06/2014
Delivery Units,Adults and Communities,Other Agencies - Third Party Payment,30011447,SENSE CAS FINANCE TEAM,"4,754.52",02/06/2014
Delivery Units,Adults and Communities,Other Agencies - Third Party Payment,30013141,SENSE CAS FINANCE TEAM,"3,866.28",10/06/2014
Delivery Units,Adults and Communities,Other Agencies - Third Party Payment,30013142,SENSE CAS FINANCE TEAM,"2,413.60",10/06/2014
Delivery Units,Adults and Communities,Other Agencies - Third Party Payment,30011681,SEVA CARE HOME,"2,216.41",04/06/2014
Delivery Units,Adults and Communities,Other Agencies - Third Party Payment,30011682,SEVA CARE HOME,"2,216.41",04/06/2014
Delivery Units,Adults and Communities,Other Agencies - Third Party Payment,30014678,SGSL LTD,"2,780.00",16/06/2014
Delivery Units,Adults and Communities,Other Agencies - Third Party Payment,30014692,SGSL LTD,"2,399.88",16/06/2014
Delivery Units,Adults and Communities,Other Agencies - Third Party Payment,30014693,SGSL LTD,"2,720.00",16/06/2014
Delivery Units,Adults and Communities,Other Agencies - Third Party Payment,30013504,SHAKTI NURSING HOME,"2,318.93",11/06/2014
Delivery Units,Adults and Communities,Other Agencies - Third Party Payment,30013505,SHAKTI NURSING HOME,"2,318.93",11/06/2014
Delivery Units,Adults and Communities,Other Agencies - Third Party Payment,30012795,SHINE PARTNERSHIPS LTD,"1,885.71",04/06/2014
Delivery Units,Adults and Communities,Other Agencies - Third Party Payment,30013119,SHINE PARTNERSHIPS LTD,"2,352.00",05/06/2014
Delivery Units,Adults and Communities,Other Agencies - Third Party Payment,30013143,SHINE PARTNERSHIPS LTD,"1,414.28",05/06/2014
Delivery Units,Adults and Communities,Other Agencies - Third Party Payment,30011667,SIGN HEALTH,"10,185.71",04/06/2014
Delivery Units,Adults and Communities,Other Agencies - Third Party Payment,30011687,SIMEON CARE,"3,200.40",04/06/2014
Delivery Units,Adults and Communities,Other Agencies - Third Party Payment,30011750,SIR THOMAS LIPTON,"2,216.50",04/06/2014
Delivery Units,Adults and Communities,Other Agencies - Third Party Payment,30018614,SODEXO HEALTHCARE SERVICES LTD,"8,629.95",30/06/2014
Delivery Units,Adults and Communities,Other Agencies - Third Party Payment,30011714,SONESTA NURSING HOME LTD.,"2,318.93",04/06/2014
Delivery Units,Adults and Communities,Other Agencies - Third Party Payment,30011715,SONESTA NURSING HOME LTD.,"2,318.93",04/06/2014
Delivery Units,Adults and Communities,Other Agencies - Third Party Payment,30011716,SONESTA NURSING HOME LTD.,"2,109.73",04/06/2014
Delivery Units,Adults and Communities,Other Agencies - Third Party Payment,30011717,SONESTA NURSING HOME LTD.,"2,318.93",04/06/2014
Delivery Units,Adults and Communities,Other Agencies - Third Party Payment,30011718,SONESTA NURSING HOME LTD.,"2,570.70",04/06/2014
Delivery Units,Adults and Communities,Other Agencies - Third Party Payment,30011960,SOUTHDOWN HOUSING ASSOC. LIMITED,"3,599.28",04/06/2014
Delivery Units,Adults and Communities,Other Agencies - Third Party Payment,30011962,SOUTHDOWN HOUSING ASSOC. LIMITED,"1,291.56",04/06/2014
Delivery Units,Adults and Communities,Other Agencies - Third Party Payment,30016616,SOUTHDOWN HOUSING ASSOC. LIMITED,"3,599.28",23/06/2014
Delivery Units,Adults and Communities,Other Agencies - Third Party Payment,30016618,SOUTHDOWN HOUSING ASSOC. LIMITED,"1,291.56",23/06/2014
Delivery Units,Adults and Communities,Other Agencies - Third Party Payment,30012728,SPANISH AND PORTUGUESE JEWISH,"2,216.41",04/06/2014
Delivery Units,Adults and Communities,Other Agencies - Third Party Payment,30018091,SPRINGBANK CARE HOME,"-2,360.85",27/06/2014
Delivery Units,Adults and Communities,Other Agencies - Third Party Payment,30018092,SPRINGBANK CARE HOME,"-3,541.27",27/06/2014
Delivery Units,Adults and Communities,Other Agencies - Third Party Payment,30018095,SPRINGBANK CARE HOME,"5,508.64",27/06/2014
Delivery Units,Adults and Communities,Other Agencies - Third Party Payment,30018096,SPRINGBANK CARE HOME,"3,541.27",27/06/2014
Delivery Units,Adults and Communities,Other Agencies - Third Party Payment,20008272,SPRINGDENE,"3,321.43",20/06/2014
Delivery Units,Adults and Communities,Other Agencies - Third Party Payment,30014968,SPRINGDENE,"1,047.20",17/06/2014
Delivery Units,Adults and Communities,Other Agencies - Third Party Payment,30015932,SPRINGDENE,598.4,18/06/2014
Delivery Units,Adults and Communities,Other Agencies - Third Party Payment,30018064,SPRINGDENE,"3,617.70",27/06/2014
Delivery Units,Adults and Communities,Other Agencies - Third Party Payment,30018070,SPRINGDENE,-617.87,27/06/2014
Delivery Units,Adults and Communities,Other Agencies - Third Party Payment,30014352,ST ANDREWS DAY CENTRE,"2,689.74",13/06/2014
Delivery Units,Adults and Communities,Other Agencies - Third Party Payment,30011965,ST ELIZABETH'S CENTRE,"4,351.78",04/06/2014
Delivery Units,Adults and Communities,Other Agencies - Third Party Payment,30011966,ST ELIZABETH'S CENTRE,-548.92,04/06/2014
Delivery Units,Adults and Communities,Other Agencies - Third Party Payment,30011967,ST ELIZABETH'S CENTRE,"11,753.34",04/06/2014
Delivery Units,Adults and Communities,Other Agencies - Third Party Payment,30015934,ST ELIZABETH'S CENTRE,"4,211.40",18/06/2014
Delivery Units,Adults and Communities,Other Agencies - Third Party Payment,30015935,ST ELIZABETH'S CENTRE,-529.13,18/06/2014
Delivery Units,Adults and Communities,Other Agencies - Third Party Payment,30015936,ST ELIZABETH'S CENTRE,"11,374.20",18/06/2014
Delivery Units,Adults and Communities,Other Agencies - Third Party Payment,30017740,ST ELIZABETH'S CENTRE,"10,147.50",25/06/2014
Delivery Units,Adults and Communities,Other Agencies - Third Party Payment,30017742,ST ELIZABETH'S CENTRE,"10,485.75",25/06/2014
Delivery Units,Adults and Communities,Other Agencies - Third Party Payment,30012709,ST JOHN'S COLLEGE,"21,710.67",04/06/2014
Delivery Units,Adults and Communities,Other Agencies - Third Party Payment,30012710,ST JOHN'S COLLEGE,"16,492.00",04/06/2014
Delivery Units,Adults and Communities,Other Agencies - Third Party Payment,30016261,ST JOSEPH'S PASTORAL CENTRE,606,20/06/2014
Delivery Units,Adults and Communities,Other Agencies - Third Party Payment,30016262,ST JOSEPH'S PASTORAL CENTRE,579,20/06/2014
Delivery Units,Adults and Communities,Other Agencies - Third Party Payment,30016264,ST JOSEPH'S PASTORAL CENTRE,599,20/06/2014
Delivery Units,Adults and Communities,Other Agencies - Third Party Payment,30018067,ST MUNGO ASSOCIATION,"2,720.00",27/06/2014
Delivery Units,Adults and Communities,Other Agencies - Third Party Payment,30011905,ST PIERS COLLEGE,"15,370.76",04/06/2014
Delivery Units,Adults and Communities,Other Agencies - Third Party Payment,30012754,ST VINCENT'S NURSING HOME,"2,216.41",04/06/2014
Delivery Units,Adults and Communities,Other Agencies - Third Party Payment,30012755,ST VINCENT'S NURSING HOME,-548.92,04/06/2014
Delivery Units,Adults and Communities,Other Agencies - Third Party Payment,30011640,ST. AUDREYS RETIREMENT HOME,"2,418.04",04/06/2014
Delivery Units,Adults and Communities,Other Agencies - Third Party Payment,30012723,ST. MARK'S DAY SERVICE,"1,999.08",09/06/2014
Delivery Units,Adults and Communities,Other Agencies - Third Party Payment,30011852,ST.DAVIDS CARE IN THE,"3,928.63",04/06/2014
Delivery Units,Adults and Communities,Other Agencies - Third Party Payment,30012711,STRIVING FOR INDEPENDENCE HOMES LLP,"6,022.86",04/06/2014
Delivery Units,Adults and Communities,Other Agencies - Third Party Payment,30012712,STRIVING FOR INDEPENDENCE HOMES LLP,-548.92,04/06/2014
Delivery Units,Adults and Communities,Other Agencies - Third Party Payment,30011724,SUNRIDGE HOUSING ASSOCIATION LTD,-560.16,04/06/2014
Delivery Units,Adults and Communities,Other Agencies - Third Party Payment,30017701,SWANBOROUGH HOUSE,"3,722.44",25/06/2014
Delivery Units,Adults and Communities,Other Agencies - Third Party Payment,30011968,SYDMAR LODGE,"2,216.41",04/06/2014
Delivery Units,Adults and Communities,Other Agencies - Third Party Payment,30011969,SYDMAR LODGE,"2,878.57",04/06/2014
Delivery Units,Adults and Communities,Other Agencies - Third Party Payment,30011970,SYDMAR LODGE,"2,418.04",04/06/2014
Delivery Units,Adults and Communities,Other Agencies - Third Party Payment,30013172,SYDMAR LODGE,"1,000.96",05/06/2014
Delivery Units,Adults and Communities,Other Agencies - Third Party Payment,30013173,SYDMAR LODGE,742.86,05/06/2014
Delivery Units,Adults and Communities,Other Agencies - Third Party Payment,30013253,SYDMAR LODGE,500.48,06/06/2014
Delivery Units,Adults and Communities,Other Agencies - Third Party Payment,30011983,TENTERDEN HOUSE,"3,962.42",04/06/2014
Delivery Units,Adults and Communities,Other Agencies - Third Party Payment,30013511,THE BARNETGROUP LIMITED,"1,325.00",11/06/2014
Delivery Units,Adults and Communities,Other Agencies - Third Party Payment,30013513,THE BARNETGROUP LIMITED,"1,325.00",11/06/2014
Delivery Units,Adults and Communities,Other Agencies - Third Party Payment,30014664,THE BEECHES UK LTD,"17,183.15",16/06/2014
Delivery Units,Adults and Communities,Other Agencies - Third Party Payment,30016598,THE BEECHES UK LTD,"13,746.52",23/06/2014
Delivery Units,Adults and Communities,Other Agencies - Third Party Payment,30011955,THE CHRISTIAN CARE TRUST,"2,184.04",04/06/2014
Delivery Units,Adults and Communities,Other Agencies - Third Party Payment,30014669,THE CHRISTIAN CARE TRUST,"2,418.04",16/06/2014
Delivery Units,Adults and Communities,Other Agencies - Third Party Payment,30017724,THE CHRISTIAN CARE TRUST,"2,001.92",25/06/2014
Delivery Units,Adults and Communities,Other Agencies - Third Party Payment,30018668,THE CHRISTIAN CARE TRUST,"2,184.04",30/06/2014
Delivery Units,Adults and Communities,Other Agencies - Third Party Payment,30011761,THE CONIFERS,"2,417.04",04/06/2014
Delivery Units,Adults and Communities,Other Agencies - Third Party Payment,30011762,THE CONIFERS,-503.4,04/06/2014
Delivery Units,Adults and Communities,Other Agencies - Third Party Payment,30013452,THE CONIFERS,"2,497.59",11/06/2014
Delivery Units,Adults and Communities,Other Agencies - Third Party Payment,30013453,THE CONIFERS,-522.35,11/06/2014
Delivery Units,Adults and Communities,Other Agencies - Third Party Payment,30011854,THE DISABILITIES TRUST,"7,758.06",04/06/2014
Delivery Units,Adults and Communities,Other Agencies - Third Party Payment,30011931,THE DISABILITIES TRUST,"15,921.33",04/06/2014
Delivery Units,Adults and Communities,Other Agencies - Third Party Payment,30013352,THE DISABILITIES TRUST,"1,540.77",09/06/2014
Delivery Units,Adults and Communities,Other Agencies - Third Party Payment,30013353,THE DISABILITIES TRUST,"19,029.57",09/06/2014
Delivery Units,Adults and Communities,Other Agencies - Third Party Payment,30013231,THE EXTRA MILE CARE CO LTD,542.44,06/06/2014
Delivery Units,Adults and Communities,Other Agencies - Third Party Payment,30013235,THE EXTRA MILE CARE CO LTD,537.14,06/06/2014
Delivery Units,Adults and Communities,Other Agencies - Third Party Payment,30013294,THE EXTRA MILE CARE CO LTD,"1,182.54",09/06/2014
Delivery Units,Adults and Communities,Other Agencies - Third Party Payment,30013296,THE EXTRA MILE CARE CO LTD,"1,074.08",09/06/2014
Delivery Units,Adults and Communities,Other Agencies - Third Party Payment,30013298,THE EXTRA MILE CARE CO LTD,812.16,09/06/2014
Delivery Units,Adults and Communities,Other Agencies - Third Party Payment,30013307,THE EXTRA MILE CARE CO LTD,"1,190.40",09/06/2014
Delivery Units,Adults and Communities,Other Agencies - Third Party Payment,30013309,THE EXTRA MILE CARE CO LTD,862.04,09/06/2014
Delivery Units,Adults and Communities,Other Agencies - Third Party Payment,30013310,THE EXTRA MILE CARE CO LTD,835.96,09/06/2014
Delivery Units,Adults and Communities,Other Agencies - Third Party Payment,30013315,THE EXTRA MILE CARE CO LTD,555.6,09/06/2014
Delivery Units,Adults and Communities,Other Agencies - Third Party Payment,30013316,THE EXTRA MILE CARE CO LTD,555.6,09/06/2014
Delivery Units,Adults and Communities,Other Agencies - Third Party Payment,30013319,THE EXTRA MILE CARE CO LTD,"1,348.92",09/06/2014
Delivery Units,Adults and Communities,Other Agencies - Third Party Payment,30013455,THE EXTRA MILE CARE CO LTD,973.32,11/06/2014
Delivery Units,Adults and Communities,Other Agencies - Third Party Payment,30013460,THE EXTRA MILE CARE CO LTD,626.86,11/06/2014
Delivery Units,Adults and Communities,Other Agencies - Third Party Payment,30013461,THE EXTRA MILE CARE CO LTD,"1,029.20",11/06/2014
Delivery Units,Adults and Communities,Other Agencies - Third Party Payment,30014237,THE EXTRA MILE CARE CO LTD,555.6,12/06/2014
Delivery Units,Adults and Communities,Other Agencies - Third Party Payment,30014238,THE EXTRA MILE CARE CO LTD,952.8,12/06/2014
Delivery Units,Adults and Communities,Other Agencies - Third Party Payment,30014243,THE EXTRA MILE CARE CO LTD,563.6,12/06/2014
Delivery Units,Adults and Communities,Other Agencies - Third Party Payment,30014244,THE EXTRA MILE CARE CO LTD,852.06,12/06/2014
Delivery Units,Adults and Communities,Other Agencies - Third Party Payment,30014245,THE EXTRA MILE CARE CO LTD,"2,380.80",12/06/2014
Delivery Units,Adults and Communities,Other Agencies - Third Party Payment,30014248,THE EXTRA MILE CARE CO LTD,793.8,12/06/2014
Delivery Units,Adults and Communities,Other Agencies - Third Party Payment,30014250,THE EXTRA MILE CARE CO LTD,"1,814.58",12/06/2014
Delivery Units,Adults and Communities,Other Agencies - Third Party Payment,30014252,THE EXTRA MILE CARE CO LTD,873,12/06/2014
Delivery Units,Adults and Communities,Other Agencies - Third Party Payment,30014258,THE EXTRA MILE CARE CO LTD,"1,111.20",12/06/2014
Delivery Units,Adults and Communities,Other Agencies - Third Party Payment,30014259,THE EXTRA MILE CARE CO LTD,"1,269.60",12/06/2014
Delivery Units,Adults and Communities,Other Agencies - Third Party Payment,30014260,THE EXTRA MILE CARE CO LTD,"1,569.08",12/06/2014
Delivery Units,Adults and Communities,Other Agencies - Third Party Payment,30014261,THE EXTRA MILE CARE CO LTD,"1,984.20",12/06/2014
Delivery Units,Adults and Communities,Other Agencies - Third Party Payment,30014262,THE EXTRA MILE CARE CO LTD,555.6,12/06/2014
Delivery Units,Adults and Communities,Other Agencies - Third Party Payment,30014409,THE EXTRA MILE CARE CO LTD,"2,193.46",13/06/2014
Delivery Units,Adults and Communities,Other Agencies - Third Party Payment,30014410,THE EXTRA MILE CARE CO LTD,777.52,13/06/2014
Delivery Units,Adults and Communities,Other Agencies - Third Party Payment,30014412,THE EXTRA MILE CARE CO LTD,793.2,13/06/2014
Delivery Units,Adults and Communities,Other Agencies - Third Party Payment,30014414,THE EXTRA MILE CARE CO LTD,978.28,13/06/2014
Delivery Units,Adults and Communities,Other Agencies - Third Party Payment,30014415,THE EXTRA MILE CARE CO LTD,"1,060.66",13/06/2014
Delivery Units,Adults and Communities,Other Agencies - Third Party Payment,30014416,THE EXTRA MILE CARE CO LTD,"1,015.92",13/06/2014
Delivery Units,Adults and Communities,Other Agencies - Third Party Payment,30014417,THE EXTRA MILE CARE CO LTD,603.04,13/06/2014
Delivery Units,Adults and Communities,Other Agencies - Third Party Payment,30014419,THE EXTRA MILE CARE CO LTD,"1,234.98",13/06/2014
Delivery Units,Adults and Communities,Other Agencies - Third Party Payment,30014421,THE EXTRA MILE CARE CO LTD,555.6,13/06/2014
Delivery Units,Adults and Communities,Other Agencies - Third Party Payment,30014655,THE EXTRA MILE CARE CO LTD,"1,956.02",16/06/2014
Delivery Units,Adults and Communities,Other Agencies - Third Party Payment,30014656,THE EXTRA MILE CARE CO LTD,793.8,16/06/2014
Delivery Units,Adults and Communities,Other Agencies - Third Party Payment,30014657,THE EXTRA MILE CARE CO LTD,571.32,16/06/2014
Delivery Units,Adults and Communities,Other Agencies - Third Party Payment,30014661,THE EXTRA MILE CARE CO LTD,"1,190.40",16/06/2014
Delivery Units,Adults and Communities,Other Agencies - Third Party Payment,30015124,THE EXTRA MILE CARE CO LTD,946.92,17/06/2014
Delivery Units,Adults and Communities,Other Agencies - Third Party Payment,30015126,THE EXTRA MILE CARE CO LTD,529,17/06/2014
Delivery Units,Adults and Communities,Other Agencies - Third Party Payment,30015131,THE EXTRA MILE CARE CO LTD,"1,507.80",17/06/2014
Delivery Units,Adults and Communities,Other Agencies - Third Party Payment,30015893,THE EXTRA MILE CARE CO LTD,"1,491.92",18/06/2014
Delivery Units,Adults and Communities,Other Agencies - Third Party Payment,30015900,THE EXTRA MILE CARE CO LTD,"1,164.08",18/06/2014
Delivery Units,Adults and Communities,Other Agencies - Third Party Payment,30015901,THE EXTRA MILE CARE CO LTD,777.92,18/06/2014
Delivery Units,Adults and Communities,Other Agencies - Third Party Payment,30015904,THE EXTRA MILE CARE CO LTD,809.48,18/06/2014
Delivery Units,Adults and Communities,Other Agencies - Third Party Payment,30016087,THE EXTRA MILE CARE CO LTD,"1,099.43",19/06/2014
Delivery Units,Adults and Communities,Other Agencies - Third Party Payment,30016090,THE EXTRA MILE CARE CO LTD,"1,061.75",19/06/2014
Delivery Units,Adults and Communities,Other Agencies - Third Party Payment,30016091,THE EXTRA MILE CARE CO LTD,714,19/06/2014
Delivery Units,Adults and Communities,Other Agencies - Third Party Payment,30016312,THE EXTRA MILE CARE CO LTD,706.66,20/06/2014
Delivery Units,Adults and Communities,Other Agencies - Third Party Payment,30016313,THE EXTRA MILE CARE CO LTD,579.62,20/06/2014
Delivery Units,Adults and Communities,Other Agencies - Third Party Payment,30016571,THE EXTRA MILE CARE CO LTD,"2,057.52",23/06/2014
Delivery Units,Adults and Communities,Other Agencies - Third Party Payment,30016573,THE EXTRA MILE CARE CO LTD,"2,573.28",23/06/2014
Delivery Units,Adults and Communities,Other Agencies - Third Party Payment,30016575,THE EXTRA MILE CARE CO LTD,"3,331.48",23/06/2014
Delivery Units,Adults and Communities,Other Agencies - Third Party Payment,30016577,THE EXTRA MILE CARE CO LTD,960.14,23/06/2014
Delivery Units,Adults and Communities,Other Agencies - Third Party Payment,30017690,THE EXTRA MILE CARE CO LTD,"1,005.34",25/06/2014
Delivery Units,Adults and Communities,Other Agencies - Third Party Payment,30011733,THE GRANGE,"2,184.04",04/06/2014
Delivery Units,Adults and Communities,Other Agencies - Third Party Payment,30011741,THE GRANGE,"2,184.04",04/06/2014
Delivery Units,Adults and Communities,Other Agencies - Third Party Payment,30011742,THE GRANGE,-767.64,04/06/2014
Delivery Units,Adults and Communities,Other Agencies - Third Party Payment,30011745,THE GRANGE,"2,184.04",04/06/2014
Delivery Units,Adults and Communities,Other Agencies - Third Party Payment,30011746,THE GRANGE,"2,184.04",04/06/2014
Delivery Units,Adults and Communities,Other Agencies - Third Party Payment,30011795,THE GRANGE,"2,184.04",04/06/2014
Delivery Units,Adults and Communities,Other Agencies - Third Party Payment,30011810,THE GRANGE,"2,184.04",04/06/2014
Delivery Units,Adults and Communities,Other Agencies - Third Party Payment,30016471,THE GRANGE,"2,184.04",23/06/2014
Delivery Units,Adults and Communities,Other Agencies - Third Party Payment,30016472,THE GRANGE,-767.64,23/06/2014
Delivery Units,Adults and Communities,Other Agencies - Third Party Payment,30016473,THE GRANGE,"2,184.04",23/06/2014
Delivery Units,Adults and Communities,Other Agencies - Third Party Payment,30016477,THE GRANGE,"2,184.04",23/06/2014
Delivery Units,Adults and Communities,Other Agencies - Third Party Payment,30016479,THE GRANGE,"2,184.04",23/06/2014
Delivery Units,Adults and Communities,Other Agencies - Third Party Payment,30016584,THE GRANGE,"2,184.04",23/06/2014
Delivery Units,Adults and Communities,Other Agencies - Third Party Payment,30014207,THE HOLLIES RESIDENTIAL HOTEL,"2,184.04",12/06/2014
Delivery Units,Adults and Communities,Other Agencies - Third Party Payment,30013125,THE KINGSDOWNE SOCIETY,"2,441.92",05/06/2014
Delivery Units,Adults and Communities,Other Agencies - Third Party Payment,30013126,THE KINGSDOWNE SOCIETY,"2,001.92",05/06/2014
Delivery Units,Adults and Communities,Other Agencies - Third Party Payment,30013127,THE KINGSDOWNE SOCIETY,"2,001.92",05/06/2014
Delivery Units,Adults and Communities,Other Agencies - Third Party Payment,30013128,THE KINGSDOWNE SOCIETY,"2,001.92",05/06/2014
Delivery Units,Adults and Communities,Other Agencies - Third Party Payment,30013129,THE KINGSDOWNE SOCIETY,"2,184.04",05/06/2014
Delivery Units,Adults and Communities,Other Agencies - Third Party Payment,30013130,THE KINGSDOWNE SOCIETY,"2,001.92",05/06/2014
Delivery Units,Adults and Communities,Other Agencies - Third Party Payment,30013354,THE LEONARD CHESHIRE FOUNDATION,"3,439.54",25/06/2014
Delivery Units,Adults and Communities,Other Agencies - Third Party Payment,30013355,THE LEONARD CHESHIRE FOUNDATION,-548.92,25/06/2014
Delivery Units,Adults and Communities,Other Agencies - Third Party Payment,30014305,THE LEONARD CHESHIRE FOUNDATION,"3,439.54",12/06/2014
Delivery Units,Adults and Communities,Other Agencies - Third Party Payment,30014306,THE LEONARD CHESHIRE FOUNDATION,-538.07,12/06/2014
Delivery Units,Adults and Communities,Other Agencies - Third Party Payment,30012725,THE LIMES RESIDENTIAL HOME,"2,418.04",04/06/2014
Delivery Units,Adults and Communities,Other Agencies - Third Party Payment,30012746,THE LIMES RESIDENTIAL HOME,"2,418.04",04/06/2014
Delivery Units,Adults and Communities,Other Agencies - Third Party Payment,30012756,THE LIMES RESIDENTIAL HOME,"2,418.04",04/06/2014
Delivery Units,Adults and Communities,Other Agencies - Third Party Payment,30012757,THE LIMES RESIDENTIAL HOME,"2,418.04",04/06/2014
Delivery Units,Adults and Communities,Other Agencies - Third Party Payment,30012759,THE LIMES RESIDENTIAL HOME,"2,418.04",04/06/2014
Delivery Units,Adults and Communities,Other Agencies - Third Party Payment,30012760,THE LIMES RESIDENTIAL HOME,"2,216.41",04/06/2014
Delivery Units,Adults and Communities,Other Agencies - Third Party Payment,30012769,THE LIMES RESIDENTIAL HOME,"2,418.04",04/06/2014
Delivery Units,Adults and Communities,Other Agencies - Third Party Payment,30012827,THE LIMES RESIDENTIAL HOME,"2,418.04",04/06/2014
Delivery Units,Adults and Communities,Other Agencies - Third Party Payment,30015171,THE LIMES RESIDENTIAL HOME,"2,418.04",17/06/2014
Delivery Units,Adults and Communities,Other Agencies - Third Party Payment,30018655,THE LIMES RESIDENTIAL HOME,"1,638.03",30/06/2014
Delivery Units,Adults and Communities,Other Agencies - Third Party Payment,30011847,THE NATIONAL AUTISTIC SOCIETY,"5,325.20",04/06/2014
Delivery Units,Adults and Communities,Other Agencies - Third Party Payment,30011849,THE NATIONAL AUTISTIC SOCIETY,"3,304.60",04/06/2014
Delivery Units,Adults and Communities,Other Agencies - Third Party Payment,30015909,THE NATIONAL AUTISTIC SOCIETY,"5,640.40",18/06/2014
Delivery Units,Adults and Communities,Other Agencies - Third Party Payment,30015910,THE NATIONAL AUTISTIC SOCIETY,-637.75,18/06/2014
Delivery Units,Adults and Communities,Other Agencies - Third Party Payment,30018641,THE NATIONAL AUTISTIC SOCIETY,"5,325.20",30/06/2014
Delivery Units,Adults and Communities,Other Agencies - Third Party Payment,30018643,THE NATIONAL AUTISTIC SOCIETY,"3,304.60",30/06/2014
Delivery Units,Adults and Communities,Other Agencies - Third Party Payment,30018645,THE NATIONAL AUTISTIC SOCIETY,"5,325.20",30/06/2014
Delivery Units,Adults and Communities,Other Agencies - Third Party Payment,30011971,THE NATIONAL SOCIETY FOR EPILEPSY,"4,326.32",04/06/2014
Delivery Units,Adults and Communities,Other Agencies - Third Party Payment,30011972,THE NATIONAL SOCIETY FOR EPILEPSY,"9,140.00",04/06/2014
Delivery Units,Adults and Communities,Other Agencies - Third Party Payment,30013264,THE PRIORY GRANGE POTTERS BAR,"6,824.87",09/06/2014
Delivery Units,Adults and Communities,Other Agencies - Third Party Payment,30013266,THE PRIORY GRANGE POTTERS BAR,"6,613.94",09/06/2014
Delivery Units,Adults and Communities,Other Agencies - Third Party Payment,30013267,THE PRIORY GRANGE POTTERS BAR,"3,776.73",09/06/2014
Delivery Units,Adults and Communities,Other Agencies - Third Party Payment,30015816,THE PRIORY GRANGE POTTERS BAR,"6,400.50",18/06/2014
Delivery Units,Adults and Communities,Other Agencies - Third Party Payment,30015169,THE RED HOUSE,598.43,17/06/2014
Delivery Units,Adults and Communities,Other Agencies - Third Party Payment,30015170,THE RED HOUSE,"2,094.52",17/06/2014
Delivery Units,Adults and Communities,Other Agencies - Third Party Payment,30011914,THE REGARD PARTNERSHIP LTD,"5,238.82",04/06/2014
Delivery Units,Adults and Communities,Other Agencies - Third Party Payment,30011916,THE REGARD PARTNERSHIP LTD,"8,040.65",04/06/2014
Delivery Units,Adults and Communities,Other Agencies - Third Party Payment,30013247,THE REGARD PARTNERSHIP LTD,"3,856.84",06/06/2014
Delivery Units,Adults and Communities,Other Agencies - Third Party Payment,30012726,THE WOODSIDE HOME,"2,001.92",04/06/2014
Delivery Units,Adults and Communities,Other Agencies - Third Party Payment,30012734,THE WOODSIDE HOME,"2,001.92",04/06/2014
Delivery Units,Adults and Communities,Other Agencies - Third Party Payment,30012739,THE WOODSIDE HOME,"2,001.92",04/06/2014
Delivery Units,Adults and Communities,Other Agencies - Third Party Payment,30012740,THE WOODSIDE HOME,"2,184.04",04/06/2014
Delivery Units,Adults and Communities,Other Agencies - Third Party Payment,30012743,THE WOODSIDE HOME,"2,001.92",04/06/2014
Delivery Units,Adults and Communities,Other Agencies - Third Party Payment,30012747,THE WOODSIDE HOME,"2,184.04",04/06/2014
Delivery Units,Adults and Communities,Other Agencies - Third Party Payment,30012748,THE WOODSIDE HOME,-714.84,04/06/2014
Delivery Units,Adults and Communities,Other Agencies - Third Party Payment,30012751,THE WOODSIDE HOME,929.5,04/06/2014
Delivery Units,Adults and Communities,Other Agencies - Third Party Payment,30012752,THE WOODSIDE HOME,"2,001.92",04/06/2014
Delivery Units,Adults and Communities,Other Agencies - Third Party Payment,30012758,THE WOODSIDE HOME,"2,184.04",04/06/2014
Delivery Units,Adults and Communities,Other Agencies - Third Party Payment,30012761,THE WOODSIDE HOME,"2,001.92",04/06/2014
Delivery Units,Adults and Communities,Other Agencies - Third Party Payment,30012764,THE WOODSIDE HOME,"2,001.92",04/06/2014
Delivery Units,Adults and Communities,Other Agencies - Third Party Payment,30017706,THE WOODSIDE HOME,"2,184.04",25/06/2014
Delivery Units,Adults and Communities,Other Agencies - Third Party Payment,30017707,THE WOODSIDE HOME,"2,001.92",25/06/2014
Delivery Units,Adults and Communities,Other Agencies - Third Party Payment,30017709,THE WOODSIDE HOME,"2,001.92",25/06/2014
Delivery Units,Adults and Communities,Other Agencies - Third Party Payment,30017713,THE WOODSIDE HOME,"2,001.92",25/06/2014
Delivery Units,Adults and Communities,Other Agencies - Third Party Payment,30017715,THE WOODSIDE HOME,"2,001.92",25/06/2014
Delivery Units,Adults and Communities,Other Agencies - Third Party Payment,30017718,THE WOODSIDE HOME,"2,184.04",25/06/2014
Delivery Units,Adults and Communities,Other Agencies - Third Party Payment,30017719,THE WOODSIDE HOME,-714.84,25/06/2014
Delivery Units,Adults and Communities,Other Agencies - Third Party Payment,30017721,THE WOODSIDE HOME,"2,001.92",25/06/2014
Delivery Units,Adults and Communities,Other Agencies - Third Party Payment,30017723,THE WOODSIDE HOME,"2,184.04",25/06/2014
Delivery Units,Adults and Communities,Other Agencies - Third Party Payment,30017734,THE WOODSIDE HOME,"2,001.92",25/06/2014
Delivery Units,Adults and Communities,Other Agencies - Third Party Payment,30011554,THEMI CARE LTD,"4,440.00",02/06/2014
Delivery Units,Adults and Communities,Other Agencies - Third Party Payment,30011871,THORNDENE LTD,"3,711.14",04/06/2014
Delivery Units,Adults and Communities,Other Agencies - Third Party Payment,30011872,THORNDENE LTD,-548.92,04/06/2014
Delivery Units,Adults and Communities,Other Agencies - Third Party Payment,30014666,THOUGHTS OF OTHERS LTD,"6,336.36",16/06/2014
Delivery Units,Adults and Communities,Other Agencies - Third Party Payment,30011870,TORRINGTON HOMES,"2,184.04",04/06/2014
Delivery Units,Adults and Communities,Other Agencies - Third Party Payment,30011873,TORRINGTON HOMES,"2,184.04",04/06/2014
Delivery Units,Adults and Communities,Other Agencies - Third Party Payment,30011880,TORRINGTON HOMES,"2,184.04",04/06/2014
Delivery Units,Adults and Communities,Other Agencies - Third Party Payment,30011881,TORRINGTON HOMES,"2,001.92",04/06/2014
Delivery Units,Adults and Communities,Other Agencies - Third Party Payment,30011903,TORRINGTON HOMES,"2,184.04",04/06/2014
Delivery Units,Adults and Communities,Other Agencies - Third Party Payment,30011904,TORRINGTON HOMES,"2,184.04",04/06/2014
Delivery Units,Adults and Communities,Other Agencies - Third Party Payment,30011908,TORRINGTON HOMES,"2,001.92",04/06/2014
Delivery Units,Adults and Communities,Other Agencies - Third Party Payment,30011933,TORRINGTON HOMES,"2,184.04",04/06/2014
Delivery Units,Adults and Communities,Other Agencies - Third Party Payment,30011936,TORRINGTON HOMES,"2,184.04",04/06/2014
Delivery Units,Adults and Communities,Other Agencies - Third Party Payment,30013120,TORRINGTON HOMES,"2,184.04",05/06/2014
Delivery Units,Adults and Communities,Other Agencies - Third Party Payment,30013322,TORRINGTON HOMES,"1,072.46",09/06/2014
Delivery Units,Adults and Communities,Other Agencies - Third Party Payment,30016124,TORRINGTON HOMES,"2,184.04",19/06/2014
Delivery Units,Adults and Communities,Other Agencies - Third Party Payment,30016127,TORRINGTON HOMES,"2,184.04",19/06/2014
Delivery Units,Adults and Communities,Other Agencies - Third Party Payment,30016128,TORRINGTON HOMES,"2,184.04",19/06/2014
Delivery Units,Adults and Communities,Other Agencies - Third Party Payment,30016130,TORRINGTON HOMES,"2,001.92",19/06/2014
Delivery Units,Adults and Communities,Other Agencies - Third Party Payment,30016131,TORRINGTON HOMES,"2,184.04",19/06/2014
Delivery Units,Adults and Communities,Other Agencies - Third Party Payment,30016132,TORRINGTON HOMES,"2,184.04",19/06/2014
Delivery Units,Adults and Communities,Other Agencies - Third Party Payment,30016133,TORRINGTON HOMES,"2,001.92",19/06/2014
Delivery Units,Adults and Communities,Other Agencies - Third Party Payment,30016138,TORRINGTON HOMES,"2,184.04",19/06/2014
Delivery Units,Adults and Communities,Other Agencies - Third Party Payment,30016140,TORRINGTON HOMES,"2,184.04",19/06/2014
Delivery Units,Adults and Communities,Other Agencies - Third Party Payment,30017714,TORRINGTON HOMES,"2,184.04",25/06/2014
Delivery Units,Adults and Communities,Other Agencies - Third Party Payment,30011749,TOWERTREND LTD,"3,321.43",04/06/2014
Delivery Units,Adults and Communities,Other Agencies - Third Party Payment,30011748,TRAFALGAR HEALTHCARE LTD,"2,418.04",04/06/2014
Delivery Units,Adults and Communities,Other Agencies - Third Party Payment,30011697,TREEHAVEN,"6,905.32",04/06/2014
Delivery Units,Adults and Communities,Other Agencies - Third Party Payment,30011699,TREEHAVEN,"5,971.88",04/06/2014
Delivery Units,Adults and Communities,Other Agencies - Third Party Payment,30011708,TREEHAVEN,"6,091.36",04/06/2014
Delivery Units,Adults and Communities,Other Agencies - Third Party Payment,30011709,TREEHAVEN,"5,210.60",04/06/2014
Delivery Units,Adults and Communities,Other Agencies - Third Party Payment,30015838,TREEHAVEN,"6,091.36",18/06/2014
Delivery Units,Adults and Communities,Other Agencies - Third Party Payment,30017622,TREEHAVEN,"6,905.32",25/06/2014
Delivery Units,Adults and Communities,Other Agencies - Third Party Payment,30017624,TREEHAVEN,"5,971.88",25/06/2014
Delivery Units,Adults and Communities,Other Agencies - Third Party Payment,30017633,TREEHAVEN,"5,210.60",25/06/2014
Delivery Units,Adults and Communities,Other Agencies - Third Party Payment,30018065,TREEHAVEN,"6,091.36",27/06/2014
Delivery Units,Adults and Communities,Other Agencies - Third Party Payment,30011639,TUDOR LODGE RESIDENTIAL HOME,"2,529.60",04/06/2014
Delivery Units,Adults and Communities,Other Agencies - Third Party Payment,30013251,UNIQUE CARE SERVICES,"2,455.24",06/06/2014
Delivery Units,Adults and Communities,Other Agencies - Third Party Payment,30014695,VENTRY RESIDENTIAL CARE LTD,"2,184.04",16/06/2014
Delivery Units,Adults and Communities,Other Agencies - Third Party Payment,30015163,VENTRY RESIDENTIAL CARE LTD,715,17/06/2014
Delivery Units,Adults and Communities,Other Agencies - Third Party Payment,30011956,VIVRE CARE LTD,"6,956.32",04/06/2014
Delivery Units,Adults and Communities,Other Agencies - Third Party Payment,30018669,VIVRE CARE LTD,"6,956.32",30/06/2014
Delivery Units,Adults and Communities,Other Agencies - Third Party Payment,30011857,VOYAGE CARE,"5,757.14",04/06/2014
Delivery Units,Adults and Communities,Other Agencies - Third Party Payment,30011858,VOYAGE CARE,-526.78,04/06/2014
Delivery Units,Adults and Communities,Other Agencies - Third Party Payment,30011859,VOYAGE CARE,"4,871.42",04/06/2014
Delivery Units,Adults and Communities,Other Agencies - Third Party Payment,30011861,VOYAGE CARE,"7,475.43",04/06/2014
Delivery Units,Adults and Communities,Other Agencies - Third Party Payment,30011988,VOYAGE CARE,"6,800.00",04/06/2014
Delivery Units,Adults and Communities,Other Agencies - Third Party Payment,30016654,VOYAGE CARE,"6,800.00",23/06/2014
Delivery Units,Adults and Communities,Other Agencies - Third Party Payment,30016656,VOYAGE CARE,"5,091.76",23/06/2014
Delivery Units,Adults and Communities,Other Agencies - Third Party Payment,30018115,VOYAGE CARE,764.8,27/06/2014
Delivery Units,Adults and Communities,Other Agencies - Third Party Payment,30011979,VOYAGE LTD (SOLOR CARE),"6,553.67",04/06/2014
Delivery Units,Adults and Communities,Other Agencies - Third Party Payment,30012672,WALSINGHAM,"5,476.15",05/06/2014
Delivery Units,Adults and Communities,Other Agencies - Third Party Payment,30012674,WALSINGHAM,"3,224.93",05/06/2014
Delivery Units,Adults and Communities,Other Agencies - Third Party Payment,30013069,WALSINGHAM,"5,476.15",05/06/2014
Delivery Units,Adults and Communities,Other Agencies - Third Party Payment,30013070,WALSINGHAM,-548.92,05/06/2014
Delivery Units,Adults and Communities,Other Agencies - Third Party Payment,30013071,WALSINGHAM,"3,224.93",05/06/2014
Delivery Units,Adults and Communities,Other Agencies - Third Party Payment,30013073,WALSINGHAM,"3,224.93",05/06/2014
Delivery Units,Adults and Communities,Other Agencies - Third Party Payment,30011706,WESTBROOK HOUSE,"4,134.56",04/06/2014
Delivery Units,Adults and Communities,Other Agencies - Third Party Payment,30011711,WESTBROOK HOUSE,"3,838.28",04/06/2014
Delivery Units,Adults and Communities,Other Agencies - Third Party Payment,30017631,WESTBROOK HOUSE,"4,134.56",25/06/2014
Delivery Units,Adults and Communities,Other Agencies - Third Party Payment,30017634,WESTBROOK HOUSE,"3,838.28",25/06/2014
Delivery Units,Adults and Communities,Other Agencies - Third Party Payment,30011992,WESTGATE HOUSE CARE CENTRE,"3,725.76",04/06/2014
Delivery Units,Adults and Communities,Other Agencies - Third Party Payment,30011647,WESTMINSTER HEALTH CARE LTD,"4,495.93",04/06/2014
Delivery Units,Adults and Communities,Other Agencies - Third Party Payment,30011648,WESTMINSTER HEALTH CARE LTD,"2,318.93",04/06/2014
Delivery Units,Adults and Communities,Other Agencies - Third Party Payment,30011649,WESTMINSTER HEALTH CARE LTD,"4,864.08",04/06/2014
Delivery Units,Adults and Communities,Other Agencies - Third Party Payment,30011650,WESTMINSTER HEALTH CARE LTD,"4,864.08",04/06/2014
Delivery Units,Adults and Communities,Other Agencies - Third Party Payment,30011651,WESTMINSTER HEALTH CARE LTD,"5,087.68",04/06/2014
Delivery Units,Adults and Communities,Other Agencies - Third Party Payment,30012680,WESTMINSTER HEALTH CARE LTD,"1,271.67",04/06/2014
Delivery Units,Adults and Communities,Other Agencies - Third Party Payment,30014696,WILLOW CARE HOMES,"5,066.00",16/06/2014
Delivery Units,Adults and Communities,Other Agencies - Third Party Payment,30014698,WILLOW CARE HOMES,"4,904.00",16/06/2014
Delivery Units,Adults and Communities,Other Agencies - Third Party Payment,30011642,WILSMERE HOUSE CARE CENTRE,"4,979.35",04/06/2014
Delivery Units,Adults and Communities,Other Agencies - Third Party Payment,30011643,WILSMERE HOUSE CARE CENTRE,"5,421.90",04/06/2014
Delivery Units,Adults and Communities,Other Agencies - Third Party Payment,30011644,WILSMERE HOUSE CARE CENTRE,"5,535.71",04/06/2014
Delivery Units,Adults and Communities,Other Agencies - Third Party Payment,30011645,WILSMERE HOUSE CARE CENTRE,"2,442.67",04/06/2014
Delivery Units,Adults and Communities,Other Agencies - Third Party Payment,30014701,WOODFIELD HOUSE,"3,000.00",16/06/2014
Delivery Units,Adults and Communities,Other Agencies - Third Party Payment,30017735,WOODFIELD HOUSE,"2,700.00",25/06/2014
Delivery Units,Adults and Communities,Other Agencies - Third Party Payment,30017736,WOODFIELD HOUSE,"3,200.00",25/06/2014
Delivery Units,Adults and Communities,Other Agencies - Third Party Payment,30017737,WOODFIELD HOUSE,"6,368.00",25/06/2014
Delivery Units,Adults and Communities,Other Agencies - Third Party Payment,30017738,WOODFIELD HOUSE,"3,600.00",25/06/2014
Delivery Units,Adults and Communities,Other Agencies - Third Party Payment,30017751,WOODFIELD HOUSE,"2,700.00",25/06/2014
Delivery Units,Adults and Communities,Other Agencies - Third Party Payment,30017752,WOODFIELD HOUSE,"4,688.00",25/06/2014
Delivery Units,Adults and Communities,Other Agencies - Third Party Payment,30017753,WOODFIELD HOUSE,"2,700.00",25/06/2014
Delivery Units,Adults and Communities,Other Agencies - Third Party Payment,30017757,WOODFIELD HOUSE,"2,700.00",25/06/2014
Delivery Units,Adults and Communities,Other Agencies - Third Party Payment,30013254,YAD VOEZER LIMITED,"6,048.60",30/06/2014
Delivery Units,Adults and Communities,Other Agencies - Third Party Payment,30015948,YAD VOEZER LIMITED,"2,874.30",18/06/2014
Delivery Units,Adults and Communities,Other Agencies - Third Party Payment,30015949,YAD VOEZER LIMITED,"1,342.20",19/06/2014
Delivery Units,Adults and Communities,Other Agencies - Third Party Payment,30015951,YAD VOEZER LIMITED,"4,983.84",19/06/2014
Delivery Units,Adults and Communities,Other Agencies - Third Party Payment,30015952,YAD VOEZER LIMITED,"1,247.25",19/06/2014
Delivery Units,Adults and Communities,Other Agencies - Third Party Payment,30012703,Z & M CARE LTD,"2,184.04",04/06/2014
Delivery Units,Adults and Communities,Other Agencies - Third Party Payment,30018576,Z & M CARE LTD,"2,184.04",30/06/2014
Delivery Units,Adults and Communities,Other Services,10001593,LMS (BOLTON) LTD,684.41,04/06/2014
Delivery Units,Adults and Communities,Other Services,30016359,WILLOW HOUSING & CARE LTD.,711.38,23/06/2014
Delivery Units,Adults and Communities,Other Transfer Payments to Soc,10002347,WESTMINSTER DRUG PROJECT,"8,448.38",17/06/2014
Delivery Units,Adults and Communities,Other Transfer Payments to Soc,10002348,WESTMINSTER DRUG PROJECT,"9,560.61",17/06/2014
Delivery Units,Adults and Communities,Private Contractors - Third Party Payment,10001164,GREENWICH LEISURE LTD,"89,772.56",04/06/2014
Delivery Units,Adults and Communities,Private Contractors - Third Party Payment,10001165,GREENWICH LEISURE LTD,"89,772.56",04/06/2014
Delivery Units,Adults and Communities,Publications,10002330,PHOTOSYMBOLS,600,16/06/2014
Delivery Units,Adults and Communities,Software Licences & Support,10002964,CARE MONITORING 2000 LTD,"1,933.40",26/06/2014
Delivery Units,Adults and Communities,Software Licences & Support,10002965,CARE MONITORING 2000 LTD,742,26/06/2014
Delivery Units,Adults and Communities,Software Licences & Support,10002966,CARE MONITORING 2000 LTD,"8,108.30",26/06/2014
Delivery Units,Adults and Communities,Software Licences & Support,10002967,CARE MONITORING 2000 LTD,"8,352.90",26/06/2014
Delivery Units,Adults and Communities,Software Licences & Support,10002968,CARE MONITORING 2000 LTD,"8,613.35",26/06/2014
Delivery Units,Adults and Communities,Training,10002282,VBA PARTNERS LTD,795,25/06/2014
Delivery Units,Adults and Communities,Venue Hire,20008064,FREEHOLD COMMUNITY ASSOCIATION,"8,000.00",16/06/2014
Delivery Units,Adults and Communities,Voluntary Associations - Third Party Payment,30016362,BARNET ASIAN WOMENS ASSOCIATION,"2,471.35",23/06/2014
Delivery Units,Adults and Communities,Voluntary Associations - Third Party Payment,30016343,BARNET MENCAP,"10,523.61",23/06/2014
Delivery Units,Adults and Communities,Voluntary Associations - Third Party Payment,30016364,BARNET REFUGEE SERVICE,"5,578.83",25/06/2014
Delivery Units,Adults and Communities,Voluntary Associations - Third Party Payment,30016365,BRITISH RED CROSS SOCIETY,"3,164.63",23/06/2014
Delivery Units,Adults and Communities,Voluntary Associations - Third Party Payment,30016366,CHERRY LODGE CANCER CARE,"1,173.83",23/06/2014
Delivery Units,Adults and Communities,Voluntary Associations - Third Party Payment,30016344,CHINESE MENTAL HEALTH ASSOCIATION,"3,907.90",23/06/2014
Delivery Units,Adults and Communities,Voluntary Associations - Third Party Payment,30016367,DIMENSIONS UK,"28,475.42",23/06/2014
Delivery Units,Adults and Communities,Voluntary Associations - Third Party Payment,30016348,JEWISH COMMUNITY HOUSING ASSOCIATION,568.17,23/06/2014
Delivery Units,Adults and Communities,Voluntary Associations - Third Party Payment,30016355,LINEN & WOOLLEN DRAPERS COTTAGE,730.11,23/06/2014
Delivery Units,Adults and Communities,Voluntary Associations - Third Party Payment,30016349,METROPOLITAN SUPPORT TRUST,502,23/06/2014
Delivery Units,Adults and Communities,Voluntary Associations - Third Party Payment,30016368,MIND IN BARNET,"6,587.47",23/06/2014
Delivery Units,Adults and Communities,Voluntary Associations - Third Party Payment,30016351,NOTTING HILL HOUSING TRUST,"112,386.95",23/06/2014
Delivery Units,Adults and Communities,Voluntary Associations - Third Party Payment,30016372,PRT BARNET CARERS CENTRE,"23,000.00",23/06/2014
Delivery Units,Adults and Communities,Voluntary Associations - Third Party Payment,30016356,ROYAL MENCAP SOCIETY,"2,930.88",23/06/2014
Delivery Units,Adults and Communities,Voluntary Associations - Third Party Payment,30016354,ST PANCRAS & HUMANIST H.A.,661.55,23/06/2014
Delivery Units,Adults and Communities,Voluntary Associations - Third Party Payment,30016370,THE RICHMOND FELLOWSHIP,"44,166.67",23/06/2014
Delivery Units,Barnet Group,Private Contractors - Third Party Payment,10002953,THE BARNETGROUP LIMITED,"412,181.23",27/06/2014
Delivery Units,Childrens Services,Advertising,10001166,ARTS DEPOT PRODUCTIONS LTD,600,04/06/2014
Delivery Units,Childrens Services,Advertising,10001167,ARTS DEPOT PRODUCTIONS LTD,600,04/06/2014
Delivery Units,Childrens Services,Advertising,10001561,DENNIS PUBLISHING LTD,900,04/06/2014
Delivery Units,Childrens Services,Advertising,10002184,NEWSQUEST (LONDON) LIMITED,"1,500.00",20/06/2014
Delivery Units,Childrens Services,Advertising for staff,10002309,THE LONDON APPRENTICESHIP CO,"7,700.00",17/06/2014
Delivery Units,Childrens Services,Advertising for staff,10002310,THE LONDON APPRENTICESHIP CO,"9,075.00",17/06/2014
Delivery Units,Childrens Services,Agency/Interim Hays,20007585,IMPOWER CONSULTING LIMITED,"29,000.00",06/06/2014
Delivery Units,Childrens Services,Agency/Interim Non Hays,20008157,THE HYDE EF ACADEMY,"4,338.75",17/06/2014
Delivery Units,Childrens Services,Books-CDs-Audio-Video,30012870,ASKEWS & HOLTS LIBRARY SERVICES LTD,570.7,04/06/2014
Delivery Units,Childrens Services,Books-CDs-Audio-Video,30012885,ASKEWS & HOLTS LIBRARY SERVICES LTD,571.55,04/06/2014
Delivery Units,Childrens Services,Books-CDs-Audio-Video,30014195,ASKEWS & HOLTS LIBRARY SERVICES LTD,657.6,12/06/2014
Delivery Units,Childrens Services,Books-CDs-Audio-Video,30014603,OVERDRIVE,"1,327.04",13/06/2014
Delivery Units,Childrens Services,Books-CDs-Audio-Video,30016242,WELL INFORMED LTD,"1,157.00",19/06/2014
Delivery Units,Childrens Services,Building Repairs & Maintenance,10000900,BREYER GROUP PLC,"22,351.14",13/06/2014
Delivery Units,Childrens Services,Building Repairs & Maintenance,10000909,BREYER GROUP PLC,"46,629.96",13/06/2014
Delivery Units,Childrens Services,Building Repairs & Maintenance,10003068,LEE SECURITY LONDON LIMITED,821,26/06/2014
Delivery Units,Childrens Services,Building Repairs & Maintenance,10001174,THE WINDOW COMPANY,"17,413.50",04/06/2014
Delivery Units,Childrens Services,Building Repairs & Maintenance,10001841,THE WINDOW COMPANY,"2,099.50",10/06/2014
Delivery Units,Childrens Services,Capital Construction and Works,10001466,GARDINER & THEOBALD LLP,"13,500.00",06/06/2014
Delivery Units,Childrens Services,Capital Construction and Works,10001467,GARDINER & THEOBALD LLP,"12,000.00",12/06/2014
Delivery Units,Childrens Services,Capital Construction and Works,10001468,GARDINER & THEOBALD LLP,"6,000.00",12/06/2014
Delivery Units,Childrens Services,Capital Construction and Works,10001469,GARDINER & THEOBALD LLP,"5,000.00",06/06/2014
Delivery Units,Childrens Services,Capital Construction and Works,10001531,GARDINER & THEOBALD LLP,"1,000.00",12/06/2014
Delivery Units,Childrens Services,Capital Construction and Works,10001533,GARDINER & THEOBALD LLP,"1,000.00",06/06/2014
Delivery Units,Childrens Services,Capital Construction and Works,10002812,GARDINER & THEOBALD LLP,"4,550.00",20/06/2014
Delivery Units,Childrens Services,Capital Construction and Works,10002813,GARDINER & THEOBALD LLP,"1,000.00",30/06/2014
Delivery Units,Childrens Services,Capital Construction and Works,10000583,KIER REGIONAL LTD,"220,767.00",02/06/2014
Delivery Units,Childrens Services,Capital Construction and Works,10001626,KIER REGIONAL LTD,"184,947.45",05/06/2014
Delivery Units,Childrens Services,Capital Construction and Works,10002139,KIER REGIONAL LTD,"776,000.00",12/06/2014
Delivery Units,Childrens Services,Capital Construction and Works,10001738,LONDON DIOCESAN BOARD FOR SCHOOL,"117,392.07",09/06/2014
Delivery Units,Childrens Services,Capital Construction and Works,10001977,MORGAN SINDALL,"175,764.00",13/06/2014
Delivery Units,Childrens Services,Capital Construction and Works,10001978,MORGAN SINDALL,"142,396.00",10/06/2014
Delivery Units,Childrens Services,Capital Construction and Works,10001979,MORGAN SINDALL,"151,417.00",10/06/2014
Delivery Units,Childrens Services,Clothing - Protective Clothing,10002508,SIMON JERSEY LIMITED,"3,003.42",19/06/2014
Delivery Units,Childrens Services,Consultants Fees,10003050,CATCH22 CHARITY LTD,"2,995.00",27/06/2014
Delivery Units,Childrens Services,Consultants Fees,10001518,MOTT MACDONALD LTD,"1,189.68",04/06/2014
Delivery Units,Childrens Services,Consultants Fees,10001227,MOUCHEL LTD,718.8,04/06/2014
Delivery Units,Childrens Services,Consultants Fees,10001228,MOUCHEL LTD,"4,438.59",04/06/2014
Delivery Units,Childrens Services,Consultants Fees,10001231,MOUCHEL LTD,"3,234.60",04/06/2014
Delivery Units,Childrens Services,Consultants Fees,10001233,MOUCHEL LTD,"3,971.37",04/06/2014
Delivery Units,Childrens Services,Consultants Fees,10001239,MOUCHEL LTD,"3,971.37",04/06/2014
Delivery Units,Childrens Services,Consultants Fees,10001242,MOUCHEL LTD,"4,204.98",04/06/2014
Delivery Units,Childrens Services,Consultants Fees,20007768,TROWERS & HAMLINS,562.65,11/06/2014
Delivery Units,Childrens Services,Consumable Catering Supplies,10002533,NICHOLL FOOD PACKAGING LTD,777.57,18/06/2014
Delivery Units,Childrens Services,Consumable Catering Supplies,10002539,REMMERCO LIMITED,"1,592.79",26/06/2014
Delivery Units,Childrens Services,Contract Cleaning,10001522,BIRKIN CLEANING SERVICES LTD,745.32,09/06/2014
Delivery Units,Childrens Services,Contract Cleaning,10001524,BIRKIN CLEANING SERVICES LTD,745.32,09/06/2014
Delivery Units,Childrens Services,Electricity,10001382,KENT COUNTY COUNCIL (KCS),875.86,04/06/2014
Delivery Units,Childrens Services,Electricity,10001383,KENT COUNTY COUNCIL (KCS),845.93,04/06/2014
Delivery Units,Childrens Services,Electricity,10001384,KENT COUNTY COUNCIL (KCS),"2,467.69",04/06/2014
Delivery Units,Childrens Services,Electricity,10001385,KENT COUNTY COUNCIL (KCS),949.4,04/06/2014
Delivery Units,Childrens Services,Electricity,10001386,KENT COUNTY COUNCIL (KCS),696.67,04/06/2014
Delivery Units,Childrens Services,Electricity,10001387,KENT COUNTY COUNCIL (KCS),"1,350.44",04/06/2014
Delivery Units,Childrens Services,Electricity,10001388,KENT COUNTY COUNCIL (KCS),"1,333.83",04/06/2014
Delivery Units,Childrens Services,Equipment and Materials Purchase,10001462,777 ENVIRONMENTAL LIMITED,840,04/06/2014
Delivery Units,Childrens Services,Equipment and Materials Purchase,10002467,ASHE CONSTRUCTION LTD,"73,125.00",18/06/2014
Delivery Units,Childrens Services,Equipment and Materials Purchase,10002739,AUSTIN TURNERS & CO LTD,"5,644.77",19/06/2014
Delivery Units,Childrens Services,Equipment and Materials Purchase,10002811,BECO LTD T/A BECO ENERGY SOLUTIONS,"12,389.38",20/06/2014
Delivery Units,Childrens Services,Equipment and Materials Purchase,10001276,BELLHOUSE PROPERTY SERVICES LTD,"1,257.76",04/06/2014
Delivery Units,Childrens Services,Equipment and Materials Purchase,10002558,BELLHOUSE PROPERTY SERVICES LTD,576,18/06/2014
Delivery Units,Childrens Services,Equipment and Materials Purchase,10002565,D LONG (CONSTRUCTION) LTD,"12,965.00",18/06/2014
Delivery Units,Childrens Services,Equipment and Materials Purchase,10002563,DRAIN DOCTOR PLUMBING,"2,100.00",17/06/2014
Delivery Units,Childrens Services,Equipment and Materials Purchase,10001538,HARROW GREEN LTD,"10,519.55",19/06/2014
Delivery Units,Childrens Services,Equipment and Materials Purchase,10001177,KIRKFIELDS HEATING SERVICES LTD,"4,821.63",04/06/2014
Delivery Units,Childrens Services,Equipment and Materials Purchase,10002564,LONDON DIOCESAN BOARD FOR SCHOOL,"41,009.69",18/06/2014
Delivery Units,Childrens Services,Equipment and Materials Purchase,10000651,NORSEMAN DIRECT LTD,"1,312.00",27/06/2014
Delivery Units,Childrens Services,Equipment and Materials Purchase,10001247,REAM CONTRACTS,"13,951.05",04/06/2014
Delivery Units,Childrens Services,Equipment and Materials Purchase,10002560,REAM CONTRACTS,"52,398.35",18/06/2014
Delivery Units,Childrens Services,Equipment and Materials Purchase,10002561,REAM CONTRACTS,"32,857.83",18/06/2014
Delivery Units,Childrens Services,Equipment and Materials Purchase,10003079,REDACTED - PERSONAL DATA,"3,263.02",27/06/2014
Delivery Units,Childrens Services,Equipment and Materials Purchase,10003080,REDACTED - PERSONAL DATA,"3,263.02",27/06/2014
Delivery Units,Childrens Services,Equipment and Materials Purchase,10003081,REDACTED - PERSONAL DATA,"33,562.50",27/06/2014
Delivery Units,Childrens Services,Equipment and Materials Purchase,10003082,REDACTED - PERSONAL DATA,"18,300.00",27/06/2014
Delivery Units,Childrens Services,Equipment and Materials Purchase,10003083,REDACTED - PERSONAL DATA,"3,263.02",27/06/2014
Delivery Units,Childrens Services,Equipment and Materials Purchase,10003084,REDACTED - PERSONAL DATA,"2,187.50",27/06/2014
Delivery Units,Childrens Services,Equipment and Materials Purchase,10003085,REDACTED - PERSONAL DATA,"2,187.50",27/06/2014
Delivery Units,Childrens Services,Equipment and Materials Purchase,10002188,ROMFORD INSULATIONS LTD.,"3,950.00",19/06/2014
Delivery Units,Childrens Services,Equipment and Materials Purchase,20008404,TECHNOGYM UK LTD,"2,499.60",25/06/2014
Delivery Units,Childrens Services,Equipment and Materials Purchase,10001737,WESTMINSTER ROMAN CATHOLIC,"14,400.00",09/06/2014
Delivery Units,Childrens Services,Food Costs,10003102,CHARTWELLS,"1,605.69",27/06/2014
Delivery Units,Childrens Services,Food Costs,10001660,EURO FOOD BRANDS LTD,"1,529.90",06/06/2014
Delivery Units,Childrens Services,Food Costs,10002134,HATOV DISTRIBUTION,640.05,13/06/2014
Delivery Units,Childrens Services,Food Costs,10002136,HATOV DISTRIBUTION,"1,004.78",13/06/2014
Delivery Units,Childrens Services,Food Costs,10002897,HATOV DISTRIBUTION,563.55,24/06/2014
Delivery Units,Childrens Services,Food Costs,10002898,HATOV DISTRIBUTION,924.55,24/06/2014
Delivery Units,Childrens Services,Food Costs,10002063,PREMIER FRUITS(CATERING) LTD,"16,240.33",11/06/2014
Delivery Units,Childrens Services,Food Costs,10001614,REDACTED - PERSONAL DATA,710.7,09/06/2014
Delivery Units,Childrens Services,Food Costs,10002904,REDACTED - PERSONAL DATA,891.7,24/06/2014
Delivery Units,Childrens Services,Food Costs,10002906,REDACTED - PERSONAL DATA,"1,309.18",25/06/2014
Delivery Units,Childrens Services,Food Costs,10002907,REDACTED - PERSONAL DATA,"1,502.50",24/06/2014
Delivery Units,Childrens Services,Food Costs,10002039,RUMPLER'S,712.2,13/06/2014
Delivery Units,Childrens Services,Food Costs,10002041,RUMPLER'S,639.3,13/06/2014
Delivery Units,Childrens Services,Food Costs,10002051,SNOWCREST LTD,710,13/06/2014
Delivery Units,Childrens Services,Food Costs,10002061,THE FAMILY BREAD LTD,565.05,13/06/2014
Delivery Units,Childrens Services,Furniture-Purchase-Repair,10001642,DEMCO WORLDWIDE LTD.,585,06/06/2014
Delivery Units,Childrens Services,Gas,10001196,KENT COUNTY COUNCIL (KCS),995.22,04/06/2014
Delivery Units,Childrens Services,Gas,10001198,KENT COUNTY COUNCIL (KCS),"1,423.67",11/06/2014
Delivery Units,Childrens Services,Gas,10002846,KENT COUNTY COUNCIL (KCS),824.18,30/06/2014
Delivery Units,Childrens Services,Grant Payments,20007500,BARNET SUB-COMMITTEE PRE-SCHOOL,"10,000.00",04/06/2014
Delivery Units,Childrens Services,Grant Payments,20008451,BELFIELD MONTESSORI,780,25/06/2014
Delivery Units,Childrens Services,Grant Payments,30011314,BELFIELD MONTESSORI,"3,750.00",05/06/2014
Delivery Units,Childrens Services,Grant Payments,30011315,BLUE SKIES,"6,561.00",05/06/2014
Delivery Units,Childrens Services,Grant Payments,20008194,BO-PEEP NURSERY,585,18/06/2014
Delivery Units,Childrens Services,Grant Payments,20008195,BRIGHT SPARKS NURSERY,756,18/06/2014
Delivery Units,Childrens Services,Grant Payments,30011326,FOUNTAIN MONTESSORI PRE-SCHOOL,"2,160.00",05/06/2014
Delivery Units,Childrens Services,Grant Payments,20007759,GAN MENACHEM,991.87,10/06/2014
Delivery Units,Childrens Services,Grant Payments,30011333,JESUS HOUSE ( KIDZ FIRST NURSERY),"2,340.00",05/06/2014
Delivery Units,Childrens Services,Grant Payments,30011332,KIDZ CHOICE LIMITED,"24,000.00",05/06/2014
Delivery Units,Childrens Services,Grant Payments,30013420,KINGS KIDS DAY NURSERY,"1,530.00",09/06/2014
Delivery Units,Childrens Services,Grant Payments,30011342,LUBAVITCH OF EDGWARE,"13,240.80",05/06/2014
Delivery Units,Childrens Services,Grant Payments,30013421,MIDDLESEX UNIVERSITY NURSERY,"9,360.00",09/06/2014
Delivery Units,Childrens Services,Grant Payments,20008255,PLAY & LEARN,"1,350.00",19/06/2014
Delivery Units,Childrens Services,Grant Payments,30013417,RAINBOW PLAYSCHEME,"5,040.00",09/06/2014
Delivery Units,Childrens Services,Grant Payments,30013419,SPARKLER'S  NURSERY,"1,170.00",09/06/2014
Delivery Units,Childrens Services,Grant Payments,20008196,TWISTY TAILS NURSERY LTD,"1,260.00",18/06/2014
Delivery Units,Childrens Services,Grant Payments,30013418,TWISTY TAILS NURSERY LTD,"2,322.00",09/06/2014
Delivery Units,Childrens Services,Grant Payments,30013422,WOODLANDS BARNET,"1,080.00",09/06/2014
Delivery Units,Childrens Services,Hardware Purchases,10002370,RM EDUCATION PLC,"209,364.37",17/06/2014
Delivery Units,Childrens Services,Other Agencies - Third Party Payment,10002981,ACTIVE TIME HOLIDAYS,763.2,25/06/2014
Delivery Units,Childrens Services,Other Agencies - Third Party Payment,10002468,ADVANCED CHILDCARE LTD,"1,900.00",17/06/2014
Delivery Units,Childrens Services,Other Agencies - Third Party Payment,10002774,ADVANTAGE HEALTHCARE GROUP LTD,"1,513.27",26/06/2014
Delivery Units,Childrens Services,Other Agencies - Third Party Payment,10002786,ADVANTAGE HEALTHCARE GROUP LTD,"1,279.67",23/06/2014
Delivery Units,Childrens Services,Other Agencies - Third Party Payment,10002787,ADVANTAGE HEALTHCARE GROUP LTD,"1,270.83",23/06/2014
Delivery Units,Childrens Services,Other Agencies - Third Party Payment,10002789,ADVANTAGE HEALTHCARE GROUP LTD,"1,336.40",23/06/2014
Delivery Units,Childrens Services,Other Agencies - Third Party Payment,10002791,ADVANTAGE HEALTHCARE GROUP LTD,"2,586.40",23/06/2014
Delivery Units,Childrens Services,Other Agencies - Third Party Payment,10002792,ADVANTAGE HEALTHCARE GROUP LTD,866.41,23/06/2014
Delivery Units,Childrens Services,Other Agencies - Third Party Payment,10002794,ADVANTAGE HEALTHCARE GROUP LTD,"1,348.84",23/06/2014
Delivery Units,Childrens Services,Other Agencies - Third Party Payment,10002797,ADVANTAGE HEALTHCARE GROUP LTD,516.06,23/06/2014
Delivery Units,Childrens Services,Other Agencies - Third Party Payment,10002798,ADVANTAGE HEALTHCARE GROUP LTD,874.7,23/06/2014
Delivery Units,Childrens Services,Other Agencies - Third Party Payment,10001268,ALERE CARE,"2,679.00",09/06/2014
Delivery Units,Childrens Services,Other Agencies - Third Party Payment,10001272,ALERE CARE,"2,768.30",09/06/2014
Delivery Units,Childrens Services,Other Agencies - Third Party Payment,10001824,ANCHOR FOSTER CARE SERVICES LTD,"2,964.47",09/06/2014
Delivery Units,Childrens Services,Other Agencies - Third Party Payment,10001825,ANCHOR FOSTER CARE SERVICES LTD,"2,964.47",09/06/2014
Delivery Units,Childrens Services,Other Agencies - Third Party Payment,10001826,ANCHOR FOSTER CARE SERVICES LTD,"3,565.71",09/06/2014
Delivery Units,Childrens Services,Other Agencies - Third Party Payment,10001099,APPLE FOSTERING,"3,321.60",04/06/2014
Delivery Units,Childrens Services,Other Agencies - Third Party Payment,10001864,APPLE FOSTERING,"3,432.32",26/06/2014
Delivery Units,Childrens Services,Other Agencies - Third Party Payment,10002180,ARCHWAY CARE LTD,"5,626.50",19/06/2014
Delivery Units,Childrens Services,Other Agencies - Third Party Payment,10001377,ATLANTIC LODGE LTD,"2,831.32",04/06/2014
Delivery Units,Childrens Services,Other Agencies - Third Party Payment,10002818,BRIGHTER FUTURES FOSTERCARE,"3,012.86",20/06/2014
Delivery Units,Childrens Services,Other Agencies - Third Party Payment,10001817,CARE AFLOAT LIMITED,866.67,09/06/2014
Delivery Units,Childrens Services,Other Agencies - Third Party Payment,10002680,CARE AFLOAT LIMITED,866.67,30/06/2014
Delivery Units,Childrens Services,Other Agencies - Third Party Payment,10002837,CHILDREN FIRST FOSTERING AGENCY LTD,"5,014.20",23/06/2014
Delivery Units,Childrens Services,Other Agencies - Third Party Payment,10002067,CHILDREN OF COLOUR LTD,"3,861.72",11/06/2014
Delivery Units,Childrens Services,Other Agencies - Third Party Payment,10002068,CHILDREN OF COLOUR LTD,"3,542.85",11/06/2014
Delivery Units,Childrens Services,Other Agencies - Third Party Payment,10002069,CHILDREN OF COLOUR LTD,"3,542.85",11/06/2014
Delivery Units,Childrens Services,Other Agencies - Third Party Payment,10001102,COMMUNITY BARNET,"29,137.50",04/06/2014
Delivery Units,Childrens Services,Other Agencies - Third Party Payment,10002185,COMMUNITY FOCUS,"5,821.20",12/06/2014
Delivery Units,Childrens Services,Other Agencies - Third Party Payment,10002597,DYNAMIC PEOPLE LTD,691.6,20/06/2014
Delivery Units,Childrens Services,Other Agencies - Third Party Payment,10002598,DYNAMIC PEOPLE LTD,860.18,20/06/2014
Delivery Units,Childrens Services,Other Agencies - Third Party Payment,10002599,DYNAMIC PEOPLE LTD,691.6,20/06/2014
Delivery Units,Childrens Services,Other Agencies - Third Party Payment,10002601,DYNAMIC PEOPLE LTD,657.02,20/06/2014
Delivery Units,Childrens Services,Other Agencies - Third Party Payment,10002612,DYNAMIC PEOPLE LTD,650.87,20/06/2014
Delivery Units,Childrens Services,Other Agencies - Third Party Payment,10002613,DYNAMIC PEOPLE LTD,694.38,20/06/2014
Delivery Units,Childrens Services,Other Agencies - Third Party Payment,10002614,DYNAMIC PEOPLE LTD,638.2,20/06/2014
Delivery Units,Childrens Services,Other Agencies - Third Party Payment,10002616,DYNAMIC PEOPLE LTD,562.6,20/06/2014
Delivery Units,Childrens Services,Other Agencies - Third Party Payment,10002620,DYNAMIC PEOPLE LTD,642,20/06/2014
Delivery Units,Childrens Services,Other Agencies - Third Party Payment,10002621,DYNAMIC PEOPLE LTD,"2,753.02",20/06/2014
Delivery Units,Childrens Services,Other Agencies - Third Party Payment,10002622,DYNAMIC PEOPLE LTD,"1,687.80",20/06/2014
Delivery Units,Childrens Services,Other Agencies - Third Party Payment,10002623,DYNAMIC PEOPLE LTD,"1,917.57",20/06/2014
Delivery Units,Childrens Services,Other Agencies - Third Party Payment,10001066,FAMILIES FOSTERING LTD,"4,068.00",02/06/2014
Delivery Units,Childrens Services,Other Agencies - Third Party Payment,10001067,FAMILIES FOSTERING LTD,"2,785.50",02/06/2014
Delivery Units,Childrens Services,Other Agencies - Third Party Payment,10001820,FAMILIES FOSTERING LTD,"2,878.35",09/06/2014
Delivery Units,Childrens Services,Other Agencies - Third Party Payment,10001821,FAMILIES FOSTERING LTD,"3,932.40",09/06/2014
Delivery Units,Childrens Services,Other Agencies - Third Party Payment,10002679,FAMILIES FOSTERING LTD,"2,785.50",27/06/2014
Delivery Units,Childrens Services,Other Agencies - Third Party Payment,10002465,FOCUS ON FOSTERING LIMITED,"3,231.94",18/06/2014
Delivery Units,Childrens Services,Other Agencies - Third Party Payment,10002466,FOCUS ON FOSTERING LIMITED,"3,339.67",19/06/2014
